{"text_format":"3","workbook":"xlsx","n_sheets":4,"sheets":["Shop Briefing","個人KPI","Sales receipt((當天)","個人KPISales receipt(MTD）"],"not_rendered":{"macros":1,"defined_names":3},"read":"whole","date_system":"1900"}

{"sheet":"Shop Briefing","index":0,"n_rows":78,"n_cols":15,"rows_kept":78,"merged":[[0,0,0,2],[0,3,0,5],[0,8,0,9],[0,10,0,11],[1,0,2,0],[1,1,1,2],[1,3,2,4],[1,5,2,6],[1,7,2,8],[1,9,2,10],[1,11,2,12],[1,13,2,14],[3,3,3,4],[3,5,3,6],[3,7,3,8],[3,9,3,10],[3,11,3,12],[3,13,3,14],[4,3,4,4],[4,5,4,6],[4,7,4,8],[4,9,4,10],[4,11,4,12],[4,13,4,14],[5,3,5,4],[5,5,5,6],[5,7,5,8],[5,9,5,10],[5,11,5,12],[5,13,5,14],[7,0,15,0],[7,1,7,10],[7,11,7,12],[7,13,7,14],[8,1,8,4],[8,5,8,6],[8,7,8,8],[8,9,8,10],[8,11,8,12],[8,13,8,14],[9,1,9,4],[9,5,9,6],[9,7,9,8],[9,9,9,10],[9,11,9,12],[9,13,9,14],[10,1,10,4],[10,5,10,6],[10,7,10,8],[10,9,10,10],[10,11,10,12],[10,13,10,14],[11,1,11,4],[11,5,11,6],[11,7,11,8],[11,9,11,10],[11,11,11,12],[11,13,11,14],[12,1,12,4],[12,5,12,6],[12,7,12,8],[12,9,12,10],[12,11,12,12],[12,13,12,14],[13,1,13,4],[13,5,13,6],[13,7,13,8],[13,9,13,10],[13,11,13,12],[13,13,13,14],[14,1,14,4],[14,5,14,6],[14,7,14,8],[14,9,14,10],[14,11,14,12],[14,13,14,14],[15,1,15,4],[15,5,15,6],[15,7,15,8],[15,9,15,10],[15,11,15,12],[15,13,15,14],[17,0,26,0],[17,1,17,4],[17,5,17,6],[17,7,17,8],[17,9,17,10],[17,11,17,12],[17,13,17,14],[18,1,18,4],[18,5,18,6],[18,7,18,8],[18,9,18,10],[18,11,18,12],[18,13,18,14],[19,1,19,4],[19,5,19,6],[19,7,19,8],[19,9,19,10],[19,11,19,12],[19,13,19,14],[20,1,20,4],[20,5,20,6],[20,7,20,8],[20,9,20,10],[20,11,20,12],[20,13,20,14],[21,1,21,4],[21,5,21,6],[21,7,21,8],[21,9,21,10],[21,11,21,12],[21,13,21,14],[22,1,22,4],[22,5,22,6],[22,7,22,8],[22,9,22,10],[22,11,22,12],[22,13,22,14],[23,1,23,4],[23,5,23,6],[23,7,23,8],[23,9,23,10],[23,11,23,12],[23,13,23,14],[24,1,24,4],[24,5,24,6],[24,7,24,8],[24,9,24,10],[24,11,24,12],[24,13,24,14],[25,1,25,4],[25,5,25,6],[25,7,25,8],[25,9,25,10],[25,11,25,12],[25,13,25,14],[26,1,26,4],[26,5,26,6],[26,7,26,8],[26,9,26,10],[26,11,26,12],[26,13,26,14],[27,0,29,0],[27,1,27,4],[27,5,27,6],[27,7,27,8],[27,9,27,10],[27,11,27,12],[27,13,27,14],[28,1,28,4],[28,5,28,6],[28,7,28,8],[28,9,28,10],[28,11,28,12],[28,13,28,14],[29,1,29,4],[29,5,29,6],[29,7,29,8],[29,9,29,10],[29,11,29,12],[29,13,29,14],[30,0,30,4],[30,5,30,6],[30,7,30,8],[30,9,30,10],[30,11,30,12],[30,13,30,14],[31,0,31,4],[31,5,31,6],[31,7,31,8],[31,9,31,10],[31,11,31,12],[31,13,31,14],[32,0,32,14],[33,0,34,1],[33,2,33,14],[34,2,34,3],[34,4,34,5],[34,6,34,7],[34,8,34,9],[34,10,34,11],[34,12,34,13],[35,0,35,1],[35,2,35,3],[35,4,35,5],[35,6,35,7],[35,8,35,9],[35,10,35,11],[35,12,35,13],[36,0,36,1],[36,2,36,3],[36,4,36,5],[36,6,36,7],[36,8,36,9],[36,10,36,11],[36,12,36,13],[37,0,37,1],[37,2,37,3],[37,4,37,5],[37,6,37,7],[37,8,37,9],[37,10,37,11],[37,12,37,13],[38,0,38,1],[38,2,38,3],[38,4,38,5],[38,6,38,7],[38,8,38,9],[38,10,38,11],[38,12,38,13],[39,0,39,1],[39,2,39,3],[39,4,39,5],[39,6,39,7],[39,8,39,9],[39,10,39,11],[39,12,39,13],[40,0,40,1],[40,2,40,3],[40,4,40,5],[40,6,40,7],[40,8,40,9],[40,10,40,11],[40,12,40,13],[41,0,41,1],[41,2,41,3],[41,4,41,5],[41,6,41,7],[41,8,41,9],[41,10,41,11],[41,12,41,13],[42,0,42,1],[42,2,42,3],[42,4,42,5],[42,6,42,7],[42,8,42,9],[42,10,42,11],[42,12,42,13],[43,0,43,1],[43,2,43,3],[43,4,43,5],[43,6,43,7],[43,8,43,9],[43,10,43,11],[43,12,43,13],[44,0,45,0],[44,1,44,2],[44,3,44,4],[44,5,44,6],[44,7,44,8],[44,9,44,10],[44,11,44,12],[44,13,44,14],[61,0,62,0],[61,1,61,2],[61,3,61,4],[61,5,61,6],[61,7,61,8],[61,9,61,10],[61,11,61,12],[61,13,61,14],[76,0,76,14],[77,0,77,14],[78,0,78,14],[79,0,79,14],[80,0,80,14],[81,0,81,14],[82,0,82,14],[83,0,83,14],[84,0,84,14],[85,0,85,14],[86,0,86,14],[87,0,87,14],[88,0,88,14],[89,0,89,14],[90,0,90,14],[91,0,91,14],[92,0,92,14],[93,0,93,14],[94,0,94,14],[95,0,95,14],[96,0,96,14]]}
["RMV",null,null,{"$f":"TODAY()","v":"2025-10-09"},{"$nulls":4},"LY SEP MTD",null,2800864]
["本月","生意",null,"ATV",null,"UPT",null,"單數",null,"件数",null,"人流",null,"轉化率"]
[null,null,"VS+/-%"]
["昨天生意",71879,{"$f":"SUM(B4/B5)-1","v":{"v":-0.12326645118009394,"d":"-12%"}},{"$f":"SUM(B4/H4)","v":{"v":2478.5862068965516,"d":"2479"}},null,{"$f":"SUM(J4/H4)","v":{"v":3.103448275862069,"d":"3.1"}},null,29,null,90,null,348,null,{"$f":"SUM(H4/L4)*100%","v":{"v":0.08333333333333333,"d":"8%"}}]
["去年同期",81985]
["本月累计",694105,{"$f":"B6/K1-1","v":{"v":-0.7521818267506026,"d":"-75%"}},{"$f":"SUM(B6/H6)","v":{"v":2533.2299270072995,"d":"2533"}},null,{"$f":"SUM(J6/H6)","v":{"v":3.708029197080292,"d":"3.7"}},null,274,null,1016]
[]
["當天","Promotion"]
[null,"項目",{"$nulls":3},"單價",null,"單數",null,"銷售占比"]
[null,"6000-1200",{"$nulls":3},11961,null,2,null,{"$f":"F10/B4","v":{"v":0.16640465226283058,"d":"17%"}}]
[null,"3件85折",{"$nulls":3},11395,null,4,null,{"$f":"F11/B4","v":{"v":0.15853030787851807,"d":"16%"}}]
[null,"10000-2000",{"$nulls":3},17560,null,2,null,{"$f":"F12/B4","v":{"v":0.24429944768291156,"d":"24%"}}]
[null,"2件88折",{"$nulls":3},9755,null,4,null,{"$f":"F13/B4","v":{"v":0.13571418634093407,"d":"14%"}}]
[{"$nulls":9},{"$f":"F14/B4","v":{"v":0,"d":"0%"}}]
[{"$nulls":9},{"$f":"F15/B4","v":{"v":0,"d":"0%"}}]
[{"$nulls":9},{"$f":"F16/B4","v":{"v":0,"d":"0%"}}]
[]
["當天","系列/品類",{"$nulls":3},"銷售金額",null,"件數",null,"銷售占比"]
[null,"FILA ORIGINALE",{"$nulls":3},{"$f":"SUMIFS('Sales receipt((當天)'!K:K,'Sales receipt((當天)'!B:B,'Sales receipt((當天)'!B4,'Sales receipt((當天)'!G:G,'Sales receipt((當天)'!G6)","v":9831},null,{"$f":"SUMIFS('Sales receipt((當天)'!J:J,'Sales receipt((當天)'!B:B,'Sales receipt((當天)'!B4,'Sales receipt((當天)'!G:G,'Sales receipt((當天)'!G6)","v":10},null,{"$f":"F19/F30","v":{"v":0.22361477572559366,"d":"22%"}}]
[null,"HERITAGE",{"$nulls":3},{"$f":"SUMIFS('Sales receipt((當天)'!K:K,'Sales receipt((當天)'!B:B,'Sales receipt((當天)'!B4,'Sales receipt((當天)'!G:G,'Sales receipt((當天)'!G9)","v":8208},null,{"$f":"SUMIFS('Sales receipt((當天)'!J:J,'Sales receipt((當天)'!B:B,'Sales receipt((當天)'!B4,'Sales receipt((當天)'!G:G,'Sales receipt((當天)'!G9)","v":9},null,{"$f":"F20/F30","v":{"v":0.18669820762442,"d":"19%"}}]
[null,"WHITE",{"$nulls":3},{"$f":"SUMIFS('Sales receipt((當天)'!K:K,'Sales receipt((當天)'!B:B,'Sales receipt((當天)'!B4,'Sales receipt((當天)'!G:G,'Sales receipt((當天)'!G17)","v":7046},null,{"$f":"SUMIFS('Sales receipt((當天)'!J:J,'Sales receipt((當天)'!B:B,'Sales receipt((當天)'!B4,'Sales receipt((當天)'!G:G,'Sales receipt((當天)'!G17)","v":6},null,{"$f":"F21/F30","v":{"v":0.16026749158402329,"d":"16%"}}]
[null,"BLUE",{"$nulls":3},{"$f":"SUMIFS('Sales receipt((當天)'!K:K,'Sales receipt((當天)'!B:B,'Sales receipt((當天)'!B4,'Sales receipt((當天)'!G:G,'Sales receipt((當天)'!G3)","v":2331},null,{"$f":"SUMIFS('Sales receipt((當天)'!J:J,'Sales receipt((當天)'!B:B,'Sales receipt((當天)'!B4,'Sales receipt((當天)'!G:G,'Sales receipt((當天)'!G3)","v":1},null,{"$f":"F22/F30","v":{"v":0.05302065326175962,"d":"5%"}}]
[null,"FITNESS",{"$nulls":3},{"$f":"SUMIFS('Sales receipt((當天)'!K:K,'Sales receipt((當天)'!B:B,'Sales receipt((當天)'!B4,'Sales receipt((當天)'!G:G,'Sales receipt((當天)'!G7)","v":1549},null,{"$f":"SUMIFS('Sales receipt((當天)'!J:J,'Sales receipt((當天)'!B:B,'Sales receipt((當天)'!B4,'Sales receipt((當天)'!G:G,'Sales receipt((當天)'!G7)","v":2},null,{"$f":"F23/F30","v":{"v":0.03523337275953053,"d":"4%"}}]
[null,"A.P.",{"$nulls":3},{"$f":"SUMIFS('Sales receipt((當天)'!K:K,'Sales receipt((當天)'!B:B,'Sales receipt((當天)'!B4,'Sales receipt((當天)'!G:G,'Sales receipt((當天)'!G2)","v":969},null,{"$f":"SUMIFS('Sales receipt((當天)'!J:J,'Sales receipt((當天)'!B:B,'Sales receipt((當天)'!B4,'Sales receipt((當天)'!G:G,'Sales receipt((當天)'!G2)","v":1},null,{"$f":"F24/F30","v":{"v":0.02204076062232736,"d":"2%"}}]
[null,"GOLF",{"$nulls":3},{"$f":"SUMIFS('Sales receipt((當天)'!K:K,'Sales receipt((當天)'!B:B,'Sales receipt((當天)'!B4,'Sales receipt((當天)'!G:G,'Sales receipt((當天)'!G8)","v":11217},null,{"$f":"SUMIFS('Sales receipt((當天)'!J:J,'Sales receipt((當天)'!B:B,'Sales receipt((當天)'!B4,'Sales receipt((當天)'!G:G,'Sales receipt((當天)'!G8)","v":7},null,{"$f":"F25/F30","v":{"v":0.2551405695569102,"d":"26%"}}]
[null,"EXPLORE",{"$nulls":3},{"$f":"SUMIFS('Sales receipt((當天)'!K:K,'Sales receipt((當天)'!B:B,'Sales receipt((當天)'!B4,'Sales receipt((當天)'!G:G,'Sales receipt((當天)'!G4)","v":6647},null,{"$f":"SUMIFS('Sales receipt((當天)'!J:J,'Sales receipt((當天)'!B:B,'Sales receipt((當天)'!B4,'Sales receipt((當天)'!G:G,'Sales receipt((當天)'!G4)","v":2},null,{"$f":"F26/F30","v":{"v":0.1511918842689473,"d":"15%"}}]
[null,"TENNIS",{"$nulls":3},{"$f":"SUMIFS('Sales receipt((當天)'!K:K,'Sales receipt((當天)'!B:B,'Sales receipt((當天)'!B4,'Sales receipt((當天)'!G:G,'Sales receipt((當天)'!G16)","v":0},null,{"$f":"SUMIFS('Sales receipt((當天)'!J:J,'Sales receipt((當天)'!B:B,'Sales receipt((當天)'!B4,'Sales receipt((當天)'!G:G,'Sales receipt((當天)'!G16)","v":0},null,{"$f":"F27/F30","v":{"v":0,"d":"0%"}}]
["服裝","男",{"$nulls":3},{"$f":"SUMIFS('Sales receipt((當天)'!K:K,'Sales receipt((當天)'!B:B,'Sales receipt((當天)'!B4,'Sales receipt((當天)'!H:H,'Sales receipt((當天)'!H3)","v":26510},null,{"$f":"SUMIFS('Sales receipt((當天)'!J:J,'Sales receipt((當天)'!B:B,'Sales receipt((當天)'!B4,'Sales receipt((當天)'!H:H,'Sales receipt((當天)'!H3)","v":21},null,{"$f":"F28/F30","v":{"v":0.6029933582021654,"d":"60%"}}]
[null,"女",{"$nulls":3},{"$f":"SUMIFS('Sales receipt((當天)'!K:K,'Sales receipt((當天)'!B:B,'Sales receipt((當天)'!B4,'Sales receipt((當天)'!H:H,'Sales receipt((當天)'!H2)","v":17454},null,{"$f":"SUMIFS('Sales receipt((當天)'!J:J,'Sales receipt((當天)'!B:B,'Sales receipt((當天)'!B4,'Sales receipt((當天)'!H:H,'Sales receipt((當天)'!H2)","v":16},null,{"$f":"F29/F30","v":{"v":0.39700664179783457,"d":"40%"}}]
[null,"Total",{"$nulls":3},{"$f":"SUM(F28:G29)","v":43964},null,{"$f":"SUM(H28:I29)","v":37},null,{"$f":"F30/B4","v":{"v":0.6116390044380139,"d":"61%"}}]
["鞋",{"$nulls":4},{"$f":"SUMIFS('Sales receipt((當天)'!K:K,'Sales receipt((當天)'!B:B,'Sales receipt((當天)'!B6)","v":19109},null,{"$f":"SUMIFS('Sales receipt((當天)'!J:J,'Sales receipt((當天)'!B:B,'Sales receipt((當天)'!B6)","v":22},null,{"$f":"F31/B4","v":{"v":0.2658495527205442,"d":"27%"}}]
["配件",{"$nulls":4},{"$f":"SUMIFS('Sales receipt((當天)'!K:K,'Sales receipt((當天)'!B:B,'Sales receipt((當天)'!B5)","v":1789},null,{"$f":"SUMIFS('Sales receipt((當天)'!J:J,'Sales receipt((當天)'!B:B,'Sales receipt((當天)'!B5)","v":8},null,{"$f":"F32/B4","v":{"v":0.024889049652888882,"d":"2%"}}]
[]
["姓名",null,"生意"]
[null,null,"當天目標",null,"實際",null,"月累計",null,"单数",null,"件数",null,"ATV",null,"UPT"]
["M0989 Susanna",null,19975,null,10358,null,109293,null,7,null,16,null,{"$f":"SUM(E36/I36)","v":{"v":1479.7142857142858,"d":"1480"}},null,{"$f":"SUM(K36/I36)","v":{"v":2.2857142857142856,"d":"2.3"}}]
["M1436 Khaki",null,"NBA",null,3005,null,94009,null,2,null,4,null,{"$f":"SUM(E37/I37)","v":{"v":1502.5,"d":"1503"}},null,{"$f":"SUM(K37/I37)","v":{"v":2,"d":"2.0"}}]
["M2172 Janet",null,19975,null,14740,null,117275,null,5,null,21,null,2948,null,{"$f":"SUM(K38/I38)","v":4.2}]
["M2801 Fanny",null,"RO",{"$nulls":3},135823,{"$nulls":5},{"$error":"#DIV/0!"},null,{"$error":"#DIV/0!"}]
["M2798 Ryan",null,19975,null,18315,null,125020,null,6,null,16,null,{"$f":"SUM(E40/I40)","v":{"v":3052.5,"d":"3053"}},null,{"v":2.6666666666666665,"d":"2.7"}]
["M2902 Carmen",null,19975,null,25461,null,112685,null,9,null,33,null,2829,null,{"v":3.6666666666666665,"d":"3.7"}]
[{"$nulls":12},{"$error":"#DIV/0!"},null,{"$error":"#DIV/0!"}]
[]
[]
[null,"M0989 Susanna",null,"M2172 Janet",null,"M2801 Fanny",null,"M2798 Ryan",null,"M2902 Carmen",{"$nulls":3},"\tM1436 Khaki"]
[null,"Sales","Qty","Sales","Qty","Sales","Qty","Sales","Qty","Sales","Qty","Sales","Qty","Sales","Qty"]
[" ORIGINALE",{"$f":"SUMIFS('Sales receipt((當天)'!K:K,'Sales receipt((當天)'!A:A,'Sales receipt((當天)'!A2,'Sales receipt((當天)'!B:B,'Sales receipt((當天)'!B4,'Sales receipt((當天)'!G:G,'Sales receipt((當天)'!G6)","v":1003},{"$f":"SUMIFS('Sales receipt((當天)'!J:J,'Sales receipt((當天)'!A:A,'Sales receipt((當天)'!A2,'Sales receipt((當天)'!B:B,'Sales receipt((當天)'!B4,'Sales receipt((當天)'!G:G,'Sales receipt((當天)'!G6)","v":1},{"$f":"SUMIFS('Sales receipt((當天)'!K:K,'Sales receipt((當天)'!A:A,'Sales receipt((當天)'!A3,'Sales receipt((當天)'!B:B,'Sales receipt((當天)'!B4,'Sales receipt((當天)'!G:G,'Sales receipt((當天)'!G6)","v":2414},{"$f":"SUMIFS('Sales receipt((當天)'!J:J,'Sales receipt((當天)'!A:A,'Sales receipt((當天)'!A3,'Sales receipt((當天)'!B:B,'Sales receipt((當天)'!B4,'Sales receipt((當天)'!G:G,'Sales receipt((當天)'!G6)","v":3},{"$f":"SUMIFS('Sales receipt((當天)'!K:K,'Sales receipt((當天)'!A:A,'Sales receipt((當天)'!A7,'Sales receipt((當天)'!B:B,'Sales receipt((當天)'!B4,'Sales receipt((當天)'!G:G,'Sales receipt((當天)'!G6)","v":0},{"$f":"SUMIFS('Sales receipt((當天)'!J:J,'Sales receipt((當天)'!A:A,'Sales receipt((當天)'!A7,'Sales receipt((當天)'!B:B,'Sales receipt((當天)'!B4,'Sales receipt((當天)'!G:G,'Sales receipt((當天)'!G6)","v":0},{"$f":"SUMIFS('Sales receipt((當天)'!K:K,'Sales receipt((當天)'!A:A,'Sales receipt((當天)'!A6,'Sales receipt((當天)'!B:B,'Sales receipt((當天)'!B4,'Sales receipt((當天)'!G:G,'Sales receipt((當天)'!G6)","v":1428},{"$f":"SUMIFS('Sales receipt((當天)'!J:J,'Sales receipt((當天)'!A:A,'Sales receipt((當天)'!A6,'Sales receipt((當天)'!B:B,'Sales receipt((當天)'!B4,'Sales receipt((當天)'!G:G,'Sales receipt((當天)'!G6)","v":2},{"$f":"SUMIFS('Sales receipt((當天)'!K:K,'Sales receipt((當天)'!A:A,'Sales receipt((當天)'!A8,'Sales receipt((當天)'!B:B,'Sales receipt((當天)'!B4,'Sales receipt((當天)'!G:G,'Sales receipt((當天)'!G6)","v":4986},{"$f":"SUMIFS('Sales receipt((當天)'!J:J,'Sales receipt((當天)'!A:A,'Sales receipt((當天)'!A8,'Sales receipt((當天)'!B:B,'Sales receipt((當天)'!B4,'Sales receipt((當天)'!G:G,'Sales receipt((當天)'!G6)","v":4},{"$f":"SUMIFS('Sales receipt((當天)'!K:K,'Sales receipt((當天)'!A:A,'Sales receipt((當天)'!A4,'Sales receipt((當天)'!B:B,'Sales receipt((當天)'!B4,'Sales receipt((當天)'!G:G,'Sales receipt((當天)'!G6)","v":0},{"$f":"SUMIFS('Sales receipt((當天)'!J:J,'Sales receipt((當天)'!A:A,'Sales receipt((當天)'!A4,'Sales receipt((當天)'!B:B,'Sales receipt((當天)'!B4,'Sales receipt((當天)'!G:G,'Sales receipt((當天)'!G6)","v":0},{"$f":"SUMIFS('Sales receipt((當天)'!K:K,'Sales receipt((當天)'!A:A,'Sales receipt((當天)'!A5,'Sales receipt((當天)'!B:B,'Sales receipt((當天)'!B4,'Sales receipt((當天)'!G:G,'Sales receipt((當天)'!G6)","v":0},{"$f":"SUMIFS('Sales receipt((當天)'!J:J,'Sales receipt((當天)'!A:A,'Sales receipt((當天)'!A5,'Sales receipt((當天)'!B:B,'Sales receipt((當天)'!B4,'Sales receipt((當天)'!G:G,'Sales receipt((當天)'!G6)","v":0}]
["HERITAGE",{"$f":"SUMIFS('Sales receipt((當天)'!K:K,'Sales receipt((當天)'!A:A,'Sales receipt((當天)'!A2,'Sales receipt((當天)'!B:B,'Sales receipt((當天)'!B4,'Sales receipt((當天)'!G:G,'Sales receipt((當天)'!G9)","v":2781},{"$f":"SUMIFS('Sales receipt((當天)'!J:J,'Sales receipt((當天)'!A:A,'Sales receipt((當天)'!A2,'Sales receipt((當天)'!B:B,'Sales receipt((當天)'!B4,'Sales receipt((當天)'!G:G,'Sales receipt((當天)'!G9)","v":2},{"$f":"SUMIFS('Sales receipt((當天)'!K:K,'Sales receipt((當天)'!A:A,'Sales receipt((當天)'!A3,'Sales receipt((當天)'!B:B,'Sales receipt((當天)'!B4,'Sales receipt((當天)'!G:G,'Sales receipt((當天)'!G9)","v":493},{"$f":"SUMIFS('Sales receipt((當天)'!J:J,'Sales receipt((當天)'!A:A,'Sales receipt((當天)'!A3,'Sales receipt((當天)'!B:B,'Sales receipt((當天)'!B4,'Sales receipt((當天)'!G:G,'Sales receipt((當天)'!G9)","v":1},{"$f":"SUMIFS('Sales receipt((當天)'!K:K,'Sales receipt((當天)'!A:A,'Sales receipt((當天)'!A7,'Sales receipt((當天)'!B:B,'Sales receipt((當天)'!B4,'Sales receipt((當天)'!G:G,'Sales receipt((當天)'!G9)","v":0},{"$f":"SUMIFS('Sales receipt((當天)'!J:J,'Sales receipt((當天)'!A:A,'Sales receipt((當天)'!A7,'Sales receipt((當天)'!B:B,'Sales receipt((當天)'!B4,'Sales receipt((當天)'!G:G,'Sales receipt((當天)'!G9)","v":0},{"$f":"SUMIFS('Sales receipt((當天)'!K:K,'Sales receipt((當天)'!A:A,'Sales receipt((當天)'!A6,'Sales receipt((當天)'!B:B,'Sales receipt((當天)'!B4,'Sales receipt((當天)'!G:G,'Sales receipt((當天)'!G9)","v":2308},{"$f":"SUMIFS('Sales receipt((當天)'!J:J,'Sales receipt((當天)'!A:A,'Sales receipt((當天)'!A6,'Sales receipt((當天)'!B:B,'Sales receipt((當天)'!B4,'Sales receipt((當天)'!G:G,'Sales receipt((當天)'!G9)","v":3},{"$f":"SUMIFS('Sales receipt((當天)'!K:K,'Sales receipt((當天)'!A:A,'Sales receipt((當天)'!A8,'Sales receipt((當天)'!B:B,'Sales receipt((當天)'!B4,'Sales receipt((當天)'!G:G,'Sales receipt((當天)'!G9)","v":1368},{"$f":"SUMIFS('Sales receipt((當天)'!J:J,'Sales receipt((當天)'!A:A,'Sales receipt((當天)'!A8,'Sales receipt((當天)'!B:B,'Sales receipt((當天)'!B4,'Sales receipt((當天)'!G:G,'Sales receipt((當天)'!G9)","v":2},{"$f":"SUMIFS('Sales receipt((當天)'!K:K,'Sales receipt((當天)'!A:A,'Sales receipt((當天)'!A4,'Sales receipt((當天)'!B:B,'Sales receipt((當天)'!B4,'Sales receipt((當天)'!G:G,'Sales receipt((當天)'!G9)","v":0},{"$f":"SUMIFS('Sales receipt((當天)'!J:J,'Sales receipt((當天)'!A:A,'Sales receipt((當天)'!A4,'Sales receipt((當天)'!B:B,'Sales receipt((當天)'!B4,'Sales receipt((當天)'!G:G,'Sales receipt((當天)'!G9)","v":0},{"$f":"SUMIFS('Sales receipt((當天)'!K:K,'Sales receipt((當天)'!A:A,'Sales receipt((當天)'!A5,'Sales receipt((當天)'!B:B,'Sales receipt((當天)'!B4,'Sales receipt((當天)'!G:G,'Sales receipt((當天)'!G9)","v":1258},{"$f":"SUMIFS('Sales receipt((當天)'!J:J,'Sales receipt((當天)'!A:A,'Sales receipt((當天)'!A5,'Sales receipt((當天)'!B:B,'Sales receipt((當天)'!B4,'Sales receipt((當天)'!G:G,'Sales receipt((當天)'!G9)","v":1}]
["WHITE",{"$f":"SUMIFS('Sales receipt((當天)'!K:K,'Sales receipt((當天)'!A:A,'Sales receipt((當天)'!A2,'Sales receipt((當天)'!B:B,'Sales receipt((當天)'!B4,'Sales receipt((當天)'!G:G,'Sales receipt((當天)'!G17)","v":2359},{"$f":"SUMIFS('Sales receipt((當天)'!J:J,'Sales receipt((當天)'!A:A,'Sales receipt((當天)'!A2,'Sales receipt((當天)'!B:B,'Sales receipt((當天)'!B4,'Sales receipt((當天)'!G:G,'Sales receipt((當天)'!G17)","v":2},{"$f":"SUMIFS('Sales receipt((當天)'!K:K,'Sales receipt((當天)'!A:A,'Sales receipt((當天)'!A3,'Sales receipt((當天)'!B:B,'Sales receipt((當天)'!B4,'Sales receipt((當天)'!G:G,'Sales receipt((當天)'!G17)","v":0},{"$f":"SUMIFS('Sales receipt((當天)'!J:J,'Sales receipt((當天)'!A:A,'Sales receipt((當天)'!A3,'Sales receipt((當天)'!B:B,'Sales receipt((當天)'!B4,'Sales receipt((當天)'!G:G,'Sales receipt((當天)'!G17)","v":0},{"$f":"SUMIFS('Sales receipt((當天)'!K:K,'Sales receipt((當天)'!A:A,'Sales receipt((當天)'!A7,'Sales receipt((當天)'!B:B,'Sales receipt((當天)'!B4,'Sales receipt((當天)'!G:G,'Sales receipt((當天)'!G17)","v":0},{"$f":"SUMIFS('Sales receipt((當天)'!J:J,'Sales receipt((當天)'!A:A,'Sales receipt((當天)'!A7,'Sales receipt((當天)'!B:B,'Sales receipt((當天)'!B4,'Sales receipt((當天)'!G:G,'Sales receipt((當天)'!G17)","v":0},{"$f":"SUMIFS('Sales receipt((當天)'!K:K,'Sales receipt((當天)'!A:A,'Sales receipt((當天)'!A6,'Sales receipt((當天)'!B:B,'Sales receipt((當天)'!B4,'Sales receipt((當天)'!G:G,'Sales receipt((當天)'!G17)","v":2474},{"$f":"SUMIFS('Sales receipt((當天)'!J:J,'Sales receipt((當天)'!A:A,'Sales receipt((當天)'!A6,'Sales receipt((當天)'!B:B,'Sales receipt((當天)'!B4,'Sales receipt((當天)'!G:G,'Sales receipt((當天)'!G17)","v":2},{"$f":"SUMIFS('Sales receipt((當天)'!K:K,'Sales receipt((當天)'!A:A,'Sales receipt((當天)'!A8,'Sales receipt((當天)'!B:B,'Sales receipt((當天)'!B4,'Sales receipt((當天)'!G:G,'Sales receipt((當天)'!G17)","v":2213},{"$f":"SUMIFS('Sales receipt((當天)'!J:J,'Sales receipt((當天)'!A:A,'Sales receipt((當天)'!A8,'Sales receipt((當天)'!B:B,'Sales receipt((當天)'!B4,'Sales receipt((當天)'!G:G,'Sales receipt((當天)'!G17)","v":2},{"$f":"SUMIFS('Sales receipt((當天)'!K:K,'Sales receipt((當天)'!A:A,'Sales receipt((當天)'!A4,'Sales receipt((當天)'!B:B,'Sales receipt((當天)'!B4,'Sales receipt((當天)'!G:G,'Sales receipt((當天)'!G17)","v":0},{"$f":"SUMIFS('Sales receipt((當天)'!J:J,'Sales receipt((當天)'!A:A,'Sales receipt((當天)'!A4,'Sales receipt((當天)'!B:B,'Sales receipt((當天)'!B4,'Sales receipt((當天)'!G:G,'Sales receipt((當天)'!G17)","v":0},{"$f":"SUMIFS('Sales receipt((當天)'!K:K,'Sales receipt((當天)'!A:A,'Sales receipt((當天)'!A5,'Sales receipt((當天)'!B:B,'Sales receipt((當天)'!B4,'Sales receipt((當天)'!G:G,'Sales receipt((當天)'!G17)","v":0},{"$f":"SUMIFS('Sales receipt((當天)'!J:J,'Sales receipt((當天)'!A:A,'Sales receipt((當天)'!A5,'Sales receipt((當天)'!B:B,'Sales receipt((當天)'!B4,'Sales receipt((當天)'!G:G,'Sales receipt((當天)'!G17)","v":0}]
["BLUE",{"$f":"SUMIFS('Sales receipt((當天)'!K:K,'Sales receipt((當天)'!A:A,'Sales receipt((當天)'!A2,'Sales receipt((當天)'!B:B,'Sales receipt((當天)'!B4,'Sales receipt((當天)'!G:G,'Sales receipt((當天)'!G3)","v":0},{"$f":"SUMIFS('Sales receipt((當天)'!J:J,'Sales receipt((當天)'!A:A,'Sales receipt((當天)'!A2,'Sales receipt((當天)'!B:B,'Sales receipt((當天)'!B4,'Sales receipt((當天)'!G:G,'Sales receipt((當天)'!G3)","v":0},{"$f":"SUMIFS('Sales receipt((當天)'!K:K,'Sales receipt((當天)'!A:A,'Sales receipt((當天)'!A3,'Sales receipt((當天)'!B:B,'Sales receipt((當天)'!B4,'Sales receipt((當天)'!G:G,'Sales receipt((當天)'!G3)","v":0},{"$f":"SUMIFS('Sales receipt((當天)'!J:J,'Sales receipt((當天)'!A:A,'Sales receipt((當天)'!A3,'Sales receipt((當天)'!B:B,'Sales receipt((當天)'!B4,'Sales receipt((當天)'!G:G,'Sales receipt((當天)'!G3)","v":0},{"$f":"SUMIFS('Sales receipt((當天)'!K:K,'Sales receipt((當天)'!A:A,'Sales receipt((當天)'!A7,'Sales receipt((當天)'!B:B,'Sales receipt((當天)'!B4,'Sales receipt((當天)'!G:G,'Sales receipt((當天)'!G3)","v":0},{"$f":"SUMIFS('Sales receipt((當天)'!J:J,'Sales receipt((當天)'!A:A,'Sales receipt((當天)'!A7,'Sales receipt((當天)'!B:B,'Sales receipt((當天)'!B4,'Sales receipt((當天)'!G:G,'Sales receipt((當天)'!G3)","v":0},{"$f":"SUMIFS('Sales receipt((當天)'!K:K,'Sales receipt((當天)'!A:A,'Sales receipt((當天)'!A6,'Sales receipt((當天)'!B:B,'Sales receipt((當天)'!B4,'Sales receipt((當天)'!G:G,'Sales receipt((當天)'!G3)","v":2331},{"$f":"SUMIFS('Sales receipt((當天)'!J:J,'Sales receipt((當天)'!A:A,'Sales receipt((當天)'!A6,'Sales receipt((當天)'!B:B,'Sales receipt((當天)'!B4,'Sales receipt((當天)'!G:G,'Sales receipt((當天)'!G3)","v":1},{"$f":"SUMIFS('Sales receipt((當天)'!K:K,'Sales receipt((當天)'!A:A,'Sales receipt((當天)'!A8,'Sales receipt((當天)'!B:B,'Sales receipt((當天)'!B4,'Sales receipt((當天)'!G:G,'Sales receipt((當天)'!G3)","v":0},{"$f":"SUMIFS('Sales receipt((當天)'!J:J,'Sales receipt((當天)'!A:A,'Sales receipt((當天)'!A8,'Sales receipt((當天)'!B:B,'Sales receipt((當天)'!B4,'Sales receipt((當天)'!G:G,'Sales receipt((當天)'!G3)","v":0},{"$f":"SUMIFS('Sales receipt((當天)'!K:K,'Sales receipt((當天)'!A:A,'Sales receipt((當天)'!A4,'Sales receipt((當天)'!B:B,'Sales receipt((當天)'!B4,'Sales receipt((當天)'!G:G,'Sales receipt((當天)'!G3)","v":0},{"$f":"SUMIFS('Sales receipt((當天)'!J:J,'Sales receipt((當天)'!A:A,'Sales receipt((當天)'!A4,'Sales receipt((當天)'!B:B,'Sales receipt((當天)'!B4,'Sales receipt((當天)'!G:G,'Sales receipt((當天)'!G3)","v":0},{"$f":"SUMIFS('Sales receipt((當天)'!K:K,'Sales receipt((當天)'!A:A,'Sales receipt((當天)'!A5,'Sales receipt((當天)'!B:B,'Sales receipt((當天)'!B4,'Sales receipt((當天)'!G:G,'Sales receipt((當天)'!G3)","v":0},{"$f":"SUMIFS('Sales receipt((當天)'!J:J,'Sales receipt((當天)'!A:A,'Sales receipt((當天)'!A5,'Sales receipt((當天)'!B:B,'Sales receipt((當天)'!B4,'Sales receipt((當天)'!G:G,'Sales receipt((當天)'!G3)","v":0}]
["FITNESS",{"$f":"SUMIFS('Sales receipt((當天)'!K:K,'Sales receipt((當天)'!A:A,'Sales receipt((當天)'!A2,'Sales receipt((當天)'!B:B,'Sales receipt((當天)'!B4,'Sales receipt((當天)'!G:G,'Sales receipt((當天)'!G7)","v":0},{"$f":"SUMIFS('Sales receipt((當天)'!J:J,'Sales receipt((當天)'!A:A,'Sales receipt((當天)'!A2,'Sales receipt((當天)'!B:B,'Sales receipt((當天)'!B4,'Sales receipt((當天)'!G:G,'Sales receipt((當天)'!G7)","v":0},{"$f":"SUMIFS('Sales receipt((當天)'!K:K,'Sales receipt((當天)'!A:A,'Sales receipt((當天)'!A3,'Sales receipt((當天)'!B:B,'Sales receipt((當天)'!B4,'Sales receipt((當天)'!G:G,'Sales receipt((當天)'!G7)","v":721},{"$f":"SUMIFS('Sales receipt((當天)'!J:J,'Sales receipt((當天)'!A:A,'Sales receipt((當天)'!A3,'Sales receipt((當天)'!B:B,'Sales receipt((當天)'!B4,'Sales receipt((當天)'!G:G,'Sales receipt((當天)'!G7)","v":1},{"$f":"SUMIFS('Sales receipt((當天)'!K:K,'Sales receipt((當天)'!A:A,'Sales receipt((當天)'!A7,'Sales receipt((當天)'!B:B,'Sales receipt((當天)'!B4,'Sales receipt((當天)'!G:G,'Sales receipt((當天)'!G7)","v":0},{"$f":"SUMIFS('Sales receipt((當天)'!J:J,'Sales receipt((當天)'!A:A,'Sales receipt((當天)'!A7,'Sales receipt((當天)'!B:B,'Sales receipt((當天)'!B4,'Sales receipt((當天)'!G:G,'Sales receipt((當天)'!G7)","v":0},{"$f":"SUMIFS('Sales receipt((當天)'!K:K,'Sales receipt((當天)'!A:A,'Sales receipt((當天)'!A6,'Sales receipt((當天)'!B:B,'Sales receipt((當天)'!B4,'Sales receipt((當天)'!G:G,'Sales receipt((當天)'!G7)","v":828},{"$f":"SUMIFS('Sales receipt((當天)'!J:J,'Sales receipt((當天)'!A:A,'Sales receipt((當天)'!A6,'Sales receipt((當天)'!B:B,'Sales receipt((當天)'!B4,'Sales receipt((當天)'!G:G,'Sales receipt((當天)'!G7)","v":1},{"$f":"SUMIFS('Sales receipt((當天)'!K:K,'Sales receipt((當天)'!A:A,'Sales receipt((當天)'!A8,'Sales receipt((當天)'!B:B,'Sales receipt((當天)'!B4,'Sales receipt((當天)'!G:G,'Sales receipt((當天)'!G7)","v":0},{"$f":"SUMIFS('Sales receipt((當天)'!J:J,'Sales receipt((當天)'!A:A,'Sales receipt((當天)'!A8,'Sales receipt((當天)'!B:B,'Sales receipt((當天)'!B4,'Sales receipt((當天)'!G:G,'Sales receipt((當天)'!G7)","v":0},{"$f":"SUMIFS('Sales receipt((當天)'!K:K,'Sales receipt((當天)'!A:A,'Sales receipt((當天)'!A4,'Sales receipt((當天)'!B:B,'Sales receipt((當天)'!B4,'Sales receipt((當天)'!G:G,'Sales receipt((當天)'!G7)","v":0},{"$f":"SUMIFS('Sales receipt((當天)'!J:J,'Sales receipt((當天)'!A:A,'Sales receipt((當天)'!A4,'Sales receipt((當天)'!B:B,'Sales receipt((當天)'!B4,'Sales receipt((當天)'!G:G,'Sales receipt((當天)'!G7)","v":0},{"$f":"SUMIFS('Sales receipt((當天)'!K:K,'Sales receipt((當天)'!A:A,'Sales receipt((當天)'!A5,'Sales receipt((當天)'!B:B,'Sales receipt((當天)'!B4,'Sales receipt((當天)'!G:G,'Sales receipt((當天)'!G7)","v":0},{"$f":"SUMIFS('Sales receipt((當天)'!J:J,'Sales receipt((當天)'!A:A,'Sales receipt((當天)'!A5,'Sales receipt((當天)'!B:B,'Sales receipt((當天)'!B4,'Sales receipt((當天)'!G:G,'Sales receipt((當天)'!G7)","v":0}]
["A.P.",{"$f":"SUMIFS('Sales receipt((當天)'!K:K,'Sales receipt((當天)'!A:A,'Sales receipt((當天)'!A2,'Sales receipt((當天)'!B:B,'Sales receipt((當天)'!B4,'Sales receipt((當天)'!G:G,'Sales receipt((當天)'!G2)","v":0},{"$f":"SUMIFS('Sales receipt((當天)'!J:J,'Sales receipt((當天)'!A:A,'Sales receipt((當天)'!A2,'Sales receipt((當天)'!B:B,'Sales receipt((當天)'!B4,'Sales receipt((當天)'!G:G,'Sales receipt((當天)'!G2)","v":0},{"$f":"SUMIFS('Sales receipt((當天)'!K:K,'Sales receipt((當天)'!A:A,'Sales receipt((當天)'!A3,'Sales receipt((當天)'!B:B,'Sales receipt((當天)'!B4,'Sales receipt((當天)'!G:G,'Sales receipt((當天)'!G2)","v":0},{"$f":"SUMIFS('Sales receipt((當天)'!J:J,'Sales receipt((當天)'!A:A,'Sales receipt((當天)'!A3,'Sales receipt((當天)'!B:B,'Sales receipt((當天)'!B4,'Sales receipt((當天)'!G:G,'Sales receipt((當天)'!G2)","v":0},{"$f":"SUMIFS('Sales receipt((當天)'!K:K,'Sales receipt((當天)'!A:A,'Sales receipt((當天)'!A7,'Sales receipt((當天)'!B:B,'Sales receipt((當天)'!B4,'Sales receipt((當天)'!G:G,'Sales receipt((當天)'!G2)","v":0},{"$f":"SUMIFS('Sales receipt((當天)'!J:J,'Sales receipt((當天)'!A:A,'Sales receipt((當天)'!A7,'Sales receipt((當天)'!B:B,'Sales receipt((當天)'!B4,'Sales receipt((當天)'!G:G,'Sales receipt((當天)'!G2)","v":0},{"$f":"SUMIFS('Sales receipt((當天)'!K:K,'Sales receipt((當天)'!A:A,'Sales receipt((當天)'!A6,'Sales receipt((當天)'!B:B,'Sales receipt((當天)'!B4,'Sales receipt((當天)'!G:G,'Sales receipt((當天)'!G2)","v":0},{"$f":"SUMIFS('Sales receipt((當天)'!J:J,'Sales receipt((當天)'!A:A,'Sales receipt((當天)'!A6,'Sales receipt((當天)'!B:B,'Sales receipt((當天)'!B4,'Sales receipt((當天)'!G:G,'Sales receipt((當天)'!G2)","v":0},{"$f":"SUMIFS('Sales receipt((當天)'!K:K,'Sales receipt((當天)'!A:A,'Sales receipt((當天)'!A8,'Sales receipt((當天)'!B:B,'Sales receipt((當天)'!B4,'Sales receipt((當天)'!G:G,'Sales receipt((當天)'!G2)","v":969},{"$f":"SUMIFS('Sales receipt((當天)'!J:J,'Sales receipt((當天)'!A:A,'Sales receipt((當天)'!A8,'Sales receipt((當天)'!B:B,'Sales receipt((當天)'!B4,'Sales receipt((當天)'!G:G,'Sales receipt((當天)'!G2)","v":1},{"$f":"SUMIFS('Sales receipt((當天)'!K:K,'Sales receipt((當天)'!A:A,'Sales receipt((當天)'!A4,'Sales receipt((當天)'!B:B,'Sales receipt((當天)'!B4,'Sales receipt((當天)'!G:G,'Sales receipt((當天)'!G2)","v":0},{"$f":"SUMIFS('Sales receipt((當天)'!J:J,'Sales receipt((當天)'!A:A,'Sales receipt((當天)'!A4,'Sales receipt((當天)'!B:B,'Sales receipt((當天)'!B4,'Sales receipt((當天)'!G:G,'Sales receipt((當天)'!G2)","v":0},{"$f":"SUMIFS('Sales receipt((當天)'!K:K,'Sales receipt((當天)'!A:A,'Sales receipt((當天)'!A5,'Sales receipt((當天)'!B:B,'Sales receipt((當天)'!B4,'Sales receipt((當天)'!G:G,'Sales receipt((當天)'!G2)","v":0},{"$f":"SUMIFS('Sales receipt((當天)'!J:J,'Sales receipt((當天)'!A:A,'Sales receipt((當天)'!A5,'Sales receipt((當天)'!B:B,'Sales receipt((當天)'!B4,'Sales receipt((當天)'!G:G,'Sales receipt((當天)'!G2)","v":0}]
["GOLF",{"$f":"SUMIFS('Sales receipt((當天)'!K:K,'Sales receipt((當天)'!A:A,'Sales receipt((當天)'!A2,'Sales receipt((當天)'!B:B,'Sales receipt((當天)'!B4,'Sales receipt((當天)'!G:G,'Sales receipt((當天)'!G8)","v":0},{"$f":"SUMIFS('Sales receipt((當天)'!J:J,'Sales receipt((當天)'!A:A,'Sales receipt((當天)'!A2,'Sales receipt((當天)'!B:B,'Sales receipt((當天)'!B4,'Sales receipt((當天)'!G:G,'Sales receipt((當天)'!G8)","v":0},{"$f":"SUMIFS('Sales receipt((當天)'!K:K,'Sales receipt((當天)'!A:A,'Sales receipt((當天)'!A3,'Sales receipt((當天)'!B:B,'Sales receipt((當天)'!B4,'Sales receipt((當天)'!G:G,'Sales receipt((當天)'!G8)","v":1376},{"$f":"SUMIFS('Sales receipt((當天)'!J:J,'Sales receipt((當天)'!A:A,'Sales receipt((當天)'!A3,'Sales receipt((當天)'!B:B,'Sales receipt((當天)'!B4,'Sales receipt((當天)'!G:G,'Sales receipt((當天)'!G8)","v":1},{"$f":"SUMIFS('Sales receipt((當天)'!K:K,'Sales receipt((當天)'!A:A,'Sales receipt((當天)'!A7,'Sales receipt((當天)'!B:B,'Sales receipt((當天)'!B4,'Sales receipt((當天)'!G:G,'Sales receipt((當天)'!G8)","v":0},{"$f":"SUMIFS('Sales receipt((當天)'!J:J,'Sales receipt((當天)'!A:A,'Sales receipt((當天)'!A7,'Sales receipt((當天)'!B:B,'Sales receipt((當天)'!B4,'Sales receipt((當天)'!G:G,'Sales receipt((當天)'!G8)","v":0},{"$f":"SUMIFS('Sales receipt((當天)'!K:K,'Sales receipt((當天)'!A:A,'Sales receipt((當天)'!A6,'Sales receipt((當天)'!B:B,'Sales receipt((當天)'!B4,'Sales receipt((當天)'!G:G,'Sales receipt((當天)'!G8)","v":1360},{"$f":"SUMIFS('Sales receipt((當天)'!J:J,'Sales receipt((當天)'!A:A,'Sales receipt((當天)'!A6,'Sales receipt((當天)'!B:B,'Sales receipt((當天)'!B4,'Sales receipt((當天)'!G:G,'Sales receipt((當天)'!G8)","v":1},{"$f":"SUMIFS('Sales receipt((當天)'!K:K,'Sales receipt((當天)'!A:A,'Sales receipt((當天)'!A8,'Sales receipt((當天)'!B:B,'Sales receipt((當天)'!B4,'Sales receipt((當天)'!G:G,'Sales receipt((當天)'!G8)","v":8481},{"$f":"SUMIFS('Sales receipt((當天)'!J:J,'Sales receipt((當天)'!A:A,'Sales receipt((當天)'!A8,'Sales receipt((當天)'!B:B,'Sales receipt((當天)'!B4,'Sales receipt((當天)'!G:G,'Sales receipt((當天)'!G8)","v":5},{"$f":"SUMIFS('Sales receipt((當天)'!K:K,'Sales receipt((當天)'!A:A,'Sales receipt((當天)'!A4,'Sales receipt((當天)'!B:B,'Sales receipt((當天)'!B4,'Sales receipt((當天)'!G:G,'Sales receipt((當天)'!G8)","v":0},{"$f":"SUMIFS('Sales receipt((當天)'!J:J,'Sales receipt((當天)'!A:A,'Sales receipt((當天)'!A4,'Sales receipt((當天)'!B:B,'Sales receipt((當天)'!B4,'Sales receipt((當天)'!G:G,'Sales receipt((當天)'!G8)","v":0},{"$f":"SUMIFS('Sales receipt((當天)'!K:K,'Sales receipt((當天)'!A:A,'Sales receipt((當天)'!A5,'Sales receipt((當天)'!B:B,'Sales receipt((當天)'!B4,'Sales receipt((當天)'!G:G,'Sales receipt((當天)'!G8)","v":0},{"$f":"SUMIFS('Sales receipt((當天)'!J:J,'Sales receipt((當天)'!A:A,'Sales receipt((當天)'!A5,'Sales receipt((當天)'!B:B,'Sales receipt((當天)'!B4,'Sales receipt((當天)'!G:G,'Sales receipt((當天)'!G8)","v":0}]
["EXPLORE",{"$f":"SUMIFS('Sales receipt((當天)'!K:K,'Sales receipt((當天)'!A:A,'Sales receipt((當天)'!A2,'Sales receipt((當天)'!B:B,'Sales receipt((當天)'!B4,'Sales receipt((當天)'!G:G,'Sales receipt((當天)'!G4)","v":0},{"$f":"SUMIFS('Sales receipt((當天)'!J:J,'Sales receipt((當天)'!A:A,'Sales receipt((當天)'!A2,'Sales receipt((當天)'!B:B,'Sales receipt((當天)'!B4,'Sales receipt((當天)'!G:G,'Sales receipt((當天)'!G4)","v":0},{"$f":"SUMIFS('Sales receipt((當天)'!K:K,'Sales receipt((當天)'!A:A,'Sales receipt((當天)'!A3,'Sales receipt((當天)'!B:B,'Sales receipt((當天)'!B4,'Sales receipt((當天)'!G:G,'Sales receipt((當天)'!G4)","v":3343},{"$f":"SUMIFS('Sales receipt((當天)'!J:J,'Sales receipt((當天)'!A:A,'Sales receipt((當天)'!A3,'Sales receipt((當天)'!B:B,'Sales receipt((當天)'!B4,'Sales receipt((當天)'!G:G,'Sales receipt((當天)'!G4)","v":1},{"$f":"SUMIFS('Sales receipt((當天)'!K:K,'Sales receipt((當天)'!A:A,'Sales receipt((當天)'!A7,'Sales receipt((當天)'!B:B,'Sales receipt((當天)'!B4,'Sales receipt((當天)'!G:G,'Sales receipt((當天)'!G4)","v":0},{"$f":"SUMIFS('Sales receipt((當天)'!J:J,'Sales receipt((當天)'!A:A,'Sales receipt((當天)'!A7,'Sales receipt((當天)'!B:B,'Sales receipt((當天)'!B4,'Sales receipt((當天)'!G:G,'Sales receipt((當天)'!G4)","v":0},{"$f":"SUMIFS('Sales receipt((當天)'!K:K,'Sales receipt((當天)'!A:A,'Sales receipt((當天)'!A6,'Sales receipt((當天)'!B:B,'Sales receipt((當天)'!B4,'Sales receipt((當天)'!G:G,'Sales receipt((當天)'!G4)","v":3304},{"$f":"SUMIFS('Sales receipt((當天)'!J:J,'Sales receipt((當天)'!A:A,'Sales receipt((當天)'!A6,'Sales receipt((當天)'!B:B,'Sales receipt((當天)'!B4,'Sales receipt((當天)'!G:G,'Sales receipt((當天)'!G4)","v":1},{"$f":"SUMIFS('Sales receipt((當天)'!K:K,'Sales receipt((當天)'!A:A,'Sales receipt((當天)'!A8,'Sales receipt((當天)'!B:B,'Sales receipt((當天)'!B4,'Sales receipt((當天)'!G:G,'Sales receipt((當天)'!G4)","v":0},{"$f":"SUMIFS('Sales receipt((當天)'!J:J,'Sales receipt((當天)'!A:A,'Sales receipt((當天)'!A8,'Sales receipt((當天)'!B:B,'Sales receipt((當天)'!B4,'Sales receipt((當天)'!G:G,'Sales receipt((當天)'!G4)","v":0},{"$f":"SUMIFS('Sales receipt((當天)'!K:K,'Sales receipt((當天)'!A:A,'Sales receipt((當天)'!A4,'Sales receipt((當天)'!B:B,'Sales receipt((當天)'!B4,'Sales receipt((當天)'!G:G,'Sales receipt((當天)'!G4)","v":0},{"$f":"SUMIFS('Sales receipt((當天)'!J:J,'Sales receipt((當天)'!A:A,'Sales receipt((當天)'!A4,'Sales receipt((當天)'!B:B,'Sales receipt((當天)'!B4,'Sales receipt((當天)'!G:G,'Sales receipt((當天)'!G4)","v":0},{"$f":"SUMIFS('Sales receipt((當天)'!K:K,'Sales receipt((當天)'!A:A,'Sales receipt((當天)'!A5,'Sales receipt((當天)'!B:B,'Sales receipt((當天)'!B4,'Sales receipt((當天)'!G:G,'Sales receipt((當天)'!G4)","v":0},{"$f":"SUMIFS('Sales receipt((當天)'!J:J,'Sales receipt((當天)'!A:A,'Sales receipt((當天)'!A5,'Sales receipt((當天)'!B:B,'Sales receipt((當天)'!B4,'Sales receipt((當天)'!G:G,'Sales receipt((當天)'!G4)","v":0}]
["TENNIS",{"$f":"SUMIFS('Sales receipt((當天)'!K:K,'Sales receipt((當天)'!A:A,'Sales receipt((當天)'!A2,'Sales receipt((當天)'!B:B,'Sales receipt((當天)'!B4,'Sales receipt((當天)'!G:G,'Sales receipt((當天)'!G16)","v":0},{"$f":"SUMIFS('Sales receipt((當天)'!J:J,'Sales receipt((當天)'!A:A,'Sales receipt((當天)'!A2,'Sales receipt((當天)'!B:B,'Sales receipt((當天)'!B4,'Sales receipt((當天)'!G:G,'Sales receipt((當天)'!G16)","v":0},{"$f":"SUMIFS('Sales receipt((當天)'!K:K,'Sales receipt((當天)'!A:A,'Sales receipt((當天)'!A3,'Sales receipt((當天)'!B:B,'Sales receipt((當天)'!B4,'Sales receipt((當天)'!G:G,'Sales receipt((當天)'!G16)","v":0},{"$f":"SUMIFS('Sales receipt((當天)'!J:J,'Sales receipt((當天)'!A:A,'Sales receipt((當天)'!A3,'Sales receipt((當天)'!B:B,'Sales receipt((當天)'!B4,'Sales receipt((當天)'!G:G,'Sales receipt((當天)'!G16)","v":0},{"$f":"SUMIFS('Sales receipt((當天)'!K:K,'Sales receipt((當天)'!A:A,'Sales receipt((當天)'!A7,'Sales receipt((當天)'!B:B,'Sales receipt((當天)'!B4,'Sales receipt((當天)'!G:G,'Sales receipt((當天)'!G16)","v":0},{"$f":"SUMIFS('Sales receipt((當天)'!J:J,'Sales receipt((當天)'!A:A,'Sales receipt((當天)'!A7,'Sales receipt((當天)'!B:B,'Sales receipt((當天)'!B4,'Sales receipt((當天)'!G:G,'Sales receipt((當天)'!G16)","v":0},{"$f":"SUMIFS('Sales receipt((當天)'!K:K,'Sales receipt((當天)'!A:A,'Sales receipt((當天)'!A6,'Sales receipt((當天)'!B:B,'Sales receipt((當天)'!B4,'Sales receipt((當天)'!G:G,'Sales receipt((當天)'!G16)","v":0},{"$f":"SUMIFS('Sales receipt((當天)'!J:J,'Sales receipt((當天)'!A:A,'Sales receipt((當天)'!A6,'Sales receipt((當天)'!B:B,'Sales receipt((當天)'!B4,'Sales receipt((當天)'!G:G,'Sales receipt((當天)'!G16)","v":0},{"$f":"SUMIFS('Sales receipt((當天)'!K:K,'Sales receipt((當天)'!A:A,'Sales receipt((當天)'!A8,'Sales receipt((當天)'!B:B,'Sales receipt((當天)'!B4,'Sales receipt((當天)'!G:G,'Sales receipt((當天)'!G16)","v":0},{"$f":"SUMIFS('Sales receipt((當天)'!J:J,'Sales receipt((當天)'!A:A,'Sales receipt((當天)'!A8,'Sales receipt((當天)'!B:B,'Sales receipt((當天)'!B4,'Sales receipt((當天)'!G:G,'Sales receipt((當天)'!G16)","v":0},{"$f":"SUMIFS('Sales receipt((當天)'!K:K,'Sales receipt((當天)'!A:A,'Sales receipt((當天)'!A4,'Sales receipt((當天)'!B:B,'Sales receipt((當天)'!B4,'Sales receipt((當天)'!G:G,'Sales receipt((當天)'!G16)","v":0},{"$f":"SUMIFS('Sales receipt((當天)'!J:J,'Sales receipt((當天)'!A:A,'Sales receipt((當天)'!A4,'Sales receipt((當天)'!B:B,'Sales receipt((當天)'!B4,'Sales receipt((當天)'!G:G,'Sales receipt((當天)'!G16)","v":0},{"$f":"SUMIFS('Sales receipt((當天)'!K:K,'Sales receipt((當天)'!A:A,'Sales receipt((當天)'!A5,'Sales receipt((當天)'!B:B,'Sales receipt((當天)'!B4,'Sales receipt((當天)'!G:G,'Sales receipt((當天)'!G16)","v":0},{"$f":"SUMIFS('Sales receipt((當天)'!J:J,'Sales receipt((當天)'!A:A,'Sales receipt((當天)'!A5,'Sales receipt((當天)'!B:B,'Sales receipt((當天)'!B4,'Sales receipt((當天)'!G:G,'Sales receipt((當天)'!G16)","v":0}]
[]
["FOT",{"$f":"SUMIFS('Sales receipt((當天)'!K:K,'Sales receipt((當天)'!A:A,'Sales receipt((當天)'!A2,'Sales receipt((當天)'!B:B,'Sales receipt((當天)'!B6)","v":4080},{"$f":"SUMIFS('Sales receipt((當天)'!J:J,'Sales receipt((當天)'!A:A,'Sales receipt((當天)'!A2,'Sales receipt((當天)'!B:B,'Sales receipt((當天)'!B6)","v":4},{"$f":"SUMIFS('Sales receipt((當天)'!K:K,'Sales receipt((當天)'!A:A,'Sales receipt((當天)'!A3,'Sales receipt((當天)'!B:B,'Sales receipt((當天)'!B6)","v":5028},{"$f":"SUMIFS('Sales receipt((當天)'!J:J,'Sales receipt((當天)'!A:A,'Sales receipt((當天)'!A3,'Sales receipt((當天)'!B:B,'Sales receipt((當天)'!B6)","v":6},{"$f":"SUMIFS('Sales receipt((當天)'!K:K,'Sales receipt((當天)'!A:A,'Sales receipt((當天)'!A7,'Sales receipt((當天)'!B:B,'Sales receipt((當天)'!B6)","v":0},{"$f":"SUMIFS('Sales receipt((當天)'!J:J,'Sales receipt((當天)'!A:A,'Sales receipt((當天)'!A7,'Sales receipt((當天)'!B:B,'Sales receipt((當天)'!B6)","v":0},{"$f":"SUMIFS('Sales receipt((當天)'!K:K,'Sales receipt((當天)'!A:A,'Sales receipt((當天)'!A6,'Sales receipt((當天)'!B:B,'Sales receipt((當天)'!B6)","v":2621},{"$f":"SUMIFS('Sales receipt((當天)'!J:J,'Sales receipt((當天)'!A:A,'Sales receipt((當天)'!A6,'Sales receipt((當天)'!B:B,'Sales receipt((當天)'!B6)","v":3},{"$f":"SUMIFS('Sales receipt((當天)'!K:K,'Sales receipt((當天)'!A:A,'Sales receipt((當天)'!A8,'Sales receipt((當天)'!B:B,'Sales receipt((當天)'!B6)","v":7380},{"$f":"SUMIFS('Sales receipt((當天)'!J:J,'Sales receipt((當天)'!A:A,'Sales receipt((當天)'!A8,'Sales receipt((當天)'!B:B,'Sales receipt((當天)'!B6)","v":9},{"$f":"SUMIFS('Sales receipt((當天)'!K:K,'Sales receipt((當天)'!A:A,'Sales receipt((當天)'!A4,'Sales receipt((當天)'!B:B,'Sales receipt((當天)'!B6)","v":0},{"$f":"SUMIFS('Sales receipt((當天)'!J:J,'Sales receipt((當天)'!A:A,'Sales receipt((當天)'!A4,'Sales receipt((當天)'!B:B,'Sales receipt((當天)'!B6)","v":0},{"$f":"SUMIFS('Sales receipt((當天)'!K:K,'Sales receipt((當天)'!A:A,'Sales receipt((當天)'!A5,'Sales receipt((當天)'!B:B,'Sales receipt((當天)'!B6)","v":0},{"$f":"SUMIFS('Sales receipt((當天)'!J:J,'Sales receipt((當天)'!A:A,'Sales receipt((當天)'!A5,'Sales receipt((當天)'!B:B,'Sales receipt((當天)'!B6)","v":0}]
["M",{"$f":"SUMIFS('Sales receipt((當天)'!K:K,'Sales receipt((當天)'!A:A,'Sales receipt((當天)'!A2,'Sales receipt((當天)'!B:B,'Sales receipt((當天)'!B6,'Sales receipt((當天)'!H:H,'Sales receipt((當天)'!H3)","v":880},{"$f":"SUMIFS('Sales receipt((當天)'!J:J,'Sales receipt((當天)'!A:A,'Sales receipt((當天)'!A2,'Sales receipt((當天)'!B:B,'Sales receipt((當天)'!B6,'Sales receipt((當天)'!H:H,'Sales receipt((當天)'!H3)","v":1},{"$f":"SUMIFS('Sales receipt((當天)'!K:K,'Sales receipt((當天)'!A:A,'Sales receipt((當天)'!A3,'Sales receipt((當天)'!B:B,'Sales receipt((當天)'!B6,'Sales receipt((當天)'!H:H,'Sales receipt((當天)'!H3)","v":4024},{"$f":"SUMIFS('Sales receipt((當天)'!J:J,'Sales receipt((當天)'!A:A,'Sales receipt((當天)'!A3,'Sales receipt((當天)'!B:B,'Sales receipt((當天)'!B6,'Sales receipt((當天)'!H:H,'Sales receipt((當天)'!H3)","v":5},{"$f":"SUMIFS('Sales receipt((當天)'!K:K,'Sales receipt((當天)'!A:A,'Sales receipt((當天)'!A7,'Sales receipt((當天)'!B:B,'Sales receipt((當天)'!B6,'Sales receipt((當天)'!H:H,'Sales receipt((當天)'!H3)","v":0},{"$f":"SUMIFS('Sales receipt((當天)'!J:J,'Sales receipt((當天)'!A:A,'Sales receipt((當天)'!A7,'Sales receipt((當天)'!B:B,'Sales receipt((當天)'!B6,'Sales receipt((當天)'!H:H,'Sales receipt((當天)'!H3)","v":0},{"$f":"SUMIFS('Sales receipt((當天)'!K:K,'Sales receipt((當天)'!A:A,'Sales receipt((當天)'!A6,'Sales receipt((當天)'!B:B,'Sales receipt((當天)'!B6,'Sales receipt((當天)'!H:H,'Sales receipt((當天)'!H3)","v":1828},{"$f":"SUMIFS('Sales receipt((當天)'!J:J,'Sales receipt((當天)'!A:A,'Sales receipt((當天)'!A6,'Sales receipt((當天)'!B:B,'Sales receipt((當天)'!B6,'Sales receipt((當天)'!H:H,'Sales receipt((當天)'!H3)","v":2},{"$f":"SUMIFS('Sales receipt((當天)'!K:K,'Sales receipt((當天)'!A:A,'Sales receipt((當天)'!A8,'Sales receipt((當天)'!B:B,'Sales receipt((當天)'!B6,'Sales receipt((當天)'!H:H,'Sales receipt((當天)'!H3)","v":4168},{"$f":"SUMIFS('Sales receipt((當天)'!J:J,'Sales receipt((當天)'!A:A,'Sales receipt((當天)'!A8,'Sales receipt((當天)'!B:B,'Sales receipt((當天)'!B6,'Sales receipt((當天)'!H:H,'Sales receipt((當天)'!H3)","v":5},{"$f":"SUMIFS('Sales receipt((當天)'!K:K,'Sales receipt((當天)'!A:A,'Sales receipt((當天)'!A4,'Sales receipt((當天)'!B:B,'Sales receipt((當天)'!B6,'Sales receipt((當天)'!H:H,'Sales receipt((當天)'!H3)","v":0},{"$f":"SUMIFS('Sales receipt((當天)'!J:J,'Sales receipt((當天)'!A:A,'Sales receipt((當天)'!A4,'Sales receipt((當天)'!B:B,'Sales receipt((當天)'!B6,'Sales receipt((當天)'!H:H,'Sales receipt((當天)'!H3)","v":0},{"$f":"SUMIFS('Sales receipt((當天)'!K:K,'Sales receipt((當天)'!A:A,'Sales receipt((當天)'!A5,'Sales receipt((當天)'!B:B,'Sales receipt((當天)'!B6,'Sales receipt((當天)'!H:H,'Sales receipt((當天)'!H3)","v":0},{"$f":"SUMIFS('Sales receipt((當天)'!J:J,'Sales receipt((當天)'!A:A,'Sales receipt((當天)'!A5,'Sales receipt((當天)'!B:B,'Sales receipt((當天)'!B6,'Sales receipt((當天)'!H:H,'Sales receipt((當天)'!H3)","v":0}]
["F",{"$f":"SUMIFS('Sales receipt((當天)'!K:K,'Sales receipt((當天)'!A:A,'Sales receipt((當天)'!A2,'Sales receipt((當天)'!B:B,'Sales receipt((當天)'!B6,'Sales receipt((當天)'!H:H,'Sales receipt((當天)'!H2)","v":3200},{"$f":"SUMIFS('Sales receipt((當天)'!J:J,'Sales receipt((當天)'!A:A,'Sales receipt((當天)'!A2,'Sales receipt((當天)'!B:B,'Sales receipt((當天)'!B6,'Sales receipt((當天)'!H:H,'Sales receipt((當天)'!H2)","v":3},{"$f":"SUMIFS('Sales receipt((當天)'!K:K,'Sales receipt((當天)'!A:A,'Sales receipt((當天)'!A3,'Sales receipt((當天)'!B:B,'Sales receipt((當天)'!B6,'Sales receipt((當天)'!H:H,'Sales receipt((當天)'!H2)","v":1004},{"$f":"SUMIFS('Sales receipt((當天)'!J:J,'Sales receipt((當天)'!A:A,'Sales receipt((當天)'!A3,'Sales receipt((當天)'!B:B,'Sales receipt((當天)'!B6,'Sales receipt((當天)'!H:H,'Sales receipt((當天)'!H2)","v":1},{"$f":"SUMIFS('Sales receipt((當天)'!K:K,'Sales receipt((當天)'!A:A,'Sales receipt((當天)'!A7,'Sales receipt((當天)'!B:B,'Sales receipt((當天)'!B6,'Sales receipt((當天)'!H:H,'Sales receipt((當天)'!H2)","v":0},{"$f":"SUMIFS('Sales receipt((當天)'!J:J,'Sales receipt((當天)'!A:A,'Sales receipt((當天)'!A7,'Sales receipt((當天)'!B:B,'Sales receipt((當天)'!B6,'Sales receipt((當天)'!H:H,'Sales receipt((當天)'!H2)","v":0},{"$f":"SUMIFS('Sales receipt((當天)'!K:K,'Sales receipt((當天)'!A:A,'Sales receipt((當天)'!A6,'Sales receipt((當天)'!B:B,'Sales receipt((當天)'!B6,'Sales receipt((當天)'!H:H,'Sales receipt((當天)'!H2)","v":793},{"$f":"SUMIFS('Sales receipt((當天)'!J:J,'Sales receipt((當天)'!A:A,'Sales receipt((當天)'!A6,'Sales receipt((當天)'!B:B,'Sales receipt((當天)'!B6,'Sales receipt((當天)'!H:H,'Sales receipt((當天)'!H2)","v":1},{"$f":"SUMIFS('Sales receipt((當天)'!K:K,'Sales receipt((當天)'!A:A,'Sales receipt((當天)'!A8,'Sales receipt((當天)'!B:B,'Sales receipt((當天)'!B6,'Sales receipt((當天)'!H:H,'Sales receipt((當天)'!H2)","v":3212},{"$f":"SUMIFS('Sales receipt((當天)'!J:J,'Sales receipt((當天)'!A:A,'Sales receipt((當天)'!A8,'Sales receipt((當天)'!B:B,'Sales receipt((當天)'!B6,'Sales receipt((當天)'!H:H,'Sales receipt((當天)'!H2)","v":4},{"$f":"SUMIFS('Sales receipt((當天)'!K:K,'Sales receipt((當天)'!A:A,'Sales receipt((當天)'!A4,'Sales receipt((當天)'!B:B,'Sales receipt((當天)'!B6,'Sales receipt((當天)'!H:H,'Sales receipt((當天)'!H2)","v":0},{"$f":"SUMIFS('Sales receipt((當天)'!J:J,'Sales receipt((當天)'!A:A,'Sales receipt((當天)'!A4,'Sales receipt((當天)'!B:B,'Sales receipt((當天)'!B6,'Sales receipt((當天)'!H:H,'Sales receipt((當天)'!H2)","v":0},{"$f":"SUMIFS('Sales receipt((當天)'!K:K,'Sales receipt((當天)'!A:A,'Sales receipt((當天)'!A5,'Sales receipt((當天)'!B:B,'Sales receipt((當天)'!B6,'Sales receipt((當天)'!H:H,'Sales receipt((當天)'!H2)","v":0},{"$f":"SUMIFS('Sales receipt((當天)'!J:J,'Sales receipt((當天)'!A:A,'Sales receipt((當天)'!A5,'Sales receipt((當天)'!B:B,'Sales receipt((當天)'!B6,'Sales receipt((當天)'!H:H,'Sales receipt((當天)'!H2)","v":0}]
["ACC",{"$f":"SUMIFS('Sales receipt((當天)'!K:K,'Sales receipt((當天)'!A:A,'Sales receipt((當天)'!A2,'Sales receipt((當天)'!B:B,'Sales receipt((當天)'!B5)","v":130},{"$f":"SUMIFS('Sales receipt((當天)'!J:J,'Sales receipt((當天)'!A:A,'Sales receipt((當天)'!A2,'Sales receipt((當天)'!B:B,'Sales receipt((當天)'!B5)","v":2},{"$f":"SUMIFS('Sales receipt((當天)'!K:K,'Sales receipt((當天)'!A:A,'Sales receipt((當天)'!A3,'Sales receipt((當天)'!B:B,'Sales receipt((當天)'!B5)","v":120},{"$f":"SUMIFS('Sales receipt((當天)'!J:J,'Sales receipt((當天)'!A:A,'Sales receipt((當天)'!A3,'Sales receipt((當天)'!B:B,'Sales receipt((當天)'!B5)","v":2},{"$f":"SUMIFS('Sales receipt((當天)'!K:K,'Sales receipt((當天)'!A:A,'Sales receipt((當天)'!A7,'Sales receipt((當天)'!B:B,'Sales receipt((當天)'!B5)","v":0},{"$f":"SUMIFS('Sales receipt((當天)'!J:J,'Sales receipt((當天)'!A:A,'Sales receipt((當天)'!A7,'Sales receipt((當天)'!B:B,'Sales receipt((當天)'!B5)","v":0},{"$f":"SUMIFS('Sales receipt((當天)'!K:K,'Sales receipt((當天)'!A:A,'Sales receipt((當天)'!A6,'Sales receipt((當天)'!B:B,'Sales receipt((當天)'!B5)","v":612},{"$f":"SUMIFS('Sales receipt((當天)'!J:J,'Sales receipt((當天)'!A:A,'Sales receipt((當天)'!A6,'Sales receipt((當天)'!B:B,'Sales receipt((當天)'!B5)","v":1},{"$f":"SUMIFS('Sales receipt((當天)'!K:K,'Sales receipt((當天)'!A:A,'Sales receipt((當天)'!A8,'Sales receipt((當天)'!B:B,'Sales receipt((當天)'!B5)","v":60},{"$f":"SUMIFS('Sales receipt((當天)'!J:J,'Sales receipt((當天)'!A:A,'Sales receipt((當天)'!A8,'Sales receipt((當天)'!B:B,'Sales receipt((當天)'!B5)","v":1},{"$f":"SUMIFS('Sales receipt((當天)'!K:K,'Sales receipt((當天)'!A:A,'Sales receipt((當天)'!A4,'Sales receipt((當天)'!B:B,'Sales receipt((當天)'!B5)","v":0},{"$f":"SUMIFS('Sales receipt((當天)'!J:J,'Sales receipt((當天)'!A:A,'Sales receipt((當天)'!A4,'Sales receipt((當天)'!B:B,'Sales receipt((當天)'!B5)","v":0},{"$f":"SUMIFS('Sales receipt((當天)'!K:K,'Sales receipt((當天)'!A:A,'Sales receipt((當天)'!A5,'Sales receipt((當天)'!B:B,'Sales receipt((當天)'!B5)","v":867},{"$f":"SUMIFS('Sales receipt((當天)'!J:J,'Sales receipt((當天)'!A:A,'Sales receipt((當天)'!A5,'Sales receipt((當天)'!B:B,'Sales receipt((當天)'!B5)","v":2}]
[]
[null,"M0989 Susanna",null,"M2172 Janet",null,"M2801 Fanny",null,"M2798 Ryan",null,"M2902 Carmen",{"$nulls":3},"\tM1436 Khaki"]
[null,"Sales","Qty","Sales","Qty","Sales","Qty","Sales","Qty","Sales","Qty","Sales","Qty","Sales","Qty"]
["內衣類",{"$f":"SUMIFS('Sales receipt((當天)'!K:K,'Sales receipt((當天)'!A:A,'Sales receipt((當天)'!A2,'Sales receipt((當天)'!B:B,'Sales receipt((當天)'!B4,'Sales receipt((當天)'!C:C,'Sales receipt((當天)'!C2)","v":0},{"$f":"SUMIFS('Sales receipt((當天)'!J:J,'Sales receipt((當天)'!A:A,'Sales receipt((當天)'!A2,'Sales receipt((當天)'!B:B,'Sales receipt((當天)'!B4,'Sales receipt((當天)'!C:C,'Sales receipt((當天)'!C2)","v":0},{"$f":"SUMIFS('Sales receipt((當天)'!K:K,'Sales receipt((當天)'!A:A,'Sales receipt((當天)'!A3,'Sales receipt((當天)'!B:B,'Sales receipt((當天)'!B4,'Sales receipt((當天)'!C:C,'Sales receipt((當天)'!C2)","v":0},{"$f":"SUMIFS('Sales receipt((當天)'!J:J,'Sales receipt((當天)'!A:A,'Sales receipt((當天)'!A3,'Sales receipt((當天)'!B:B,'Sales receipt((當天)'!B4,'Sales receipt((當天)'!C:C,'Sales receipt((當天)'!C2)","v":0},{"$f":"SUMIFS('Sales receipt((當天)'!K:K,'Sales receipt((當天)'!A:A,'Sales receipt((當天)'!A7,'Sales receipt((當天)'!B:B,'Sales receipt((當天)'!B4,'Sales receipt((當天)'!C:C,'Sales receipt((當天)'!C2)","v":0},{"$f":"SUMIFS('Sales receipt((當天)'!J:J,'Sales receipt((當天)'!A:A,'Sales receipt((當天)'!A7,'Sales receipt((當天)'!B:B,'Sales receipt((當天)'!B4,'Sales receipt((當天)'!C:C,'Sales receipt((當天)'!C2)","v":0},{"$f":"SUMIFS('Sales receipt((當天)'!K:K,'Sales receipt((當天)'!A:A,'Sales receipt((當天)'!A6,'Sales receipt((當天)'!B:B,'Sales receipt((當天)'!B4,'Sales receipt((當天)'!C:C,'Sales receipt((當天)'!C2)","v":0},{"$f":"SUMIFS('Sales receipt((當天)'!J:J,'Sales receipt((當天)'!A:A,'Sales receipt((當天)'!A6,'Sales receipt((當天)'!B:B,'Sales receipt((當天)'!B4,'Sales receipt((當天)'!C:C,'Sales receipt((當天)'!C2)","v":0},{"$f":"SUMIFS('Sales receipt((當天)'!K:K,'Sales receipt((當天)'!A:A,'Sales receipt((當天)'!A8,'Sales receipt((當天)'!B:B,'Sales receipt((當天)'!B4,'Sales receipt((當天)'!C:C,'Sales receipt((當天)'!C2)","v":0},{"$f":"SUMIFS('Sales receipt((當天)'!J:J,'Sales receipt((當天)'!A:A,'Sales receipt((當天)'!A8,'Sales receipt((當天)'!B:B,'Sales receipt((當天)'!B4,'Sales receipt((當天)'!C:C,'Sales receipt((當天)'!C2)","v":0},{"$f":"SUMIFS('Sales receipt((當天)'!K:K,'Sales receipt((當天)'!A:A,'Sales receipt((當天)'!A4,'Sales receipt((當天)'!B:B,'Sales receipt((當天)'!B4,'Sales receipt((當天)'!C:C,'Sales receipt((當天)'!C2)","v":0},{"$f":"SUMIFS('Sales receipt((當天)'!J:J,'Sales receipt((當天)'!A:A,'Sales receipt((當天)'!A4,'Sales receipt((當天)'!B:B,'Sales receipt((當天)'!B4,'Sales receipt((當天)'!C:C,'Sales receipt((當天)'!C2)","v":0},{"$f":"SUMIFS('Sales receipt((當天)'!K:K,'Sales receipt((當天)'!A:A,'Sales receipt((當天)'!A5,'Sales receipt((當天)'!B:B,'Sales receipt((當天)'!B4,'Sales receipt((當天)'!C:C,'Sales receipt((當天)'!C2)","v":0},{"$f":"SUMIFS('Sales receipt((當天)'!J:J,'Sales receipt((當天)'!A:A,'Sales receipt((當天)'!A5,'Sales receipt((當天)'!B:B,'Sales receipt((當天)'!B4,'Sales receipt((當天)'!C:C,'Sales receipt((當天)'!C2)","v":0}]
["內搭",{"$f":"SUMIFS('Sales receipt((當天)'!K:K,'Sales receipt((當天)'!A:A,'Sales receipt((當天)'!A2,'Sales receipt((當天)'!B:B,'Sales receipt((當天)'!B4,'Sales receipt((當天)'!C:C,'Sales receipt((當天)'!C3)","v":0},{"$f":"SUMIFS('Sales receipt((當天)'!J:J,'Sales receipt((當天)'!A:A,'Sales receipt((當天)'!A2,'Sales receipt((當天)'!B:B,'Sales receipt((當天)'!B4,'Sales receipt((當天)'!C:C,'Sales receipt((當天)'!C3)","v":0},{"$f":"SUMIFS('Sales receipt((當天)'!K:K,'Sales receipt((當天)'!A:A,'Sales receipt((當天)'!A3,'Sales receipt((當天)'!B:B,'Sales receipt((當天)'!B4,'Sales receipt((當天)'!C:C,'Sales receipt((當天)'!C3)","v":3117},{"$f":"SUMIFS('Sales receipt((當天)'!J:J,'Sales receipt((當天)'!A:A,'Sales receipt((當天)'!A3,'Sales receipt((當天)'!B:B,'Sales receipt((當天)'!B4,'Sales receipt((當天)'!C:C,'Sales receipt((當天)'!C3)","v":4},{"$f":"SUMIFS('Sales receipt((當天)'!K:K,'Sales receipt((當天)'!A:A,'Sales receipt((當天)'!A7,'Sales receipt((當天)'!B:B,'Sales receipt((當天)'!B4,'Sales receipt((當天)'!C:C,'Sales receipt((當天)'!C3)","v":0},{"$f":"SUMIFS('Sales receipt((當天)'!J:J,'Sales receipt((當天)'!A:A,'Sales receipt((當天)'!A7,'Sales receipt((當天)'!B:B,'Sales receipt((當天)'!B4,'Sales receipt((當天)'!C:C,'Sales receipt((當天)'!C3)","v":0},{"$f":"SUMIFS('Sales receipt((當天)'!K:K,'Sales receipt((當天)'!A:A,'Sales receipt((當天)'!A6,'Sales receipt((當天)'!B:B,'Sales receipt((當天)'!B4,'Sales receipt((當天)'!C:C,'Sales receipt((當天)'!C3)","v":3835},{"$f":"SUMIFS('Sales receipt((當天)'!J:J,'Sales receipt((當天)'!A:A,'Sales receipt((當天)'!A6,'Sales receipt((當天)'!B:B,'Sales receipt((當天)'!B4,'Sales receipt((當天)'!C:C,'Sales receipt((當天)'!C3)","v":4},{"$f":"SUMIFS('Sales receipt((當天)'!K:K,'Sales receipt((當天)'!A:A,'Sales receipt((當天)'!A8,'Sales receipt((當天)'!B:B,'Sales receipt((當天)'!B4,'Sales receipt((當天)'!C:C,'Sales receipt((當天)'!C3)","v":0},{"$f":"SUMIFS('Sales receipt((當天)'!J:J,'Sales receipt((當天)'!A:A,'Sales receipt((當天)'!A8,'Sales receipt((當天)'!B:B,'Sales receipt((當天)'!B4,'Sales receipt((當天)'!C:C,'Sales receipt((當天)'!C3)","v":0},{"$f":"SUMIFS('Sales receipt((當天)'!K:K,'Sales receipt((當天)'!A:A,'Sales receipt((當天)'!A4,'Sales receipt((當天)'!B:B,'Sales receipt((當天)'!B4,'Sales receipt((當天)'!C:C,'Sales receipt((當天)'!C3)","v":0},{"$f":"SUMIFS('Sales receipt((當天)'!J:J,'Sales receipt((當天)'!A:A,'Sales receipt((當天)'!A4,'Sales receipt((當天)'!B:B,'Sales receipt((當天)'!B4,'Sales receipt((當天)'!C:C,'Sales receipt((當天)'!C3)","v":0},{"$f":"SUMIFS('Sales receipt((當天)'!K:K,'Sales receipt((當天)'!A:A,'Sales receipt((當天)'!A5,'Sales receipt((當天)'!B:B,'Sales receipt((當天)'!B4,'Sales receipt((當天)'!C:C,'Sales receipt((當天)'!C3)","v":880},{"$f":"SUMIFS('Sales receipt((當天)'!J:J,'Sales receipt((當天)'!A:A,'Sales receipt((當天)'!A5,'Sales receipt((當天)'!B:B,'Sales receipt((當天)'!B4,'Sales receipt((當天)'!C:C,'Sales receipt((當天)'!C3)","v":1}]
["編織衫",{"$f":"SUMIFS('Sales receipt((當天)'!K:K,'Sales receipt((當天)'!A:A,'Sales receipt((當天)'!A2,'Sales receipt((當天)'!B:B,'Sales receipt((當天)'!B4,'Sales receipt((當天)'!C:C,'Sales receipt((當天)'!C13)","v":0},{"$f":"SUMIFS('Sales receipt((當天)'!J:J,'Sales receipt((當天)'!A:A,'Sales receipt((當天)'!A2,'Sales receipt((當天)'!B:B,'Sales receipt((當天)'!B4,'Sales receipt((當天)'!C:C,'Sales receipt((當天)'!C13)","v":0},{"$f":"SUMIFS('Sales receipt((當天)'!K:K,'Sales receipt((當天)'!A:A,'Sales receipt((當天)'!A3,'Sales receipt((當天)'!B:B,'Sales receipt((當天)'!B4,'Sales receipt((當天)'!C:C,'Sales receipt((當天)'!C13)","v":0},{"$f":"SUMIFS('Sales receipt((當天)'!J:J,'Sales receipt((當天)'!A:A,'Sales receipt((當天)'!A3,'Sales receipt((當天)'!B:B,'Sales receipt((當天)'!B4,'Sales receipt((當天)'!C:C,'Sales receipt((當天)'!C13)","v":0},{"$f":"SUMIFS('Sales receipt((當天)'!K:K,'Sales receipt((當天)'!A:A,'Sales receipt((當天)'!A7,'Sales receipt((當天)'!B:B,'Sales receipt((當天)'!B4,'Sales receipt((當天)'!C:C,'Sales receipt((當天)'!C13)","v":0},{"$f":"SUMIFS('Sales receipt((當天)'!J:J,'Sales receipt((當天)'!A:A,'Sales receipt((當天)'!A7,'Sales receipt((當天)'!B:B,'Sales receipt((當天)'!B4,'Sales receipt((當天)'!C:C,'Sales receipt((當天)'!C13)","v":0},{"$f":"SUMIFS('Sales receipt((當天)'!K:K,'Sales receipt((當天)'!A:A,'Sales receipt((當天)'!A6,'Sales receipt((當天)'!B:B,'Sales receipt((當天)'!B4,'Sales receipt((當天)'!C:C,'Sales receipt((當天)'!C13)","v":0},{"$f":"SUMIFS('Sales receipt((當天)'!J:J,'Sales receipt((當天)'!A:A,'Sales receipt((當天)'!A6,'Sales receipt((當天)'!B:B,'Sales receipt((當天)'!B4,'Sales receipt((當天)'!C:C,'Sales receipt((當天)'!C13)","v":0},{"$f":"SUMIFS('Sales receipt((當天)'!K:K,'Sales receipt((當天)'!A:A,'Sales receipt((當天)'!A8,'Sales receipt((當天)'!B:B,'Sales receipt((當天)'!B4,'Sales receipt((當天)'!C:C,'Sales receipt((當天)'!C13)","v":7560},{"$f":"SUMIFS('Sales receipt((當天)'!J:J,'Sales receipt((當天)'!A:A,'Sales receipt((當天)'!A8,'Sales receipt((當天)'!B:B,'Sales receipt((當天)'!B4,'Sales receipt((當天)'!C:C,'Sales receipt((當天)'!C13)","v":5},{"$f":"SUMIFS('Sales receipt((當天)'!K:K,'Sales receipt((當天)'!A:A,'Sales receipt((當天)'!A4,'Sales receipt((當天)'!B:B,'Sales receipt((當天)'!B4,'Sales receipt((當天)'!C:C,'Sales receipt((當天)'!C13)","v":0},{"$f":"SUMIFS('Sales receipt((當天)'!J:J,'Sales receipt((當天)'!A:A,'Sales receipt((當天)'!A4,'Sales receipt((當天)'!B:B,'Sales receipt((當天)'!B4,'Sales receipt((當天)'!C:C,'Sales receipt((當天)'!C13)","v":0},{"$f":"SUMIFS('Sales receipt((當天)'!K:K,'Sales receipt((當天)'!A:A,'Sales receipt((當天)'!A5,'Sales receipt((當天)'!B:B,'Sales receipt((當天)'!B4,'Sales receipt((當天)'!C:C,'Sales receipt((當天)'!C13)","v":0},{"$f":"SUMIFS('Sales receipt((當天)'!J:J,'Sales receipt((當天)'!A:A,'Sales receipt((當天)'!A5,'Sales receipt((當天)'!B:B,'Sales receipt((當天)'!B4,'Sales receipt((當天)'!C:C,'Sales receipt((當天)'!C13)","v":0}]
["襯衫",{"$f":"SUMIFS('Sales receipt((當天)'!K:K,'Sales receipt((當天)'!A:A,'Sales receipt((當天)'!A2,'Sales receipt((當天)'!B:B,'Sales receipt((當天)'!B4,'Sales receipt((當天)'!C:C,'Sales receipt((當天)'!C14)","v":0},{"$f":"SUMIFS('Sales receipt((當天)'!J:J,'Sales receipt((當天)'!A:A,'Sales receipt((當天)'!A2,'Sales receipt((當天)'!B:B,'Sales receipt((當天)'!B4,'Sales receipt((當天)'!C:C,'Sales receipt((當天)'!C14)","v":0},{"$f":"SUMIFS('Sales receipt((當天)'!K:K,'Sales receipt((當天)'!A:A,'Sales receipt((當天)'!A3,'Sales receipt((當天)'!B:B,'Sales receipt((當天)'!B4,'Sales receipt((當天)'!C:C,'Sales receipt((當天)'!C14)","v":0},{"$f":"SUMIFS('Sales receipt((當天)'!J:J,'Sales receipt((當天)'!A:A,'Sales receipt((當天)'!A3,'Sales receipt((當天)'!B:B,'Sales receipt((當天)'!B4,'Sales receipt((當天)'!C:C,'Sales receipt((當天)'!C14)","v":0},{"$f":"SUMIFS('Sales receipt((當天)'!K:K,'Sales receipt((當天)'!A:A,'Sales receipt((當天)'!A7,'Sales receipt((當天)'!B:B,'Sales receipt((當天)'!B4,'Sales receipt((當天)'!C:C,'Sales receipt((當天)'!C14)","v":0},{"$f":"SUMIFS('Sales receipt((當天)'!J:J,'Sales receipt((當天)'!A:A,'Sales receipt((當天)'!A7,'Sales receipt((當天)'!B:B,'Sales receipt((當天)'!B4,'Sales receipt((當天)'!C:C,'Sales receipt((當天)'!C14)","v":0},{"$f":"SUMIFS('Sales receipt((當天)'!K:K,'Sales receipt((當天)'!A:A,'Sales receipt((當天)'!A6,'Sales receipt((當天)'!B:B,'Sales receipt((當天)'!B4,'Sales receipt((當天)'!C:C,'Sales receipt((當天)'!C14)","v":0},{"$f":"SUMIFS('Sales receipt((當天)'!J:J,'Sales receipt((當天)'!A:A,'Sales receipt((當天)'!A6,'Sales receipt((當天)'!B:B,'Sales receipt((當天)'!B4,'Sales receipt((當天)'!C:C,'Sales receipt((當天)'!C14)","v":0},{"$f":"SUMIFS('Sales receipt((當天)'!K:K,'Sales receipt((當天)'!A:A,'Sales receipt((當天)'!A8,'Sales receipt((當天)'!B:B,'Sales receipt((當天)'!B4,'Sales receipt((當天)'!C:C,'Sales receipt((當天)'!C14)","v":0},{"$f":"SUMIFS('Sales receipt((當天)'!J:J,'Sales receipt((當天)'!A:A,'Sales receipt((當天)'!A8,'Sales receipt((當天)'!B:B,'Sales receipt((當天)'!B4,'Sales receipt((當天)'!C:C,'Sales receipt((當天)'!C14)","v":0},{"$f":"SUMIFS('Sales receipt((當天)'!K:K,'Sales receipt((當天)'!A:A,'Sales receipt((當天)'!A4,'Sales receipt((當天)'!B:B,'Sales receipt((當天)'!B4,'Sales receipt((當天)'!C:C,'Sales receipt((當天)'!C14)","v":0},{"$f":"SUMIFS('Sales receipt((當天)'!J:J,'Sales receipt((當天)'!A:A,'Sales receipt((當天)'!A4,'Sales receipt((當天)'!B:B,'Sales receipt((當天)'!B4,'Sales receipt((當天)'!C:C,'Sales receipt((當天)'!C14)","v":0},{"$f":"SUMIFS('Sales receipt((當天)'!K:K,'Sales receipt((當天)'!A:A,'Sales receipt((當天)'!A5,'Sales receipt((當天)'!B:B,'Sales receipt((當天)'!B4,'Sales receipt((當天)'!C:C,'Sales receipt((當天)'!C14)","v":0},{"$f":"SUMIFS('Sales receipt((當天)'!J:J,'Sales receipt((當天)'!A:A,'Sales receipt((當天)'!A5,'Sales receipt((當天)'!B:B,'Sales receipt((當天)'!B4,'Sales receipt((當天)'!C:C,'Sales receipt((當天)'!C14)","v":0}]
["短T類",{"$f":"SUMIFS('Sales receipt((當天)'!K:K,'Sales receipt((當天)'!A:A,'Sales receipt((當天)'!A2,'Sales receipt((當天)'!B:B,'Sales receipt((當天)'!B4,'Sales receipt((當天)'!C:C,'Sales receipt((當天)'!C10)","v":0},{"$f":"SUMIFS('Sales receipt((當天)'!J:J,'Sales receipt((當天)'!A:A,'Sales receipt((當天)'!A2,'Sales receipt((當天)'!B:B,'Sales receipt((當天)'!B4,'Sales receipt((當天)'!C:C,'Sales receipt((當天)'!C10)","v":0},{"$f":"SUMIFS('Sales receipt((當天)'!K:K,'Sales receipt((當天)'!A:A,'Sales receipt((當天)'!A3,'Sales receipt((當天)'!B:B,'Sales receipt((當天)'!B4,'Sales receipt((當天)'!C:C,'Sales receipt((當天)'!C10)","v":493},{"$f":"SUMIFS('Sales receipt((當天)'!J:J,'Sales receipt((當天)'!A:A,'Sales receipt((當天)'!A3,'Sales receipt((當天)'!B:B,'Sales receipt((當天)'!B4,'Sales receipt((當天)'!C:C,'Sales receipt((當天)'!C10)","v":1},{"$f":"SUMIFS('Sales receipt((當天)'!K:K,'Sales receipt((當天)'!A:A,'Sales receipt((當天)'!A7,'Sales receipt((當天)'!B:B,'Sales receipt((當天)'!B4,'Sales receipt((當天)'!C:C,'Sales receipt((當天)'!C10)","v":0},{"$f":"SUMIFS('Sales receipt((當天)'!J:J,'Sales receipt((當天)'!A:A,'Sales receipt((當天)'!A7,'Sales receipt((當天)'!B:B,'Sales receipt((當天)'!B4,'Sales receipt((當天)'!C:C,'Sales receipt((當天)'!C10)","v":0},{"$f":"SUMIFS('Sales receipt((當天)'!K:K,'Sales receipt((當天)'!A:A,'Sales receipt((當天)'!A6,'Sales receipt((當天)'!B:B,'Sales receipt((當天)'!B4,'Sales receipt((當天)'!C:C,'Sales receipt((當天)'!C10)","v":0},{"$f":"SUMIFS('Sales receipt((當天)'!J:J,'Sales receipt((當天)'!A:A,'Sales receipt((當天)'!A6,'Sales receipt((當天)'!B:B,'Sales receipt((當天)'!B4,'Sales receipt((當天)'!C:C,'Sales receipt((當天)'!C10)","v":0},{"$f":"SUMIFS('Sales receipt((當天)'!K:K,'Sales receipt((當天)'!A:A,'Sales receipt((當天)'!A8,'Sales receipt((當天)'!B:B,'Sales receipt((當天)'!B4,'Sales receipt((當天)'!C:C,'Sales receipt((當天)'!C10)","v":629},{"$f":"SUMIFS('Sales receipt((當天)'!J:J,'Sales receipt((當天)'!A:A,'Sales receipt((當天)'!A8,'Sales receipt((當天)'!B:B,'Sales receipt((當天)'!B4,'Sales receipt((當天)'!C:C,'Sales receipt((當天)'!C10)","v":1},{"$f":"SUMIFS('Sales receipt((當天)'!K:K,'Sales receipt((當天)'!A:A,'Sales receipt((當天)'!A4,'Sales receipt((當天)'!B:B,'Sales receipt((當天)'!B4,'Sales receipt((當天)'!C:C,'Sales receipt((當天)'!C10)","v":0},{"$f":"SUMIFS('Sales receipt((當天)'!J:J,'Sales receipt((當天)'!A:A,'Sales receipt((當天)'!A4,'Sales receipt((當天)'!B:B,'Sales receipt((當天)'!B4,'Sales receipt((當天)'!C:C,'Sales receipt((當天)'!C10)","v":0},{"$f":"SUMIFS('Sales receipt((當天)'!K:K,'Sales receipt((當天)'!A:A,'Sales receipt((當天)'!A5,'Sales receipt((當天)'!B:B,'Sales receipt((當天)'!B4,'Sales receipt((當天)'!C:C,'Sales receipt((當天)'!C10)","v":0},{"$f":"SUMIFS('Sales receipt((當天)'!J:J,'Sales receipt((當天)'!A:A,'Sales receipt((當天)'!A5,'Sales receipt((當天)'!B:B,'Sales receipt((當天)'!B4,'Sales receipt((當天)'!C:C,'Sales receipt((當天)'!C10)","v":0}]
["外套",{"$f":"SUM(SUMIFS('Sales receipt((當天)'!K:K,'Sales receipt((當天)'!A:A,'Sales receipt((當天)'!A2,'Sales receipt((當天)'!B:B,'Sales receipt((當天)'!B4,'Sales receipt((當天)'!C:C,{\"針織上衣\",\"梭織上衣\"}))","v":5263},{"$f":"SUM(SUMIFS('Sales receipt((當天)'!J:J,'Sales receipt((當天)'!A:A,'Sales receipt((當天)'!A2,'Sales receipt((當天)'!B:B,'Sales receipt((當天)'!B4,'Sales receipt((當天)'!C:C,{\"針織上衣\",\"梭織上衣\"}))","v":4},{"$f":"SUM(SUMIFS('Sales receipt((當天)'!K:K,'Sales receipt((當天)'!A:A,'Sales receipt((當天)'!A3,'Sales receipt((當天)'!B:B,'Sales receipt((當天)'!B4,'Sales receipt((當天)'!C:C,{\"針織上衣\",\"梭織上衣\"}))","v":1258},{"$f":"SUM(SUMIFS('Sales receipt((當天)'!J:J,'Sales receipt((當天)'!A:A,'Sales receipt((當天)'!A3,'Sales receipt((當天)'!B:B,'Sales receipt((當天)'!B4,'Sales receipt((當天)'!C:C,{\"針織上衣\",\"梭織上衣\"}))","v":1},{"$f":"SUM(SUMIFS('Sales receipt((當天)'!K:K,'Sales receipt((當天)'!A:A,'Sales receipt((當天)'!A7,'Sales receipt((當天)'!B:B,'Sales receipt((當天)'!B4,'Sales receipt((當天)'!C:C,{\"針織上衣\",\"梭織上衣\"}))","v":0},{"$f":"SUM(SUMIFS('Sales receipt((當天)'!J:J,'Sales receipt((當天)'!A:A,'Sales receipt((當天)'!A7,'Sales receipt((當天)'!B:B,'Sales receipt((當天)'!B4,'Sales receipt((當天)'!C:C,{\"針織上衣\",\"梭織上衣\"}))","v":0},{"$f":"SUM(SUMIFS('Sales receipt((當天)'!K:K,'Sales receipt((當天)'!A:A,'Sales receipt((當天)'!A6,'Sales receipt((當天)'!B:B,'Sales receipt((當天)'!B4,'Sales receipt((當天)'!C:C,{\"針織上衣\",\"梭織上衣\"}))","v":1680},{"$f":"SUM(SUMIFS('Sales receipt((當天)'!J:J,'Sales receipt((當天)'!A:A,'Sales receipt((當天)'!A6,'Sales receipt((當天)'!B:B,'Sales receipt((當天)'!B4,'Sales receipt((當天)'!C:C,{\"針織上衣\",\"梭織上衣\"}))","v":1},{"$f":"SUM(SUMIFS('Sales receipt((當天)'!K:K,'Sales receipt((當天)'!A:A,'Sales receipt((當天)'!A8,'Sales receipt((當天)'!B:B,'Sales receipt((當天)'!B4,'Sales receipt((當天)'!C:C,{\"針織上衣\",\"梭織上衣\"}))","v":6236},{"$f":"SUM(SUMIFS('Sales receipt((當天)'!J:J,'Sales receipt((當天)'!A:A,'Sales receipt((當天)'!A8,'Sales receipt((當天)'!B:B,'Sales receipt((當天)'!B4,'Sales receipt((當天)'!C:C,{\"針織上衣\",\"梭織上衣\"}))","v":5},{"$f":"SUM(SUMIFS('Sales receipt((當天)'!K:K,'Sales receipt((當天)'!A:A,'Sales receipt((當天)'!A4,'Sales receipt((當天)'!B:B,'Sales receipt((當天)'!B4,'Sales receipt((當天)'!C:C,{\"針織上衣\",\"梭織上衣\"}))","v":0},{"$f":"SUM(SUMIFS('Sales receipt((當天)'!J:J,'Sales receipt((當天)'!A:A,'Sales receipt((當天)'!A4,'Sales receipt((當天)'!B:B,'Sales receipt((當天)'!B4,'Sales receipt((當天)'!C:C,{\"針織上衣\",\"梭織上衣\"}))","v":0},{"$f":"SUM(SUMIFS('Sales receipt((當天)'!K:K,'Sales receipt((當天)'!A:A,'Sales receipt((當天)'!A5,'Sales receipt((當天)'!B:B,'Sales receipt((當天)'!B4,'Sales receipt((當天)'!C:C,{\"針織上衣\",\"梭織上衣\"}))","v":1258},{"$f":"SUM(SUMIFS('Sales receipt((當天)'!J:J,'Sales receipt((當天)'!A:A,'Sales receipt((當天)'!A5,'Sales receipt((當天)'!B:B,'Sales receipt((當天)'!B4,'Sales receipt((當天)'!C:C,{\"針織上衣\",\"梭織上衣\"}))","v":1}]
["羽絨服",{"$f":"SUM(SUMIFS('Sales receipt((當天)'!K:K,'Sales receipt((當天)'!A:A,'Sales receipt((當天)'!A2,'Sales receipt((當天)'!B:B,'Sales receipt((當天)'!B4,'Sales receipt((當天)'!C:C,{\"滑雪服\",\"羽絨服\",\"棉服\"}))","v":0},{"$f":"SUM(SUMIFS('Sales receipt((當天)'!J:J,'Sales receipt((當天)'!A:A,'Sales receipt((當天)'!A2,'Sales receipt((當天)'!B:B,'Sales receipt((當天)'!B4,'Sales receipt((當天)'!C:C,{\"滑雪服\",\"羽絨服\",\"棉服\"}))","v":0},{"$f":"SUM(SUMIFS('Sales receipt((當天)'!K:K,'Sales receipt((當天)'!A:A,'Sales receipt((當天)'!A3,'Sales receipt((當天)'!B:B,'Sales receipt((當天)'!B4,'Sales receipt((當天)'!C:C,{\"滑雪服\",\"羽絨服\",\"棉服\"}))","v":3343},{"$f":"SUM(SUMIFS('Sales receipt((當天)'!J:J,'Sales receipt((當天)'!A:A,'Sales receipt((當天)'!A3,'Sales receipt((當天)'!B:B,'Sales receipt((當天)'!B4,'Sales receipt((當天)'!C:C,{\"滑雪服\",\"羽絨服\",\"棉服\"}))","v":1},{"$f":"SUM(SUMIFS('Sales receipt((當天)'!K:K,'Sales receipt((當天)'!A:A,'Sales receipt((當天)'!A7,'Sales receipt((當天)'!B:B,'Sales receipt((當天)'!B4,'Sales receipt((當天)'!C:C,{\"滑雪服\",\"羽絨服\",\"棉服\"}))","v":0},{"$f":"SUM(SUMIFS('Sales receipt((當天)'!J:J,'Sales receipt((當天)'!A:A,'Sales receipt((當天)'!A7,'Sales receipt((當天)'!B:B,'Sales receipt((當天)'!B4,'Sales receipt((當天)'!C:C,{\"滑雪服\",\"羽絨服\",\"棉服\"}))","v":0},{"$f":"SUM(SUMIFS('Sales receipt((當天)'!K:K,'Sales receipt((當天)'!A:A,'Sales receipt((當天)'!A6,'Sales receipt((當天)'!B:B,'Sales receipt((當天)'!B4,'Sales receipt((當天)'!C:C,{\"滑雪服\",\"羽絨服\",\"棉服\"}))","v":5635},{"$f":"SUM(SUMIFS('Sales receipt((當天)'!J:J,'Sales receipt((當天)'!A:A,'Sales receipt((當天)'!A6,'Sales receipt((當天)'!B:B,'Sales receipt((當天)'!B4,'Sales receipt((當天)'!C:C,{\"滑雪服\",\"羽絨服\",\"棉服\"}))","v":2},{"$f":"SUM(SUMIFS('Sales receipt((當天)'!K:K,'Sales receipt((當天)'!A:A,'Sales receipt((當天)'!A8,'Sales receipt((當天)'!B:B,'Sales receipt((當天)'!B4,'Sales receipt((當天)'!C:C,{\"滑雪服\",\"羽絨服\",\"棉服\"}))","v":1884},{"$f":"SUM(SUMIFS('Sales receipt((當天)'!J:J,'Sales receipt((當天)'!A:A,'Sales receipt((當天)'!A8,'Sales receipt((當天)'!B:B,'Sales receipt((當天)'!B4,'Sales receipt((當天)'!C:C,{\"滑雪服\",\"羽絨服\",\"棉服\"}))","v":1},{"$f":"SUM(SUMIFS('Sales receipt((當天)'!K:K,'Sales receipt((當天)'!A:A,'Sales receipt((當天)'!A4,'Sales receipt((當天)'!B:B,'Sales receipt((當天)'!B4,'Sales receipt((當天)'!C:C,{\"滑雪服\",\"羽絨服\",\"棉服\"}))","v":0},{"$f":"SUM(SUMIFS('Sales receipt((當天)'!J:J,'Sales receipt((當天)'!A:A,'Sales receipt((當天)'!A4,'Sales receipt((當天)'!B:B,'Sales receipt((當天)'!B4,'Sales receipt((當天)'!C:C,{\"滑雪服\",\"羽絨服\",\"棉服\"}))","v":0},{"$f":"SUM(SUMIFS('Sales receipt((當天)'!K:K,'Sales receipt((當天)'!A:A,'Sales receipt((當天)'!A5,'Sales receipt((當天)'!B:B,'Sales receipt((當天)'!B4,'Sales receipt((當天)'!C:C,{\"滑雪服\",\"羽絨服\",\"棉服\"}))","v":0},{"$f":"SUM(SUMIFS('Sales receipt((當天)'!J:J,'Sales receipt((當天)'!A:A,'Sales receipt((當天)'!A5,'Sales receipt((當天)'!B:B,'Sales receipt((當天)'!B4,'Sales receipt((當天)'!C:C,{\"滑雪服\",\"羽絨服\",\"棉服\"}))","v":0}]
["上身",{"$f":"SUM(B64:B70)","v":5263},4,8211,7,0,0,11150,7,16309,12,0,0,2138,2]
["褲類",{"$f":"SUM(SUMIFS('Sales receipt((當天)'!K:K,'Sales receipt((當天)'!A:A,'Sales receipt((當天)'!A2,'Sales receipt((當天)'!B:B,'Sales receipt((當天)'!B4,'Sales receipt((當天)'!C:C,{\"針織褲\",\"梭織褲\"}))","v":880},{"$f":"SUM(SUMIFS('Sales receipt((當天)'!J:J,'Sales receipt((當天)'!A:A,'Sales receipt((當天)'!A2,'Sales receipt((當天)'!B:B,'Sales receipt((當天)'!B4,'Sales receipt((當天)'!C:C,{\"針織褲\",\"梭織褲\"}))","v":1},{"$f":"SUM(SUMIFS('Sales receipt((當天)'!K:K,'Sales receipt((當天)'!A:A,'Sales receipt((當天)'!A3,'Sales receipt((當天)'!B:B,'Sales receipt((當天)'!B4,'Sales receipt((當天)'!C:C,{\"針織褲\",\"梭織褲\"}))","v":1376},{"$f":"SUM(SUMIFS('Sales receipt((當天)'!J:J,'Sales receipt((當天)'!A:A,'Sales receipt((當天)'!A3,'Sales receipt((當天)'!B:B,'Sales receipt((當天)'!B4,'Sales receipt((當天)'!C:C,{\"針織褲\",\"梭織褲\"}))","v":1},{"$f":"SUM(SUMIFS('Sales receipt((當天)'!K:K,'Sales receipt((當天)'!A:A,'Sales receipt((當天)'!A7,'Sales receipt((當天)'!B:B,'Sales receipt((當天)'!B4,'Sales receipt((當天)'!C:C,{\"針織褲\",\"梭織褲\"}))","v":0},{"$f":"SUM(SUMIFS('Sales receipt((當天)'!J:J,'Sales receipt((當天)'!A:A,'Sales receipt((當天)'!A7,'Sales receipt((當天)'!B:B,'Sales receipt((當天)'!B4,'Sales receipt((當天)'!C:C,{\"針織褲\",\"梭織褲\"}))","v":0},{"$f":"SUM(SUMIFS('Sales receipt((當天)'!K:K,'Sales receipt((當天)'!A:A,'Sales receipt((當天)'!A6,'Sales receipt((當天)'!B:B,'Sales receipt((當天)'!B4,'Sales receipt((當天)'!C:C,{\"針織褲\",\"梭織褲\"}))","v":3930},{"$f":"SUM(SUMIFS('Sales receipt((當天)'!J:J,'Sales receipt((當天)'!A:A,'Sales receipt((當天)'!A6,'Sales receipt((當天)'!B:B,'Sales receipt((當天)'!B4,'Sales receipt((當天)'!C:C,{\"針織褲\",\"梭織褲\"}))","v":5},{"$f":"SUM(SUMIFS('Sales receipt((當天)'!K:K,'Sales receipt((當天)'!A:A,'Sales receipt((當天)'!A8,'Sales receipt((當天)'!B:B,'Sales receipt((當天)'!B4,'Sales receipt((當天)'!C:C,{\"針織褲\",\"梭織褲\"}))","v":1708},{"$f":"SUM(SUMIFS('Sales receipt((當天)'!J:J,'Sales receipt((當天)'!A:A,'Sales receipt((當天)'!A8,'Sales receipt((當天)'!B:B,'Sales receipt((當天)'!B4,'Sales receipt((當天)'!C:C,{\"針織褲\",\"梭織褲\"}))","v":2},{"$f":"SUM(SUMIFS('Sales receipt((當天)'!K:K,'Sales receipt((當天)'!A:A,'Sales receipt((當天)'!A4,'Sales receipt((當天)'!B:B,'Sales receipt((當天)'!B4,'Sales receipt((當天)'!C:C,{\"針織褲\",\"梭織褲\"}))","v":0},{"$f":"SUM(SUMIFS('Sales receipt((當天)'!J:J,'Sales receipt((當天)'!A:A,'Sales receipt((當天)'!A4,'Sales receipt((當天)'!B:B,'Sales receipt((當天)'!B4,'Sales receipt((當天)'!C:C,{\"針織褲\",\"梭織褲\"}))","v":0},{"$f":"SUM(SUMIFS('Sales receipt((當天)'!K:K,'Sales receipt((當天)'!A:A,'Sales receipt((當天)'!A5,'Sales receipt((當天)'!B:B,'Sales receipt((當天)'!B4,'Sales receipt((當天)'!C:C,{\"針織褲\",\"梭織褲\"}))","v":0},{"$f":"SUM(SUMIFS('Sales receipt((當天)'!J:J,'Sales receipt((當天)'!A:A,'Sales receipt((當天)'!A5,'Sales receipt((當天)'!B:B,'Sales receipt((當天)'!B4,'Sales receipt((當天)'!C:C,{\"針織褲\",\"梭織褲\"}))","v":0}]
["裙類",{"$f":"SUMIFS('Sales receipt((當天)'!K:K,'Sales receipt((當天)'!A:A,'Sales receipt((當天)'!A2,'Sales receipt((當天)'!B:B,'Sales receipt((當天)'!B4,'Sales receipt((當天)'!C:C,'Sales receipt((當天)'!C12)","v":0},{"$f":"SUMIFS('Sales receipt((當天)'!J:J,'Sales receipt((當天)'!A:A,'Sales receipt((當天)'!A2,'Sales receipt((當天)'!B:B,'Sales receipt((當天)'!B4,'Sales receipt((當天)'!C:C,'Sales receipt((當天)'!C12)","v":0},{"$f":"SUMIFS('Sales receipt((當天)'!K:K,'Sales receipt((當天)'!A:A,'Sales receipt((當天)'!A3,'Sales receipt((當天)'!B:B,'Sales receipt((當天)'!B4,'Sales receipt((當天)'!C:C,'Sales receipt((當天)'!C12)","v":0},{"$f":"SUMIFS('Sales receipt((當天)'!J:J,'Sales receipt((當天)'!A:A,'Sales receipt((當天)'!A3,'Sales receipt((當天)'!B:B,'Sales receipt((當天)'!B4,'Sales receipt((當天)'!C:C,'Sales receipt((當天)'!C12)","v":0},{"$f":"SUMIFS('Sales receipt((當天)'!K:K,'Sales receipt((當天)'!A:A,'Sales receipt((當天)'!A7,'Sales receipt((當天)'!B:B,'Sales receipt((當天)'!B4,'Sales receipt((當天)'!C:C,'Sales receipt((當天)'!C12)","v":0},{"$f":"SUMIFS('Sales receipt((當天)'!J:J,'Sales receipt((當天)'!A:A,'Sales receipt((當天)'!A7,'Sales receipt((當天)'!B:B,'Sales receipt((當天)'!B4,'Sales receipt((當天)'!C:C,'Sales receipt((當天)'!C12)","v":0},{"$f":"SUMIFS('Sales receipt((當天)'!K:K,'Sales receipt((當天)'!A:A,'Sales receipt((當天)'!A6,'Sales receipt((當天)'!B:B,'Sales receipt((當天)'!B4,'Sales receipt((當天)'!C:C,'Sales receipt((當天)'!C12)","v":0},{"$f":"SUMIFS('Sales receipt((當天)'!J:J,'Sales receipt((當天)'!A:A,'Sales receipt((當天)'!A6,'Sales receipt((當天)'!B:B,'Sales receipt((當天)'!B4,'Sales receipt((當天)'!C:C,'Sales receipt((當天)'!C12)","v":0},{"$f":"SUMIFS('Sales receipt((當天)'!K:K,'Sales receipt((當天)'!A:A,'Sales receipt((當天)'!A8,'Sales receipt((當天)'!B:B,'Sales receipt((當天)'!B4,'Sales receipt((當天)'!C:C,'Sales receipt((當天)'!C12)","v":0},{"$f":"SUMIFS('Sales receipt((當天)'!J:J,'Sales receipt((當天)'!A:A,'Sales receipt((當天)'!A8,'Sales receipt((當天)'!B:B,'Sales receipt((當天)'!B4,'Sales receipt((當天)'!C:C,'Sales receipt((當天)'!C12)","v":0},{"$f":"SUMIFS('Sales receipt((當天)'!K:K,'Sales receipt((當天)'!A:A,'Sales receipt((當天)'!A4,'Sales receipt((當天)'!B:B,'Sales receipt((當天)'!B4,'Sales receipt((當天)'!C:C,'Sales receipt((當天)'!C12)","v":0},{"$f":"SUMIFS('Sales receipt((當天)'!J:J,'Sales receipt((當天)'!A:A,'Sales receipt((當天)'!A4,'Sales receipt((當天)'!B:B,'Sales receipt((當天)'!B4,'Sales receipt((當天)'!C:C,'Sales receipt((當天)'!C12)","v":0},{"$f":"SUMIFS('Sales receipt((當天)'!K:K,'Sales receipt((當天)'!A:A,'Sales receipt((當天)'!A5,'Sales receipt((當天)'!B:B,'Sales receipt((當天)'!B4,'Sales receipt((當天)'!C:C,'Sales receipt((當天)'!C12)","v":0},{"$f":"SUMIFS('Sales receipt((當天)'!J:J,'Sales receipt((當天)'!A:A,'Sales receipt((當天)'!A5,'Sales receipt((當天)'!B:B,'Sales receipt((當天)'!B4,'Sales receipt((當天)'!C:C,'Sales receipt((當天)'!C12)","v":0}]
["下身",{"$f":"SUM(B72:B73)","v":880},1,1376,1,0,0,3930,5,1708,2,0,0,0,0]
["鞋",{"$f":"SUMIFS('Sales receipt((當天)'!K:K,'Sales receipt((當天)'!A:A,'Sales receipt((當天)'!A2,'Sales receipt((當天)'!B:B,'Sales receipt((當天)'!B6)","v":4080},{"$f":"SUMIFS('Sales receipt((當天)'!J:J,'Sales receipt((當天)'!A:A,'Sales receipt((當天)'!A2,'Sales receipt((當天)'!B:B,'Sales receipt((當天)'!B6)","v":4},{"$f":"SUMIFS('Sales receipt((當天)'!K:K,'Sales receipt((當天)'!A:A,'Sales receipt((當天)'!A3,'Sales receipt((當天)'!B:B,'Sales receipt((當天)'!B6)","v":5028},{"$f":"SUMIFS('Sales receipt((當天)'!J:J,'Sales receipt((當天)'!A:A,'Sales receipt((當天)'!A3,'Sales receipt((當天)'!B:B,'Sales receipt((當天)'!B6)","v":6},{"$f":"SUMIFS('Sales receipt((當天)'!K:K,'Sales receipt((當天)'!A:A,'Sales receipt((當天)'!A7,'Sales receipt((當天)'!B:B,'Sales receipt((當天)'!B6)","v":0},{"$f":"SUMIFS('Sales receipt((當天)'!J:J,'Sales receipt((當天)'!A:A,'Sales receipt((當天)'!A7,'Sales receipt((當天)'!B:B,'Sales receipt((當天)'!B6)","v":0},{"$f":"SUMIFS('Sales receipt((當天)'!K:K,'Sales receipt((當天)'!A:A,'Sales receipt((當天)'!A6,'Sales receipt((當天)'!B:B,'Sales receipt((當天)'!B6)","v":2621},{"$f":"SUMIFS('Sales receipt((當天)'!J:J,'Sales receipt((當天)'!A:A,'Sales receipt((當天)'!A6,'Sales receipt((當天)'!B:B,'Sales receipt((當天)'!B6)","v":3},{"$f":"SUMIFS('Sales receipt((當天)'!K:K,'Sales receipt((當天)'!A:A,'Sales receipt((當天)'!A8,'Sales receipt((當天)'!B:B,'Sales receipt((當天)'!B6)","v":7380},{"$f":"SUMIFS('Sales receipt((當天)'!J:J,'Sales receipt((當天)'!A:A,'Sales receipt((當天)'!A8,'Sales receipt((當天)'!B:B,'Sales receipt((當天)'!B6)","v":9},{"$f":"SUMIFS('Sales receipt((當天)'!K:K,'Sales receipt((當天)'!A:A,'Sales receipt((當天)'!A4,'Sales receipt((當天)'!B:B,'Sales receipt((當天)'!B6)","v":0},{"$f":"SUMIFS('Sales receipt((當天)'!J:J,'Sales receipt((當天)'!A:A,'Sales receipt((當天)'!A4,'Sales receipt((當天)'!B:B,'Sales receipt((當天)'!B6)","v":0},{"$f":"SUMIFS('Sales receipt((當天)'!K:K,'Sales receipt((當天)'!A:A,'Sales receipt((當天)'!A5,'Sales receipt((當天)'!B:B,'Sales receipt((當天)'!B6)","v":0},{"$f":"SUMIFS('Sales receipt((當天)'!J:J,'Sales receipt((當天)'!A:A,'Sales receipt((當天)'!A5,'Sales receipt((當天)'!B:B,'Sales receipt((當天)'!B6)","v":0}]
["配件",{"$f":"SUMIFS('Sales receipt((當天)'!K:K,'Sales receipt((當天)'!A:A,'Sales receipt((當天)'!A2,'Sales receipt((當天)'!B:B,'Sales receipt((當天)'!B5)","v":130},{"$f":"SUMIFS('Sales receipt((當天)'!J:J,'Sales receipt((當天)'!A:A,'Sales receipt((當天)'!A2,'Sales receipt((當天)'!B:B,'Sales receipt((當天)'!B5)","v":2},{"$f":"SUMIFS('Sales receipt((當天)'!K:K,'Sales receipt((當天)'!A:A,'Sales receipt((當天)'!A3,'Sales receipt((當天)'!B:B,'Sales receipt((當天)'!B5)","v":120},{"$f":"SUMIFS('Sales receipt((當天)'!J:J,'Sales receipt((當天)'!A:A,'Sales receipt((當天)'!A3,'Sales receipt((當天)'!B:B,'Sales receipt((當天)'!B5)","v":2},{"$f":"SUMIFS('Sales receipt((當天)'!K:K,'Sales receipt((當天)'!A:A,'Sales receipt((當天)'!A7,'Sales receipt((當天)'!B:B,'Sales receipt((當天)'!B5)","v":0},{"$f":"SUMIFS('Sales receipt((當天)'!J:J,'Sales receipt((當天)'!A:A,'Sales receipt((當天)'!A7,'Sales receipt((當天)'!B:B,'Sales receipt((當天)'!B5)","v":0},{"$f":"SUMIFS('Sales receipt((當天)'!K:K,'Sales receipt((當天)'!A:A,'Sales receipt((當天)'!A6,'Sales receipt((當天)'!B:B,'Sales receipt((當天)'!B5)","v":612},{"$f":"SUMIFS('Sales receipt((當天)'!J:J,'Sales receipt((當天)'!A:A,'Sales receipt((當天)'!A6,'Sales receipt((當天)'!B:B,'Sales receipt((當天)'!B5)","v":1},{"$f":"SUMIFS('Sales receipt((當天)'!K:K,'Sales receipt((當天)'!A:A,'Sales receipt((當天)'!A8,'Sales receipt((當天)'!B:B,'Sales receipt((當天)'!B5)","v":60},{"$f":"SUMIFS('Sales receipt((當天)'!J:J,'Sales receipt((當天)'!A:A,'Sales receipt((當天)'!A8,'Sales receipt((當天)'!B:B,'Sales receipt((當天)'!B5)","v":1},{"$f":"SUMIFS('Sales receipt((當天)'!K:K,'Sales receipt((當天)'!A:A,'Sales receipt((當天)'!A4,'Sales receipt((當天)'!B:B,'Sales receipt((當天)'!B5)","v":0},{"$f":"SUMIFS('Sales receipt((當天)'!J:J,'Sales receipt((當天)'!A:A,'Sales receipt((當天)'!A4,'Sales receipt((當天)'!B:B,'Sales receipt((當天)'!B5)","v":0},{"$f":"SUMIFS('Sales receipt((當天)'!K:K,'Sales receipt((當天)'!A:A,'Sales receipt((當天)'!A5,'Sales receipt((當天)'!B:B,'Sales receipt((當天)'!B5)","v":867},{"$f":"SUMIFS('Sales receipt((當天)'!J:J,'Sales receipt((當天)'!A:A,'Sales receipt((當天)'!A5,'Sales receipt((當天)'!B:B,'Sales receipt((當天)'!B5)","v":2}]
["店鋪事項"]
["   "]

{"sheet":"個人KPI","index":1,"n_rows":113,"n_cols":14,"rows_kept":113,"merged":[[0,0,0,13],[1,0,1,6],[1,8,1,13],[2,0,18,0],[2,1,3,1],[2,8,3,8],[20,0,36,0],[20,1,21,1],[20,8,21,8],[39,0,55,0],[39,1,40,1],[39,8,40,8],[58,0,74,0],[58,1,59,1],[58,8,59,8],[77,0,93,0],[77,1,78,1],[77,8,78,8],[96,0,112,0],[96,1,97,1],[96,8,97,8]]}
["9月28-05號 個人品類銷售"]
["個人數KPI",{"$nulls":7},"個人數KPI"]
["Susanna","TW  5日"," MTD","ATV","UPT","NO ","QTY",null,"LW"," MTD","ATV","UPT","NO ","QTY"]
[null,null,98541,2615,3.6,38,139,null,null,53284,1969,{"v":3,"d":"3.0"},22,68]
[null,"VSLW",{"$f":"C4-J4","v":45257},{"$f":"D4-K4","v":646},{"$f":"E4-L4","v":{"v":0.6000000000000001,"d":"0.6"}},{"$f":"F4-M4","v":16},{"$f":"G4-N4","v":71}]
[]
[null,"中類","件數","金額","VSLW尚欠",{"$nulls":3},"中類","件數","金額"]
[null,"內衣類",{"$f":"SUMIFS('個人KPISales receipt(MTD）'!J:J,'個人KPISales receipt(MTD）'!A:A,'個人KPISales receipt(MTD）'!A2,'個人KPISales receipt(MTD）'!B:B,'個人KPISales receipt(MTD）'!B4,'個人KPISales receipt(MTD）'!C:C,'個人KPISales receipt(MTD）'!C2)","v":0},{"$f":"SUMIFS('個人KPISales receipt(MTD）'!K:K,'個人KPISales receipt(MTD）'!A:A,'個人KPISales receipt(MTD）'!A2,'個人KPISales receipt(MTD）'!B:B,'個人KPISales receipt(MTD）'!B4,'個人KPISales receipt(MTD）'!C:C,'個人KPISales receipt(MTD）'!C2)","v":0},{"$f":"C8-J8","v":-13},{"$nulls":3},"內衣類",13,10329]
[null,"針織上衣",{"$f":"SUMIFS('個人KPISales receipt(MTD）'!J:J,'個人KPISales receipt(MTD）'!A:A,'個人KPISales receipt(MTD）'!A2,'個人KPISales receipt(MTD）'!C:C,'個人KPISales receipt(MTD）'!C5)","v":11},{"$f":"SUMIFS('個人KPISales receipt(MTD）'!K:K,'個人KPISales receipt(MTD）'!A:A,'個人KPISales receipt(MTD）'!A2,'個人KPISales receipt(MTD）'!B:B,'個人KPISales receipt(MTD）'!B4,'個人KPISales receipt(MTD）'!C:C,'個人KPISales receipt(MTD）'!C5)","v":14396},5,{"$nulls":3},"針織上衣",6,7342]
[null,"針織褲",{"$f":"SUMIFS('個人KPISales receipt(MTD）'!J:J,'個人KPISales receipt(MTD）'!A:A,'個人KPISales receipt(MTD）'!A2,'個人KPISales receipt(MTD）'!B:B,'個人KPISales receipt(MTD）'!B4,'個人KPISales receipt(MTD）'!C:C,'個人KPISales receipt(MTD）'!C6)","v":10},{"$f":"SUMIFS('個人KPISales receipt(MTD）'!K:K,'個人KPISales receipt(MTD）'!A:A,'個人KPISales receipt(MTD）'!A2,'個人KPISales receipt(MTD）'!B:B,'個人KPISales receipt(MTD）'!B4,'個人KPISales receipt(MTD）'!C:C,'個人KPISales receipt(MTD）'!C6)","v":8518},5,{"$nulls":3},"針織褲",5,3879]
[null,"梭織上衣",{"$f":"SUMIFS('個人KPISales receipt(MTD）'!J:J,'個人KPISales receipt(MTD）'!A:A,'個人KPISales receipt(MTD）'!A2,'個人KPISales receipt(MTD）'!B:B,'個人KPISales receipt(MTD）'!B4,'個人KPISales receipt(MTD）'!C:C,'個人KPISales receipt(MTD）'!C7)","v":7},{"$f":"SUMIFS('個人KPISales receipt(MTD）'!K:K,'個人KPISales receipt(MTD）'!A:A,'個人KPISales receipt(MTD）'!A2,'個人KPISales receipt(MTD）'!C:C,'個人KPISales receipt(MTD）'!C7)","v":12351},3,{"$nulls":3},"梭織上衣",4,6672]
[null,"梭織褲",{"$f":"SUMIFS('個人KPISales receipt(MTD）'!J:J,'個人KPISales receipt(MTD）'!A:A,'個人KPISales receipt(MTD）'!A2,'個人KPISales receipt(MTD）'!B:B,'個人KPISales receipt(MTD）'!B4,'個人KPISales receipt(MTD）'!C:C,'個人KPISales receipt(MTD）'!C8)","v":3},{"$f":"SUMIFS('個人KPISales receipt(MTD）'!K:K,'個人KPISales receipt(MTD）'!A:A,'個人KPISales receipt(MTD）'!A2,'個人KPISales receipt(MTD）'!B:B,'個人KPISales receipt(MTD）'!B4,'個人KPISales receipt(MTD）'!C:C,'個人KPISales receipt(MTD）'!C8)","v":3507},3,{"$nulls":3},"梭織褲"]
[null,"短T類",{"$f":"SUMIFS('個人KPISales receipt(MTD）'!J:J,'個人KPISales receipt(MTD）'!A:A,'個人KPISales receipt(MTD）'!A2,'個人KPISales receipt(MTD）'!B:B,'個人KPISales receipt(MTD）'!B4,'個人KPISales receipt(MTD）'!C:C,'個人KPISales receipt(MTD）'!C10)","v":3},{"$f":"SUMIFS('個人KPISales receipt(MTD）'!K:K,'個人KPISales receipt(MTD）'!A:A,'個人KPISales receipt(MTD）'!A2,'個人KPISales receipt(MTD）'!B:B,'個人KPISales receipt(MTD）'!B4,'個人KPISales receipt(MTD）'!C:C,'個人KPISales receipt(MTD）'!C10)","v":2382},-8,{"$nulls":3},"短T類",11,6685]
[null,"裙裝",{"$f":"SUMIFS('個人KPISales receipt(MTD）'!J:J,'個人KPISales receipt(MTD）'!A:A,'個人KPISales receipt(MTD）'!A2,'個人KPISales receipt(MTD）'!C:C,'個人KPISales receipt(MTD）'!C12)","v":1},{"$f":"SUMIFS('個人KPISales receipt(MTD）'!K:K,'個人KPISales receipt(MTD）'!A:A,'個人KPISales receipt(MTD）'!A2,'個人KPISales receipt(MTD）'!B:B,'個人KPISales receipt(MTD）'!B4,'個人KPISales receipt(MTD）'!C:C,'個人KPISales receipt(MTD）'!C12)","v":1428},0,{"$nulls":3},"裙裝",1,1207]
[null,"編織衫",{"$f":"SUMIFS('個人KPISales receipt(MTD）'!J:J,'個人KPISales receipt(MTD）'!A:A,'個人KPISales receipt(MTD）'!A2,'個人KPISales receipt(MTD）'!B:B,'個人KPISales receipt(MTD）'!B4,'個人KPISales receipt(MTD）'!C:C,'個人KPISales receipt(MTD）'!C13)","v":8},{"$f":"SUMIFS('個人KPISales receipt(MTD）'!K:K,'個人KPISales receipt(MTD）'!A:A,'個人KPISales receipt(MTD）'!A2,'個人KPISales receipt(MTD）'!B:B,'個人KPISales receipt(MTD）'!B4,'個人KPISales receipt(MTD）'!C:C,'個人KPISales receipt(MTD）'!C13)","v":10304},0,{"$nulls":3},"編織衫",8,9439]
[null,"襯衫",{"$f":"SUMIFS('個人KPISales receipt(MTD）'!J:J,'個人KPISales receipt(MTD）'!A:A,'個人KPISales receipt(MTD）'!A2,'個人KPISales receipt(MTD）'!B:B,'個人KPISales receipt(MTD）'!B4,'個人KPISales receipt(MTD）'!C:C,'個人KPISales receipt(MTD）'!C14)","v":0},{"$f":"SUMIFS('個人KPISales receipt(MTD）'!K:K,'個人KPISales receipt(MTD）'!A:A,'個人KPISales receipt(MTD）'!A2,'個人KPISales receipt(MTD）'!B:B,'個人KPISales receipt(MTD）'!B4,'個人KPISales receipt(MTD）'!C:C,'個人KPISales receipt(MTD）'!C14)","v":0},0,{"$nulls":3},"襯衫",0,0]
[null,"棉服",{"$f":"SUMIFS('個人KPISales receipt(MTD）'!J:J,'個人KPISales receipt(MTD）'!A:A,'個人KPISales receipt(MTD）'!A2,'個人KPISales receipt(MTD）'!B:B,'個人KPISales receipt(MTD）'!B4,'個人KPISales receipt(MTD）'!C:C,'個人KPISales receipt(MTD）'!C9)","v":2},{"$f":"SUMIFS('個人KPISales receipt(MTD）'!K:K,'個人KPISales receipt(MTD）'!A:A,'個人KPISales receipt(MTD）'!A2,'個人KPISales receipt(MTD）'!B:B,'個人KPISales receipt(MTD）'!B4,'個人KPISales receipt(MTD）'!C:C,'個人KPISales receipt(MTD）'!C9)","v":4652},2,{"$nulls":3},"棉服",0,0]
[null,"羽絨服",{"$f":"SUMIFS('個人KPISales receipt(MTD）'!J:J,'個人KPISales receipt(MTD）'!A:A,'個人KPISales receipt(MTD）'!A2,'個人KPISales receipt(MTD）'!B:B,'個人KPISales receipt(MTD）'!B4,'個人KPISales receipt(MTD）'!C:C,'個人KPISales receipt(MTD）'!C4)","v":6},{"$f":"SUMIFS('個人KPISales receipt(MTD）'!K:K,'個人KPISales receipt(MTD）'!A:A,'個人KPISales receipt(MTD）'!A2,'個人KPISales receipt(MTD）'!B:B,'個人KPISales receipt(MTD）'!B4,'個人KPISales receipt(MTD）'!C:C,'個人KPISales receipt(MTD）'!C4)","v":12123},{"$nulls":4},"羽絨服",3,4387]
[null,"鞋",{"$f":"SUMIFS('個人KPISales receipt(MTD）'!J:J,'個人KPISales receipt(MTD）'!A:A,'個人KPISales receipt(MTD）'!A2,'個人KPISales receipt(MTD）'!B:B,'個人KPISales receipt(MTD）'!B6)","v":16},{"$f":"SUMIFS('個人KPISales receipt(MTD）'!K:K,'個人KPISales receipt(MTD）'!A:A,'個人KPISales receipt(MTD）'!A2,'個人KPISales receipt(MTD）'!B:B,'個人KPISales receipt(MTD）'!B6)","v":15578},13,{"$nulls":3},"鞋",3,3102]
[]
["JANET","TW 6日 "," MTD","ATV","UPT","NO ","QTY",null,"LW"," MTD","ATV","UPT","NO ","QTY"]
[null,null,120332,2507,3.5,48,168,null,null,40799,2668,3.6,16,58]
[null,"VSLW",{"$f":"C22-J22","v":79533},{"$f":"D22-K22","v":-161},{"$f":"E22-L22","v":{"v":-0.10000000000000009,"d":"-0.1"}},{"$f":"F22-M22","v":32},{"$f":"G22-N22","v":110}]
[]
[null,"中類","件數","金額","VSLW尚欠",{"$nulls":3},"中類","件數","金額"]
[null,"內衣類",{"$f":"SUMIFS('個人KPISales receipt(MTD）'!J:J,'個人KPISales receipt(MTD）'!A:A,'個人KPISales receipt(MTD）'!A3,'個人KPISales receipt(MTD）'!B:B,'個人KPISales receipt(MTD）'!B4,'個人KPISales receipt(MTD）'!C:C,'個人KPISales receipt(MTD）'!C2)","v":0},{"$f":"SUMIFS('個人KPISales receipt(MTD）'!K:K,'個人KPISales receipt(MTD）'!A:A,'個人KPISales receipt(MTD）'!A3,'個人KPISales receipt(MTD）'!B:B,'個人KPISales receipt(MTD）'!B4,'個人KPISales receipt(MTD）'!C:C,'個人KPISales receipt(MTD）'!C2)","v":0},{"$f":"C26-J26","v":-6},{"$nulls":3},"內衣類",6,5089]
[null,"針織上衣",{"$f":"SUMIFS('個人KPISales receipt(MTD）'!J:J,'個人KPISales receipt(MTD）'!A:A,'個人KPISales receipt(MTD）'!A3,'個人KPISales receipt(MTD）'!C:C,'個人KPISales receipt(MTD）'!C5)","v":18},{"$f":"SUMIFS('個人KPISales receipt(MTD）'!K:K,'個人KPISales receipt(MTD）'!A:A,'個人KPISales receipt(MTD）'!A3,'個人KPISales receipt(MTD）'!B:B,'個人KPISales receipt(MTD）'!B4,'個人KPISales receipt(MTD）'!C:C,'個人KPISales receipt(MTD）'!C5)","v":24826},17,{"$nulls":3},"針織上衣",1,1245]
[null,"針織褲",{"$f":"SUMIFS('個人KPISales receipt(MTD）'!J:J,'個人KPISales receipt(MTD）'!A:A,'個人KPISales receipt(MTD）'!A3,'個人KPISales receipt(MTD）'!B:B,'個人KPISales receipt(MTD）'!B4,'個人KPISales receipt(MTD）'!C:C,'個人KPISales receipt(MTD）'!C6)","v":19},{"$f":"SUMIFS('個人KPISales receipt(MTD）'!K:K,'個人KPISales receipt(MTD）'!A:A,'個人KPISales receipt(MTD）'!A3,'個人KPISales receipt(MTD）'!B:B,'個人KPISales receipt(MTD）'!B4,'個人KPISales receipt(MTD）'!C:C,'個人KPISales receipt(MTD）'!C6)","v":14921},14,{"$nulls":3},"針織褲",5,3975]
[null,"梭織上衣",{"$f":"SUMIFS('個人KPISales receipt(MTD）'!J:J,'個人KPISales receipt(MTD）'!A:A,'個人KPISales receipt(MTD）'!A3,'個人KPISales receipt(MTD）'!B:B,'個人KPISales receipt(MTD）'!B4,'個人KPISales receipt(MTD）'!C:C,'個人KPISales receipt(MTD）'!C7)","v":6},{"$f":"SUMIFS('個人KPISales receipt(MTD）'!K:K,'個人KPISales receipt(MTD）'!A:A,'個人KPISales receipt(MTD）'!A3,'個人KPISales receipt(MTD）'!C:C,'個人KPISales receipt(MTD）'!C7)","v":9983},0,{"$nulls":3},"梭織上衣",6,11567]
[null,"梭織褲",{"$f":"SUMIFS('個人KPISales receipt(MTD）'!J:J,'個人KPISales receipt(MTD）'!A:A,'個人KPISales receipt(MTD）'!A3,'個人KPISales receipt(MTD）'!B:B,'個人KPISales receipt(MTD）'!B4,'個人KPISales receipt(MTD）'!C:C,'個人KPISales receipt(MTD）'!C8)","v":3},{"$f":"SUMIFS('個人KPISales receipt(MTD）'!K:K,'個人KPISales receipt(MTD）'!A:A,'個人KPISales receipt(MTD）'!A3,'個人KPISales receipt(MTD）'!B:B,'個人KPISales receipt(MTD）'!B4,'個人KPISales receipt(MTD）'!C:C,'個人KPISales receipt(MTD）'!C8)","v":2484},0,{"$nulls":3},"梭織褲",3,3016]
[null,"短T類",{"$f":"SUMIFS('個人KPISales receipt(MTD）'!J:J,'個人KPISales receipt(MTD）'!A:A,'個人KPISales receipt(MTD）'!A3,'個人KPISales receipt(MTD）'!B:B,'個人KPISales receipt(MTD）'!B4,'個人KPISales receipt(MTD）'!C:C,'個人KPISales receipt(MTD）'!C10)","v":8},{"$f":"SUMIFS('個人KPISales receipt(MTD）'!K:K,'個人KPISales receipt(MTD）'!A:A,'個人KPISales receipt(MTD）'!A3,'個人KPISales receipt(MTD）'!B:B,'個人KPISales receipt(MTD）'!B4,'個人KPISales receipt(MTD）'!C:C,'個人KPISales receipt(MTD）'!C10)","v":6445},7,{"$nulls":3},"短T類",1,780]
[null,"裙裝",{"$f":"SUMIFS('個人KPISales receipt(MTD）'!J:J,'個人KPISales receipt(MTD）'!A:A,'個人KPISales receipt(MTD）'!A3,'個人KPISales receipt(MTD）'!C:C,'個人KPISales receipt(MTD）'!C12)","v":0},{"$f":"SUMIFS('個人KPISales receipt(MTD）'!K:K,'個人KPISales receipt(MTD）'!A:A,'個人KPISales receipt(MTD）'!A3,'個人KPISales receipt(MTD）'!B:B,'個人KPISales receipt(MTD）'!B4,'個人KPISales receipt(MTD）'!C:C,'個人KPISales receipt(MTD）'!C12)","v":0},-1,{"$nulls":3},"裙裝",1,1350]
[null,"編織衫",{"$f":"SUMIFS('個人KPISales receipt(MTD）'!J:J,'個人KPISales receipt(MTD）'!A:A,'個人KPISales receipt(MTD）'!A3,'個人KPISales receipt(MTD）'!B:B,'個人KPISales receipt(MTD）'!B4,'個人KPISales receipt(MTD）'!C:C,'個人KPISales receipt(MTD）'!C13)","v":3},{"$f":"SUMIFS('個人KPISales receipt(MTD）'!K:K,'個人KPISales receipt(MTD）'!A:A,'個人KPISales receipt(MTD）'!A3,'個人KPISales receipt(MTD）'!B:B,'個人KPISales receipt(MTD）'!B4,'個人KPISales receipt(MTD）'!C:C,'個人KPISales receipt(MTD）'!C13)","v":2758},0,{"$nulls":3},"編織衫",3,2607]
[null,"襯衫",{"$f":"SUMIFS('個人KPISales receipt(MTD）'!J:J,'個人KPISales receipt(MTD）'!A:A,'個人KPISales receipt(MTD）'!A3,'個人KPISales receipt(MTD）'!B:B,'個人KPISales receipt(MTD）'!B4,'個人KPISales receipt(MTD）'!C:C,'個人KPISales receipt(MTD）'!C14)","v":0},{"$f":"SUMIFS('個人KPISales receipt(MTD）'!K:K,'個人KPISales receipt(MTD）'!A:A,'個人KPISales receipt(MTD）'!A3,'個人KPISales receipt(MTD）'!B:B,'個人KPISales receipt(MTD）'!B4,'個人KPISales receipt(MTD）'!C:C,'個人KPISales receipt(MTD）'!C14)","v":0},0,{"$nulls":3},"襯衫",0,0]
[null,"棉服",{"$f":"SUMIFS('個人KPISales receipt(MTD）'!J:J,'個人KPISales receipt(MTD）'!A:A,'個人KPISales receipt(MTD）'!A3,'個人KPISales receipt(MTD）'!B:B,'個人KPISales receipt(MTD）'!B4,'個人KPISales receipt(MTD）'!C:C,'個人KPISales receipt(MTD）'!C9)","v":1},{"$f":"SUMIFS('個人KPISales receipt(MTD）'!K:K,'個人KPISales receipt(MTD）'!A:A,'個人KPISales receipt(MTD）'!A3,'個人KPISales receipt(MTD）'!B:B,'個人KPISales receipt(MTD）'!B4,'個人KPISales receipt(MTD）'!C:C,'個人KPISales receipt(MTD）'!C9)","v":2140},1,{"$nulls":3},"棉服"]
[null,"羽絨服",{"$f":"SUMIFS('個人KPISales receipt(MTD）'!J:J,'個人KPISales receipt(MTD）'!A:A,'個人KPISales receipt(MTD）'!A3,'個人KPISales receipt(MTD）'!B:B,'個人KPISales receipt(MTD）'!B4,'個人KPISales receipt(MTD）'!C:C,'個人KPISales receipt(MTD）'!C4)","v":8},{"$f":"SUMIFS('個人KPISales receipt(MTD）'!K:K,'個人KPISales receipt(MTD）'!A:A,'個人KPISales receipt(MTD）'!A3,'個人KPISales receipt(MTD）'!B:B,'個人KPISales receipt(MTD）'!B4,'個人KPISales receipt(MTD）'!C:C,'個人KPISales receipt(MTD）'!C4)","v":14768},{"$nulls":4},"羽絨服",3,5395]
[null,"鞋",{"$f":"SUMIFS('個人KPISales receipt(MTD）'!J:J,'個人KPISales receipt(MTD）'!A:A,'個人KPISales receipt(MTD）'!A3,'個人KPISales receipt(MTD）'!B:B,'個人KPISales receipt(MTD）'!B6)","v":28},{"$f":"SUMIFS('個人KPISales receipt(MTD）'!K:K,'個人KPISales receipt(MTD）'!A:A,'個人KPISales receipt(MTD）'!A3,'個人KPISales receipt(MTD）'!B:B,'個人KPISales receipt(MTD）'!B6)","v":25733},25,{"$nulls":3},"鞋",3,2586]
[]
[]
["khaki","TW 5日"," MTD","ATV","UPT","NO ","QTY",null,"LW"," MTD","ATV","UPT","NO ","QTY"]
[null,null,89399,2299,3.4,40,139,null,null,36421,2577,4.8,14,68]
[null,"VSLW",{"$f":"C41-J41","v":52978},{"$f":"D41-K41","v":-278},{"$f":"E41-L41","v":-1.4},{"$f":"F41-M41","v":26},{"$f":"G41-N41","v":71}]
[]
[null,"中類","件數","金額","VSLW尚欠",{"$nulls":3},"中類","件數","金額"]
[null,"內衣類",{"$f":"SUMIFS('個人KPISales receipt(MTD）'!J:J,'個人KPISales receipt(MTD）'!A:A,'個人KPISales receipt(MTD）'!A5,'個人KPISales receipt(MTD）'!B:B,'個人KPISales receipt(MTD）'!B4,'個人KPISales receipt(MTD）'!C:C,'個人KPISales receipt(MTD）'!C2)","v":0},{"$f":"SUMIFS('個人KPISales receipt(MTD）'!K:K,'個人KPISales receipt(MTD）'!A:A,'個人KPISales receipt(MTD）'!A5,'個人KPISales receipt(MTD）'!B:B,'個人KPISales receipt(MTD）'!B4,'個人KPISales receipt(MTD）'!C:C,'個人KPISales receipt(MTD）'!C2)","v":0},{"$f":"C45-J45","v":-6},{"$nulls":3},"內衣類",6,5701]
[null,"針織上衣",{"$f":"SUMIFS('個人KPISales receipt(MTD）'!J:J,'個人KPISales receipt(MTD）'!A:A,'個人KPISales receipt(MTD）'!A5,'個人KPISales receipt(MTD）'!C:C,'個人KPISales receipt(MTD）'!C5)","v":9},{"$f":"SUMIFS('個人KPISales receipt(MTD）'!K:K,'個人KPISales receipt(MTD）'!A:A,'個人KPISales receipt(MTD）'!A5,'個人KPISales receipt(MTD）'!B:B,'個人KPISales receipt(MTD）'!B4,'個人KPISales receipt(MTD）'!C:C,'個人KPISales receipt(MTD）'!C5)","v":11748},7,{"$nulls":3},"針織上衣",2,2289]
[null,"針織褲",{"$f":"SUMIFS('個人KPISales receipt(MTD）'!J:J,'個人KPISales receipt(MTD）'!A:A,'個人KPISales receipt(MTD）'!A5,'個人KPISales receipt(MTD）'!B:B,'個人KPISales receipt(MTD）'!B4,'個人KPISales receipt(MTD）'!C:C,'個人KPISales receipt(MTD）'!C6)","v":13},{"$f":"SUMIFS('個人KPISales receipt(MTD）'!K:K,'個人KPISales receipt(MTD）'!A:A,'個人KPISales receipt(MTD）'!A5,'個人KPISales receipt(MTD）'!B:B,'個人KPISales receipt(MTD）'!B4,'個人KPISales receipt(MTD）'!C:C,'個人KPISales receipt(MTD）'!C6)","v":10993},3,{"$nulls":3},"針織褲",10,7556]
[null,"梭織上衣",{"$f":"SUMIFS('個人KPISales receipt(MTD）'!J:J,'個人KPISales receipt(MTD）'!A:A,'個人KPISales receipt(MTD）'!A5,'個人KPISales receipt(MTD）'!B:B,'個人KPISales receipt(MTD）'!B4,'個人KPISales receipt(MTD）'!C:C,'個人KPISales receipt(MTD）'!C7)","v":6},{"$f":"SUMIFS('個人KPISales receipt(MTD）'!K:K,'個人KPISales receipt(MTD）'!A:A,'個人KPISales receipt(MTD）'!A5,'個人KPISales receipt(MTD）'!C:C,'個人KPISales receipt(MTD）'!C7)","v":10613},2,{"$nulls":3},"梭織上衣",4,7731]
[null,"梭織褲",{"$f":"SUMIFS('個人KPISales receipt(MTD）'!J:J,'個人KPISales receipt(MTD）'!A:A,'個人KPISales receipt(MTD）'!A5,'個人KPISales receipt(MTD）'!B:B,'個人KPISales receipt(MTD）'!B4,'個人KPISales receipt(MTD）'!C:C,'個人KPISales receipt(MTD）'!C8)","v":0},{"$f":"SUMIFS('個人KPISales receipt(MTD）'!K:K,'個人KPISales receipt(MTD）'!A:A,'個人KPISales receipt(MTD）'!A5,'個人KPISales receipt(MTD）'!B:B,'個人KPISales receipt(MTD）'!B4,'個人KPISales receipt(MTD）'!C:C,'個人KPISales receipt(MTD）'!C8)","v":0},0,{"$nulls":3},"梭織褲"]
[null,"短T類",{"$f":"SUMIFS('個人KPISales receipt(MTD）'!J:J,'個人KPISales receipt(MTD）'!A:A,'個人KPISales receipt(MTD）'!A5,'個人KPISales receipt(MTD）'!B:B,'個人KPISales receipt(MTD）'!B4,'個人KPISales receipt(MTD）'!C:C,'個人KPISales receipt(MTD）'!C10)","v":7},{"$f":"SUMIFS('個人KPISales receipt(MTD）'!K:K,'個人KPISales receipt(MTD）'!A:A,'個人KPISales receipt(MTD）'!A5,'個人KPISales receipt(MTD）'!B:B,'個人KPISales receipt(MTD）'!B4,'個人KPISales receipt(MTD）'!C:C,'個人KPISales receipt(MTD）'!C10)","v":4895},4,{"$nulls":3},"短T類",3,1972]
[null,"裙裝",{"$f":"SUMIFS('個人KPISales receipt(MTD）'!J:J,'個人KPISales receipt(MTD）'!A:A,'個人KPISales receipt(MTD）'!A5,'個人KPISales receipt(MTD）'!C:C,'個人KPISales receipt(MTD）'!C12)","v":0},{"$f":"SUMIFS('個人KPISales receipt(MTD）'!K:K,'個人KPISales receipt(MTD）'!A:A,'個人KPISales receipt(MTD）'!A5,'個人KPISales receipt(MTD）'!B:B,'個人KPISales receipt(MTD）'!B4,'個人KPISales receipt(MTD）'!C:C,'個人KPISales receipt(MTD）'!C12)","v":0},0,{"$nulls":3},"裙裝",0,0]
[null,"編織衫",{"$f":"SUMIFS('個人KPISales receipt(MTD）'!J:J,'個人KPISales receipt(MTD）'!A:A,'個人KPISales receipt(MTD）'!A5,'個人KPISales receipt(MTD）'!B:B,'個人KPISales receipt(MTD）'!B4,'個人KPISales receipt(MTD）'!C:C,'個人KPISales receipt(MTD）'!C13)","v":2},{"$f":"SUMIFS('個人KPISales receipt(MTD）'!K:K,'個人KPISales receipt(MTD）'!A:A,'個人KPISales receipt(MTD）'!A5,'個人KPISales receipt(MTD）'!B:B,'個人KPISales receipt(MTD）'!B4,'個人KPISales receipt(MTD）'!C:C,'個人KPISales receipt(MTD）'!C13)","v":2183},1,{"$nulls":3},"編織衫",1,818]
[null,"襯衫",{"$f":"SUMIFS('個人KPISales receipt(MTD）'!J:J,'個人KPISales receipt(MTD）'!A:A,'個人KPISales receipt(MTD）'!A5,'個人KPISales receipt(MTD）'!B:B,'個人KPISales receipt(MTD）'!B4,'個人KPISales receipt(MTD）'!C:C,'個人KPISales receipt(MTD）'!C14)","v":0},{"$f":"SUMIFS('個人KPISales receipt(MTD）'!K:K,'個人KPISales receipt(MTD）'!A:A,'個人KPISales receipt(MTD）'!A5,'個人KPISales receipt(MTD）'!B:B,'個人KPISales receipt(MTD）'!B4,'個人KPISales receipt(MTD）'!C:C,'個人KPISales receipt(MTD）'!C14)","v":0},0,{"$nulls":3},"襯衫",0,0]
[null,"棉服",{"$f":"SUMIFS('個人KPISales receipt(MTD）'!J:J,'個人KPISales receipt(MTD）'!A:A,'個人KPISales receipt(MTD）'!A5,'個人KPISales receipt(MTD）'!B:B,'個人KPISales receipt(MTD）'!B4,'個人KPISales receipt(MTD）'!C:C,'個人KPISales receipt(MTD）'!C9)","v":0},{"$f":"SUMIFS('個人KPISales receipt(MTD）'!K:K,'個人KPISales receipt(MTD）'!A:A,'個人KPISales receipt(MTD）'!A5,'個人KPISales receipt(MTD）'!B:B,'個人KPISales receipt(MTD）'!B4,'個人KPISales receipt(MTD）'!C:C,'個人KPISales receipt(MTD）'!C9)","v":0},0,{"$nulls":3},"棉服",0,0]
[null,"羽絨服",{"$f":"SUMIFS('個人KPISales receipt(MTD）'!J:J,'個人KPISales receipt(MTD）'!A:A,'個人KPISales receipt(MTD）'!A5,'個人KPISales receipt(MTD）'!B:B,'個人KPISales receipt(MTD）'!B4,'個人KPISales receipt(MTD）'!C:C,'個人KPISales receipt(MTD）'!C4)","v":8},{"$f":"SUMIFS('個人KPISales receipt(MTD）'!K:K,'個人KPISales receipt(MTD）'!A:A,'個人KPISales receipt(MTD）'!A5,'個人KPISales receipt(MTD）'!B:B,'個人KPISales receipt(MTD）'!B4,'個人KPISales receipt(MTD）'!C:C,'個人KPISales receipt(MTD）'!C4)","v":17213},{"$nulls":4},"羽絨服",2,3236]
[null,"鞋",{"$f":"SUMIFS('個人KPISales receipt(MTD）'!J:J,'個人KPISales receipt(MTD）'!A:A,'個人KPISales receipt(MTD）'!A5,'個人KPISales receipt(MTD）'!B:B,'個人KPISales receipt(MTD）'!B6)","v":25},{"$f":"SUMIFS('個人KPISales receipt(MTD）'!K:K,'個人KPISales receipt(MTD）'!A:A,'個人KPISales receipt(MTD）'!A5,'個人KPISales receipt(MTD）'!B:B,'個人KPISales receipt(MTD）'!B6)","v":23388},20,{"$nulls":3},"鞋",5,5926]
[]
[]
["RYAN","TW 5日"," MTD","ATV","UPT","NO ","QTY",null,"LW"," MTD","ATV","UPT","NO ","QTY"]
[null,null,106568,2286,3.6,46,167,null,null,44416,2494,4.2,18,76]
[null,"VSLW",{"$f":"C60-J60","v":62152},{"$f":"D60-K60","v":-208},{"$f":"E60-L60","v":{"v":-0.6000000000000001,"d":"-0.6"}},{"$f":"F60-M60","v":28},{"$f":"G60-N60","v":91}]
[]
[null,"中類","件數","金額","VSLW尚欠",{"$nulls":3},"中類","件數","金額"]
[null,"內衣類",{"$f":"SUMIFS('個人KPISales receipt(MTD）'!J:J,'個人KPISales receipt(MTD）'!A:A,'個人KPISales receipt(MTD）'!A6,'個人KPISales receipt(MTD）'!B:B,'個人KPISales receipt(MTD）'!B4,'個人KPISales receipt(MTD）'!C:C,'個人KPISales receipt(MTD）'!C2)","v":0},{"$f":"SUMIFS('個人KPISales receipt(MTD）'!K:K,'個人KPISales receipt(MTD）'!A:A,'個人KPISales receipt(MTD）'!A6,'個人KPISales receipt(MTD）'!B:B,'個人KPISales receipt(MTD）'!B4,'個人KPISales receipt(MTD）'!C:C,'個人KPISales receipt(MTD）'!C2)","v":0},{"$f":"C64-J64","v":-7},{"$nulls":3},"內衣類",7,5960]
[null,"針織上衣",{"$f":"SUMIFS('個人KPISales receipt(MTD）'!J:J,'個人KPISales receipt(MTD）'!A:A,'個人KPISales receipt(MTD）'!A6,'個人KPISales receipt(MTD）'!C:C,'個人KPISales receipt(MTD）'!C5)","v":12},{"$f":"SUMIFS('個人KPISales receipt(MTD）'!K:K,'個人KPISales receipt(MTD）'!A:A,'個人KPISales receipt(MTD）'!A6,'個人KPISales receipt(MTD）'!B:B,'個人KPISales receipt(MTD）'!B4,'個人KPISales receipt(MTD）'!C:C,'個人KPISales receipt(MTD）'!C5)","v":16249},9,{"$nulls":3},"針織上衣",3,3708]
[null,"針織褲",{"$f":"SUMIFS('個人KPISales receipt(MTD）'!J:J,'個人KPISales receipt(MTD）'!A:A,'個人KPISales receipt(MTD）'!A6,'個人KPISales receipt(MTD）'!B:B,'個人KPISales receipt(MTD）'!B4,'個人KPISales receipt(MTD）'!C:C,'個人KPISales receipt(MTD）'!C6)","v":17},{"$f":"SUMIFS('個人KPISales receipt(MTD）'!K:K,'個人KPISales receipt(MTD）'!A:A,'個人KPISales receipt(MTD）'!A6,'個人KPISales receipt(MTD）'!B:B,'個人KPISales receipt(MTD）'!B4,'個人KPISales receipt(MTD）'!C:C,'個人KPISales receipt(MTD）'!C6)","v":14031},12,{"$nulls":3},"針織褲",5,3691]
[null,"梭織上衣",{"$f":"SUMIFS('個人KPISales receipt(MTD）'!J:J,'個人KPISales receipt(MTD）'!A:A,'個人KPISales receipt(MTD）'!A6,'個人KPISales receipt(MTD）'!B:B,'個人KPISales receipt(MTD）'!B4,'個人KPISales receipt(MTD）'!C:C,'個人KPISales receipt(MTD）'!C7)","v":11},{"$f":"SUMIFS('個人KPISales receipt(MTD）'!K:K,'個人KPISales receipt(MTD）'!A:A,'個人KPISales receipt(MTD）'!A6,'個人KPISales receipt(MTD）'!C:C,'個人KPISales receipt(MTD）'!C7)","v":18509},6,{"$nulls":3},"梭織上衣",5,8214]
[null,"梭織褲",{"$f":"SUMIFS('個人KPISales receipt(MTD）'!J:J,'個人KPISales receipt(MTD）'!A:A,'個人KPISales receipt(MTD）'!A6,'個人KPISales receipt(MTD）'!B:B,'個人KPISales receipt(MTD）'!B4,'個人KPISales receipt(MTD）'!C:C,'個人KPISales receipt(MTD）'!C8)","v":3},{"$f":"SUMIFS('個人KPISales receipt(MTD）'!K:K,'個人KPISales receipt(MTD）'!A:A,'個人KPISales receipt(MTD）'!A6,'個人KPISales receipt(MTD）'!B:B,'個人KPISales receipt(MTD）'!B4,'個人KPISales receipt(MTD）'!C:C,'個人KPISales receipt(MTD）'!C8)","v":2394},1,{"$nulls":3},"梭織褲",2,2772]
[null,"短T類",{"$f":"SUMIFS('個人KPISales receipt(MTD）'!J:J,'個人KPISales receipt(MTD）'!A:A,'個人KPISales receipt(MTD）'!A6,'個人KPISales receipt(MTD）'!B:B,'個人KPISales receipt(MTD）'!B4,'個人KPISales receipt(MTD）'!C:C,'個人KPISales receipt(MTD）'!C10)","v":2},{"$f":"SUMIFS('個人KPISales receipt(MTD）'!K:K,'個人KPISales receipt(MTD）'!A:A,'個人KPISales receipt(MTD）'!A6,'個人KPISales receipt(MTD）'!B:B,'個人KPISales receipt(MTD）'!B4,'個人KPISales receipt(MTD）'!C:C,'個人KPISales receipt(MTD）'!C10)","v":1546},0,{"$nulls":3},"短T類",2,1555]
[null,"裙裝",{"$f":"SUMIFS('個人KPISales receipt(MTD）'!J:J,'個人KPISales receipt(MTD）'!A:A,'個人KPISales receipt(MTD）'!A6,'個人KPISales receipt(MTD）'!C:C,'個人KPISales receipt(MTD）'!C12)","v":1},{"$f":"SUMIFS('個人KPISales receipt(MTD）'!K:K,'個人KPISales receipt(MTD）'!A:A,'個人KPISales receipt(MTD）'!A6,'個人KPISales receipt(MTD）'!B:B,'個人KPISales receipt(MTD）'!B4,'個人KPISales receipt(MTD）'!C:C,'個人KPISales receipt(MTD）'!C12)","v":1346},0,{"$nulls":3},"裙裝",1,1346]
[null,"編織衫",{"$f":"SUMIFS('個人KPISales receipt(MTD）'!J:J,'個人KPISales receipt(MTD）'!A:A,'個人KPISales receipt(MTD）'!A6,'個人KPISales receipt(MTD）'!B:B,'個人KPISales receipt(MTD）'!B4,'個人KPISales receipt(MTD）'!C:C,'個人KPISales receipt(MTD）'!C13)","v":2},{"$f":"SUMIFS('個人KPISales receipt(MTD）'!K:K,'個人KPISales receipt(MTD）'!A:A,'個人KPISales receipt(MTD）'!A6,'個人KPISales receipt(MTD）'!B:B,'個人KPISales receipt(MTD）'!B4,'個人KPISales receipt(MTD）'!C:C,'個人KPISales receipt(MTD）'!C13)","v":1836},1,{"$nulls":3},"編織衫",1,992]
[null,"襯衫",{"$f":"SUMIFS('個人KPISales receipt(MTD）'!J:J,'個人KPISales receipt(MTD）'!A:A,'個人KPISales receipt(MTD）'!A6,'個人KPISales receipt(MTD）'!B:B,'個人KPISales receipt(MTD）'!B4,'個人KPISales receipt(MTD）'!C:C,'個人KPISales receipt(MTD）'!C14)","v":0},{"$f":"SUMIFS('個人KPISales receipt(MTD）'!K:K,'個人KPISales receipt(MTD）'!A:A,'個人KPISales receipt(MTD）'!A6,'個人KPISales receipt(MTD）'!B:B,'個人KPISales receipt(MTD）'!B4,'個人KPISales receipt(MTD）'!C:C,'個人KPISales receipt(MTD）'!C14)","v":0},0,{"$nulls":3},"襯衫",0,0]
[null,"棉服",{"$f":"SUMIFS('個人KPISales receipt(MTD）'!J:J,'個人KPISales receipt(MTD）'!A:A,'個人KPISales receipt(MTD）'!A6,'個人KPISales receipt(MTD）'!B:B,'個人KPISales receipt(MTD）'!B4,'個人KPISales receipt(MTD）'!C:C,'個人KPISales receipt(MTD）'!C9)","v":3},{"$f":"SUMIFS('個人KPISales receipt(MTD）'!K:K,'個人KPISales receipt(MTD）'!A:A,'個人KPISales receipt(MTD）'!A6,'個人KPISales receipt(MTD）'!B:B,'個人KPISales receipt(MTD）'!B4,'個人KPISales receipt(MTD）'!C:C,'個人KPISales receipt(MTD）'!C9)","v":5312},0,{"$nulls":3},"棉服",3,5940]
[null,"羽絨服",{"$f":"SUMIFS('個人KPISales receipt(MTD）'!J:J,'個人KPISales receipt(MTD）'!A:A,'個人KPISales receipt(MTD）'!A6,'個人KPISales receipt(MTD）'!B:B,'個人KPISales receipt(MTD）'!B4,'個人KPISales receipt(MTD）'!C:C,'個人KPISales receipt(MTD）'!C4)","v":1},{"$f":"SUMIFS('個人KPISales receipt(MTD）'!K:K,'個人KPISales receipt(MTD）'!A:A,'個人KPISales receipt(MTD）'!A6,'個人KPISales receipt(MTD）'!B:B,'個人KPISales receipt(MTD）'!B4,'個人KPISales receipt(MTD）'!C:C,'個人KPISales receipt(MTD）'!C4)","v":2873},{"$nulls":4},"羽絨服"]
[null,"鞋",{"$f":"SUMIFS('個人KPISales receipt(MTD）'!J:J,'個人KPISales receipt(MTD）'!A:A,'個人KPISales receipt(MTD）'!A6,'個人KPISales receipt(MTD）'!B:B,'個人KPISales receipt(MTD）'!B6)","v":31},{"$f":"SUMIFS('個人KPISales receipt(MTD）'!K:K,'個人KPISales receipt(MTD）'!A:A,'個人KPISales receipt(MTD）'!A6,'個人KPISales receipt(MTD）'!B:B,'個人KPISales receipt(MTD）'!B6)","v":27017},1,{"$nulls":3},"鞋",30,26137]
[]
[]
["FANNY","TW 5日"," MTD","ATV","UPT","NO ","QTY",null,"LW"," MTD","ATV","UPT","NO ","QTY"]
[null,null,112271,3231,{"v":5,"d":"5.0"},35,177,null,null,56940,2204,3.5,26,91]
[null,"VSLW",{"$f":"C79-J79","v":55331},{"$f":"D79-K79","v":1027},{"$f":"E79-L79","v":1.5},{"$f":"F79-M79","v":9},{"$f":"G79-N79","v":86}]
[]
[null,"中類","件數","金額","VSLW尚欠",{"$nulls":3},"中類","件數","金額"]
[null,"內衣類",{"$f":"SUMIFS('個人KPISales receipt(MTD）'!J:J,'個人KPISales receipt(MTD）'!A:A,'個人KPISales receipt(MTD）'!A7,'個人KPISales receipt(MTD）'!B:B,'個人KPISales receipt(MTD）'!B4,'個人KPISales receipt(MTD）'!C:C,'個人KPISales receipt(MTD）'!C2)","v":0},{"$f":"SUMIFS('個人KPISales receipt(MTD）'!K:K,'個人KPISales receipt(MTD）'!A:A,'個人KPISales receipt(MTD）'!A7,'個人KPISales receipt(MTD）'!B:B,'個人KPISales receipt(MTD）'!B4,'個人KPISales receipt(MTD）'!C:C,'個人KPISales receipt(MTD）'!C2)","v":0},{"$f":"C83-J83","v":-8},{"$nulls":3},"內衣類",8,6279]
[null,"針織上衣",{"$f":"SUMIFS('個人KPISales receipt(MTD）'!J:J,'個人KPISales receipt(MTD）'!A:A,'個人KPISales receipt(MTD）'!A7,'個人KPISales receipt(MTD）'!C:C,'個人KPISales receipt(MTD）'!C5)","v":7},{"$f":"SUMIFS('個人KPISales receipt(MTD）'!K:K,'個人KPISales receipt(MTD）'!A:A,'個人KPISales receipt(MTD）'!A7,'個人KPISales receipt(MTD）'!B:B,'個人KPISales receipt(MTD）'!B4,'個人KPISales receipt(MTD）'!C:C,'個人KPISales receipt(MTD）'!C5)","v":8996},2,{"$nulls":3},"針織上衣",5,6104]
[null,"針織褲",{"$f":"SUMIFS('個人KPISales receipt(MTD）'!J:J,'個人KPISales receipt(MTD）'!A:A,'個人KPISales receipt(MTD）'!A7,'個人KPISales receipt(MTD）'!B:B,'個人KPISales receipt(MTD）'!B4,'個人KPISales receipt(MTD）'!C:C,'個人KPISales receipt(MTD）'!C6)","v":14},{"$f":"SUMIFS('個人KPISales receipt(MTD）'!K:K,'個人KPISales receipt(MTD）'!A:A,'個人KPISales receipt(MTD）'!A7,'個人KPISales receipt(MTD）'!B:B,'個人KPISales receipt(MTD）'!B4,'個人KPISales receipt(MTD）'!C:C,'個人KPISales receipt(MTD）'!C6)","v":11131},1,{"$nulls":3},"針織褲",13,6104]
[null,"梭織上衣",{"$f":"SUMIFS('個人KPISales receipt(MTD）'!J:J,'個人KPISales receipt(MTD）'!A:A,'個人KPISales receipt(MTD）'!A7,'個人KPISales receipt(MTD）'!B:B,'個人KPISales receipt(MTD）'!B4,'個人KPISales receipt(MTD）'!C:C,'個人KPISales receipt(MTD）'!C7)","v":17},{"$f":"SUMIFS('個人KPISales receipt(MTD）'!K:K,'個人KPISales receipt(MTD）'!A:A,'個人KPISales receipt(MTD）'!A7,'個人KPISales receipt(MTD）'!C:C,'個人KPISales receipt(MTD）'!C7)","v":30138},12,{"$nulls":3},"梭織上衣",5,9821]
[null,"梭織褲",{"$f":"SUMIFS('個人KPISales receipt(MTD）'!J:J,'個人KPISales receipt(MTD）'!A:A,'個人KPISales receipt(MTD）'!A7,'個人KPISales receipt(MTD）'!B:B,'個人KPISales receipt(MTD）'!B4,'個人KPISales receipt(MTD）'!C:C,'個人KPISales receipt(MTD）'!C8)","v":4},{"$f":"SUMIFS('個人KPISales receipt(MTD）'!K:K,'個人KPISales receipt(MTD）'!A:A,'個人KPISales receipt(MTD）'!A7,'個人KPISales receipt(MTD）'!B:B,'個人KPISales receipt(MTD）'!B4,'個人KPISales receipt(MTD）'!C:C,'個人KPISales receipt(MTD）'!C8)","v":4038},2,{"$nulls":3},"梭織褲",2,3038]
[null,"短T類",{"$f":"SUMIFS('個人KPISales receipt(MTD）'!J:J,'個人KPISales receipt(MTD）'!A:A,'個人KPISales receipt(MTD）'!A7,'個人KPISales receipt(MTD）'!B:B,'個人KPISales receipt(MTD）'!B4,'個人KPISales receipt(MTD）'!C:C,'個人KPISales receipt(MTD）'!C10)","v":9},{"$f":"SUMIFS('個人KPISales receipt(MTD）'!K:K,'個人KPISales receipt(MTD）'!A:A,'個人KPISales receipt(MTD）'!A7,'個人KPISales receipt(MTD）'!B:B,'個人KPISales receipt(MTD）'!B4,'個人KPISales receipt(MTD）'!C:C,'個人KPISales receipt(MTD）'!C10)","v":7221},3,{"$nulls":3},"短T類",6,4237]
[null,"裙裝",{"$f":"SUMIFS('個人KPISales receipt(MTD）'!J:J,'個人KPISales receipt(MTD）'!A:A,'個人KPISales receipt(MTD）'!A7,'個人KPISales receipt(MTD）'!C:C,'個人KPISales receipt(MTD）'!C12)","v":0},{"$f":"SUMIFS('個人KPISales receipt(MTD）'!K:K,'個人KPISales receipt(MTD）'!A:A,'個人KPISales receipt(MTD）'!A7,'個人KPISales receipt(MTD）'!B:B,'個人KPISales receipt(MTD）'!B4,'個人KPISales receipt(MTD）'!C:C,'個人KPISales receipt(MTD）'!C12)","v":0},0,{"$nulls":3},"裙裝"]
[null,"編織衫",{"$f":"SUMIFS('個人KPISales receipt(MTD）'!J:J,'個人KPISales receipt(MTD）'!A:A,'個人KPISales receipt(MTD）'!A7,'個人KPISales receipt(MTD）'!B:B,'個人KPISales receipt(MTD）'!B4,'個人KPISales receipt(MTD）'!C:C,'個人KPISales receipt(MTD）'!C13)","v":1},{"$f":"SUMIFS('個人KPISales receipt(MTD）'!K:K,'個人KPISales receipt(MTD）'!A:A,'個人KPISales receipt(MTD）'!A7,'個人KPISales receipt(MTD）'!B:B,'個人KPISales receipt(MTD）'!B4,'個人KPISales receipt(MTD）'!C:C,'個人KPISales receipt(MTD）'!C13)","v":862},-4,{"$nulls":3},"編織衫",5,6284]
[null,"襯衫",{"$f":"SUMIFS('個人KPISales receipt(MTD）'!J:J,'個人KPISales receipt(MTD）'!A:A,'個人KPISales receipt(MTD）'!A7,'個人KPISales receipt(MTD）'!B:B,'個人KPISales receipt(MTD）'!B4,'個人KPISales receipt(MTD）'!C:C,'個人KPISales receipt(MTD）'!C14)","v":0},{"$f":"SUMIFS('個人KPISales receipt(MTD）'!K:K,'個人KPISales receipt(MTD）'!A:A,'個人KPISales receipt(MTD）'!A7,'個人KPISales receipt(MTD）'!B:B,'個人KPISales receipt(MTD）'!B4,'個人KPISales receipt(MTD）'!C:C,'個人KPISales receipt(MTD）'!C14)","v":0},0,{"$nulls":3},"襯衫",0,0]
[null,"棉服",{"$f":"SUMIFS('個人KPISales receipt(MTD）'!J:J,'個人KPISales receipt(MTD）'!A:A,'個人KPISales receipt(MTD）'!A7,'個人KPISales receipt(MTD）'!B:B,'個人KPISales receipt(MTD）'!B4,'個人KPISales receipt(MTD）'!C:C,'個人KPISales receipt(MTD）'!C9)","v":1},{"$f":"SUMIFS('個人KPISales receipt(MTD）'!K:K,'個人KPISales receipt(MTD）'!A:A,'個人KPISales receipt(MTD）'!A7,'個人KPISales receipt(MTD）'!B:B,'個人KPISales receipt(MTD）'!B4,'個人KPISales receipt(MTD）'!C:C,'個人KPISales receipt(MTD）'!C9)","v":1715},1,{"$nulls":3},"棉服"]
[null,"羽絨服",{"$f":"SUMIFS('個人KPISales receipt(MTD）'!J:J,'個人KPISales receipt(MTD）'!A:A,'個人KPISales receipt(MTD）'!A7,'個人KPISales receipt(MTD）'!B:B,'個人KPISales receipt(MTD）'!B4,'個人KPISales receipt(MTD）'!C:C,'個人KPISales receipt(MTD）'!C4)","v":7},{"$f":"SUMIFS('個人KPISales receipt(MTD）'!K:K,'個人KPISales receipt(MTD）'!A:A,'個人KPISales receipt(MTD）'!A7,'個人KPISales receipt(MTD）'!B:B,'個人KPISales receipt(MTD）'!B4,'個人KPISales receipt(MTD）'!C:C,'個人KPISales receipt(MTD）'!C4)","v":13957},{"$nulls":4},"羽絨服",4,5322]
[null,"鞋",{"$f":"SUMIFS('個人KPISales receipt(MTD）'!J:J,'個人KPISales receipt(MTD）'!A:A,'個人KPISales receipt(MTD）'!A7,'個人KPISales receipt(MTD）'!B:B,'個人KPISales receipt(MTD）'!B6)","v":17},{"$f":"SUMIFS('個人KPISales receipt(MTD）'!K:K,'個人KPISales receipt(MTD）'!A:A,'個人KPISales receipt(MTD）'!A7,'個人KPISales receipt(MTD）'!B:B,'個人KPISales receipt(MTD）'!B6)","v":14850},12,{"$nulls":3},"鞋",5,4618]
[]
[]
["CARMEN","TW 5日"," MTD","ATV","UPT","NO ","QTY",null,"LW"," MTD","ATV","UPT","NO ","QTY"]
[null,null,85470,2664,3.5,31,111,null,null,52177,3981,{"v":4,"d":"4.0"},15,88]
[null,"VSLW",{"$f":"C98-J98","v":33293},{"$f":"D98-K98","v":-1317},{"$f":"E98-L98","v":-0.5},{"$f":"F98-M98","v":16},{"$f":"G98-N98","v":23}]
[null,null,56244,2017,3.4,28,97]
[null,"中類","件數","金額","VSLW尚欠",{"$nulls":3},"中類","件數","金額"]
[null,"內衣類",{"$f":"SUMIFS('個人KPISales receipt(MTD）'!J:J,'個人KPISales receipt(MTD）'!A:A,'個人KPISales receipt(MTD）'!A8,'個人KPISales receipt(MTD）'!B:B,'個人KPISales receipt(MTD）'!B4,'個人KPISales receipt(MTD）'!C:C,'個人KPISales receipt(MTD）'!C2)","v":0},{"$f":"SUMIFS('個人KPISales receipt(MTD）'!K:K,'個人KPISales receipt(MTD）'!A:A,'個人KPISales receipt(MTD）'!A8,'個人KPISales receipt(MTD）'!B:B,'個人KPISales receipt(MTD）'!B4,'個人KPISales receipt(MTD）'!C:C,'個人KPISales receipt(MTD）'!C2)","v":0},{"$f":"C102-J102","v":-6},{"$nulls":3},"內衣類",6,3885]
[null,"針織上衣",{"$f":"SUMIFS('個人KPISales receipt(MTD）'!J:J,'個人KPISales receipt(MTD）'!A:A,'個人KPISales receipt(MTD）'!A8,'個人KPISales receipt(MTD）'!C:C,'個人KPISales receipt(MTD）'!C5)","v":11},{"$f":"SUMIFS('個人KPISales receipt(MTD）'!K:K,'個人KPISales receipt(MTD）'!A:A,'個人KPISales receipt(MTD）'!A8,'個人KPISales receipt(MTD）'!B:B,'個人KPISales receipt(MTD）'!B4,'個人KPISales receipt(MTD）'!C:C,'個人KPISales receipt(MTD）'!C5)","v":13835},8,{"$nulls":3},"針織上衣",3,3717]
[null,"針織褲",{"$f":"SUMIFS('個人KPISales receipt(MTD）'!J:J,'個人KPISales receipt(MTD）'!A:A,'個人KPISales receipt(MTD）'!A8,'個人KPISales receipt(MTD）'!B:B,'個人KPISales receipt(MTD）'!B4,'個人KPISales receipt(MTD）'!C:C,'個人KPISales receipt(MTD）'!C6)","v":9},{"$f":"SUMIFS('個人KPISales receipt(MTD）'!K:K,'個人KPISales receipt(MTD）'!A:A,'個人KPISales receipt(MTD）'!A8,'個人KPISales receipt(MTD）'!B:B,'個人KPISales receipt(MTD）'!B4,'個人KPISales receipt(MTD）'!C:C,'個人KPISales receipt(MTD）'!C6)","v":7296},1,{"$nulls":3},"針織褲",8,5768]
[null,"梭織上衣",{"$f":"SUMIFS('個人KPISales receipt(MTD）'!J:J,'個人KPISales receipt(MTD）'!A:A,'個人KPISales receipt(MTD）'!A8,'個人KPISales receipt(MTD）'!B:B,'個人KPISales receipt(MTD）'!B4,'個人KPISales receipt(MTD）'!C:C,'個人KPISales receipt(MTD）'!C7)","v":6},{"$f":"SUMIFS('個人KPISales receipt(MTD）'!K:K,'個人KPISales receipt(MTD）'!A:A,'個人KPISales receipt(MTD）'!A8,'個人KPISales receipt(MTD）'!C:C,'個人KPISales receipt(MTD）'!C7)","v":10405},0,{"$nulls":3},"梭織上衣",6,10386]
[null,"梭織褲",{"$f":"SUMIFS('個人KPISales receipt(MTD）'!J:J,'個人KPISales receipt(MTD）'!A:A,'個人KPISales receipt(MTD）'!A8,'個人KPISales receipt(MTD）'!B:B,'個人KPISales receipt(MTD）'!B4,'個人KPISales receipt(MTD）'!C:C,'個人KPISales receipt(MTD）'!C8)","v":3},{"$f":"SUMIFS('個人KPISales receipt(MTD）'!K:K,'個人KPISales receipt(MTD）'!A:A,'個人KPISales receipt(MTD）'!A8,'個人KPISales receipt(MTD）'!B:B,'個人KPISales receipt(MTD）'!B4,'個人KPISales receipt(MTD）'!C:C,'個人KPISales receipt(MTD）'!C8)","v":3169},2,{"$nulls":3},"梭織褲",1,969]
[null,"短T類",{"$f":"SUMIFS('個人KPISales receipt(MTD）'!J:J,'個人KPISales receipt(MTD）'!A:A,'個人KPISales receipt(MTD）'!A8,'個人KPISales receipt(MTD）'!B:B,'個人KPISales receipt(MTD）'!B4,'個人KPISales receipt(MTD）'!C:C,'個人KPISales receipt(MTD）'!C10)","v":4},{"$f":"SUMIFS('個人KPISales receipt(MTD）'!K:K,'個人KPISales receipt(MTD）'!A:A,'個人KPISales receipt(MTD）'!A8,'個人KPISales receipt(MTD）'!B:B,'個人KPISales receipt(MTD）'!B4,'個人KPISales receipt(MTD）'!C:C,'個人KPISales receipt(MTD）'!C10)","v":2262},-4,{"$nulls":3},"短T類",8,4699]
[null,"裙裝",{"$f":"SUMIFS('個人KPISales receipt(MTD）'!J:J,'個人KPISales receipt(MTD）'!A:A,'個人KPISales receipt(MTD）'!A8,'個人KPISales receipt(MTD）'!C:C,'個人KPISales receipt(MTD）'!C12)","v":0},{"$f":"SUMIFS('個人KPISales receipt(MTD）'!K:K,'個人KPISales receipt(MTD）'!A:A,'個人KPISales receipt(MTD）'!A8,'個人KPISales receipt(MTD）'!B:B,'個人KPISales receipt(MTD）'!B4,'個人KPISales receipt(MTD）'!C:C,'個人KPISales receipt(MTD）'!C12)","v":0},0,{"$nulls":3},"裙裝"]
[null,"編織衫",{"$f":"SUMIFS('個人KPISales receipt(MTD）'!J:J,'個人KPISales receipt(MTD）'!A:A,'個人KPISales receipt(MTD）'!A8,'個人KPISales receipt(MTD）'!B:B,'個人KPISales receipt(MTD）'!B4,'個人KPISales receipt(MTD）'!C:C,'個人KPISales receipt(MTD）'!C13)","v":3},{"$f":"SUMIFS('個人KPISales receipt(MTD）'!K:K,'個人KPISales receipt(MTD）'!A:A,'個人KPISales receipt(MTD）'!A8,'個人KPISales receipt(MTD）'!B:B,'個人KPISales receipt(MTD）'!B4,'個人KPISales receipt(MTD）'!C:C,'個人KPISales receipt(MTD）'!C13)","v":3438},-3,{"$nulls":3},"編織衫",6,6045]
[null,"襯衫",{"$f":"SUMIFS('個人KPISales receipt(MTD）'!J:J,'個人KPISales receipt(MTD）'!A:A,'個人KPISales receipt(MTD）'!A8,'個人KPISales receipt(MTD）'!B:B,'個人KPISales receipt(MTD）'!B4,'個人KPISales receipt(MTD）'!C:C,'個人KPISales receipt(MTD）'!C14)","v":0},{"$f":"SUMIFS('個人KPISales receipt(MTD）'!K:K,'個人KPISales receipt(MTD）'!A:A,'個人KPISales receipt(MTD）'!A8,'個人KPISales receipt(MTD）'!B:B,'個人KPISales receipt(MTD）'!B4,'個人KPISales receipt(MTD）'!C:C,'個人KPISales receipt(MTD）'!C14)","v":0},0,{"$nulls":3},"襯衫",0,0]
[null,"棉服",{"$f":"SUMIFS('個人KPISales receipt(MTD）'!J:J,'個人KPISales receipt(MTD）'!A:A,'個人KPISales receipt(MTD）'!A8,'個人KPISales receipt(MTD）'!B:B,'個人KPISales receipt(MTD）'!B4,'個人KPISales receipt(MTD）'!C:C,'個人KPISales receipt(MTD）'!C9)","v":1},{"$f":"SUMIFS('個人KPISales receipt(MTD）'!K:K,'個人KPISales receipt(MTD）'!A:A,'個人KPISales receipt(MTD）'!A8,'個人KPISales receipt(MTD）'!B:B,'個人KPISales receipt(MTD）'!B4,'個人KPISales receipt(MTD）'!C:C,'個人KPISales receipt(MTD）'!C9)","v":1797},1,{"$nulls":3},"棉服",0,0]
[null,"羽絨服",{"$f":"SUMIFS('個人KPISales receipt(MTD）'!J:J,'個人KPISales receipt(MTD）'!A:A,'個人KPISales receipt(MTD）'!A8,'個人KPISales receipt(MTD）'!B:B,'個人KPISales receipt(MTD）'!B4,'個人KPISales receipt(MTD）'!C:C,'個人KPISales receipt(MTD）'!C4)","v":5},{"$f":"SUMIFS('個人KPISales receipt(MTD）'!K:K,'個人KPISales receipt(MTD）'!A:A,'個人KPISales receipt(MTD）'!A8,'個人KPISales receipt(MTD）'!B:B,'個人KPISales receipt(MTD）'!B4,'個人KPISales receipt(MTD）'!C:C,'個人KPISales receipt(MTD）'!C4)","v":10960},{"$nulls":4},"羽絨服",5,10524]
[null,"鞋",{"$f":"SUMIFS('個人KPISales receipt(MTD）'!J:J,'個人KPISales receipt(MTD）'!A:A,'個人KPISales receipt(MTD）'!A8,'個人KPISales receipt(MTD）'!B:B,'個人KPISales receipt(MTD）'!B6)","v":16},{"$f":"SUMIFS('個人KPISales receipt(MTD）'!K:K,'個人KPISales receipt(MTD）'!A:A,'個人KPISales receipt(MTD）'!A8,'個人KPISales receipt(MTD）'!B:B,'個人KPISales receipt(MTD）'!B6)","v":14198},13,{"$nulls":3},"鞋",3,1168]

{"sheet":"Sales receipt((當天)","index":2,"n_rows":178,"n_cols":14,"rows_kept":178}
["營業員","大類","中類","商品名稱","季節","系列","子系列","性別","上市日期","銷售數量","結算金額","銷售日期","注冊時間","回流判斷"]
["M0989 Susanna","广宣用品","內衣類","DOWN JKT","冬季","ATHLETICS","A.P.","FEMALE",{"$nulls":5},"回流"]
["M2172 Janet","其它","內搭","PAD JKT","春季","FASHION","BLUE","MALE",{"$nulls":5},"新注册"]
["M2518 Silver","服装","羽絨服","PAD VEST","秋季","LIFESTYLE","EXPLORE","UNISEX",{"$nulls":5},"(空白)"]
["M1436 Khaki","配件","針織上衣","SKIRT","夏季","(空白)","FILA MILANO","(空白)"]
["M2798 Ryan","鞋类","針織褲","SWEAT","常青",null,"FILA ORIGINALE"]
["M2801 Fanny","(空白)","梭織上衣","WOVEN JKT","(空白)",null,"FITNESS"]
["M2902 Carmen",null,"梭織褲","WOVEN PANTS",null,null,"GOLF"]
[null,null,"棉服","上衣两件套",null,null,"HERITAGE"]
[null,null,"短T類","中长款羽绒服",null,null,"ICONA"]
[null,null,"滑雪服","长款羽绒服",null,null,"MODERN HERITAGE"]
[null,null,"裙裝","休闲西装",null,null,"MODERNO"]
[null,null,"編織衫","冲锋衣",null,null,"ORIGINALE"]
[null,null,"襯衫","冲锋衣两件套",null,null,"SKI"]
[{"$nulls":3},"羽绒马甲",null,null,"SPORT PERFORMANCE"]
[{"$nulls":3},"羽绒服",null,null,"TENNIS"]
[{"$nulls":3},"羽绒服两件套",null,null,"WHITE"]
[{"$nulls":3},"男装上衣",null,null,"(空白)"]
[{"$nulls":3},"针织马甲"]
[{"$nulls":3},"针织打底裤"]
[{"$nulls":3},"针织长袖POLO衫"]
[{"$nulls":3},"针织长袖上衣"]
[{"$nulls":3},"针织长袖外套"]
[{"$nulls":3},"针织长袖衫"]
[{"$nulls":3},"针织长裤"]
[{"$nulls":3},"针织连帽上衣"]
[{"$nulls":3},"针织连帽外套"]
[{"$nulls":3},"针织背心"]
[{"$nulls":3},"针织套头衫"]
[{"$nulls":3},"针织短袖POLO衫"]
[{"$nulls":3},"针织短袖连帽上衣"]
[{"$nulls":3},"针织短袖衫"]
[{"$nulls":3},"针织裙"]
[{"$nulls":3},"呢子外套"]
[{"$nulls":3},"连衣裙"]
[{"$nulls":3},"轻薄羽绒服"]
[{"$nulls":3},"梭织九分裤"]
[{"$nulls":3},"梭织马甲"]
[{"$nulls":3},"梭织五分裤"]
[{"$nulls":3},"梭织外套"]
[{"$nulls":3},"梭织长袖衬衫"]
[{"$nulls":3},"梭织长裤"]
[{"$nulls":3},"梭织裙"]
[{"$nulls":3},"棉马甲"]
[{"$nulls":3},"棉服"]
[{"$nulls":3},"短裙（含短裤）"]
[{"$nulls":3},"编织外套"]
[{"$nulls":3},"编织连衣裙"]
[{"$nulls":3},"编织衫"]
[{"$nulls":3},"编织衫两件套"]
[{"$nulls":3},"滑雪服"]
{"$rows_empty":44}
["                                            請把要分析的小票複製在以下"]
["M2172 Janet","鞋类","運動鞋","摩登运动鞋","秋季","FASHION","MODERNO","MALE","2025-08-05",1,862,"2025-10-08","斐樂大貨"]
["M2902 Carmen","鞋类","運動鞋","摩登运动鞋","秋季","FASHION","MODERNO","MALE","2025-08-05",1,863,"2025-10-08","斐樂大貨"]
["M2798 Ryan","鞋类","運動鞋","复古运动鞋","秋季","FASHION","ORIGINALE","MALE","2025-08-05",1,712,"2025-10-08","斐樂大貨","回流"]
["M0989 Susanna","鞋类","運動鞋","复古运动鞋","秋季","FASHION","ORIGINALE","MALE","2025-08-05",1,880,"2025-10-08","斐樂大貨"]
["M2902 Carmen","鞋类","運動鞋","摩登运动鞋","冬季","FASHION","MODERNO","MALE","2025-09-04",1,980,"2025-10-08","斐樂大貨"]
["M2172 Janet","鞋类","運動鞋","复古运动鞋","冬季","FASHION","ORIGINALE","MALE","2025-09-04",1,833,"2025-10-08","斐樂大貨"]
["M2172 Janet","鞋类","運動鞋","复古运动鞋","冬季","FASHION","ORIGINALE","MALE","2025-09-04",1,833,"2025-10-08","斐樂大貨"]
["M0989 Susanna","鞋类","運動鞋","摩登运动鞋","秋季","FASHION","MODERNO","FEMALE","2025-07-03",1,980,"2025-10-08","斐樂大貨"]
["M2902 Carmen","鞋类","運動鞋","摩登运动鞋","冬季","FASHION","MODERNO","FEMALE","2025-09-04",1,803,"2025-10-08","斐樂大貨","回流"]
["M2902 Carmen","鞋类","運動鞋","摩登运动鞋","冬季","FASHION","MODERNO","FEMALE","2025-09-04",1,803,"2025-10-08","斐樂大貨","回流"]
["M2798 Ryan","鞋类","運動鞋","复古运动鞋","冬季","FASHION","ORIGINALE","FEMALE","2025-09-04",1,793,"2025-10-08","斐樂大貨","回流"]
["M2902 Carmen","鞋类","跑步鞋","路跑鞋","冬季","ATHLETICS","SPORT PERFORMANCE","MALE","2025-09-04",1,803,"2025-10-08","斐樂大貨","回流"]
["M2798 Ryan","鞋类","跑步鞋","路跑鞋","冬季","ATHLETICS","SPORT PERFORMANCE","MALE","2025-09-04",1,1116,"2025-10-08","斐樂大貨","回流"]
["M2172 Janet","鞋类","跑步鞋","户外鞋","秋季","ATHLETICS","SPORT PERFORMANCE","FEMALE","2025-06-03",1,1004,"2025-10-08","斐樂大貨"]
["M2902 Carmen","鞋类","跑步鞋","路跑鞋","冬季","ATHLETICS","SPORT PERFORMANCE","FEMALE","2025-09-04",1,803,"2025-10-08","斐樂大貨","回流"]
["M2902 Carmen","鞋类","跑步鞋","路跑鞋","冬季","ATHLETICS","SPORT PERFORMANCE","FEMALE","2025-09-04",1,803,"2025-10-08","斐樂大貨","回流"]
["M0989 Susanna","鞋类","跑步鞋","户外鞋","冬季","ATHLETICS","SPORT PERFORMANCE","FEMALE","2025-09-04",1,1340,"2025-10-08","斐樂大貨"]
["M2172 Janet","鞋类","網球鞋","网球生活鞋","冬季","ATHLETICS","SPORT PERFORMANCE","MALE","2025-09-04",1,748,"2025-10-08","斐樂大貨","回流"]
["M2902 Carmen","鞋类","網球鞋","网球生活鞋","冬季","ATHLETICS","SPORT PERFORMANCE","MALE","2025-09-04",1,774,"2025-10-08","斐樂大貨"]
["M2172 Janet","鞋类","網球鞋","网球生活鞋","冬季","ATHLETICS","SPORT PERFORMANCE","MALE","2025-09-04",1,748,"2025-10-08","斐樂大貨","回流"]
["M2902 Carmen","鞋类","網球鞋","网球生活鞋","冬季","ATHLETICS","SPORT PERFORMANCE","MALE","2025-09-04",1,748,"2025-10-08","斐樂大貨"]
["M0989 Susanna","鞋类","網球鞋","网球生活鞋","冬季","ATHLETICS","SPORT PERFORMANCE","FEMALE","2025-09-04",1,880,"2025-10-08","斐樂大貨"]
["M2902 Carmen","服装","編織衫","编织外套","冬季","ATHLETICS","GOLF","女","2025-09-04",1,1940,"2025-10-08","斐樂大貨"]
["M2902 Carmen","服装","編織衫","编织外套","冬季","ATHLETICS","GOLF","女","2025-09-04",2,3177,"2025-10-08","斐樂大貨","回流"]
["M2902 Carmen","服装","編織衫","编织衫","冬季","ATHLETICS","GOLF","FEMALE","2025-09-04",1,1480,"2025-10-08","斐樂大貨"]
["M2902 Carmen","服装","編織衫","编织衫","秋季","LIFESTYLE","WHITE","FEMALE","2025-08-05",1,963,"2025-10-08","斐樂大貨","回流"]
["M2172 Janet","服装","短T類","针织短袖衫","冬季","LIFESTYLE","HERITAGE","MALE","2025-09-04",1,493,"2025-10-08","斐樂大貨"]
["M2902 Carmen","服装","短T類","针织短袖POLO衫","冬季","LIFESTYLE","HERITAGE","MALE","2025-09-04",1,629,"2025-10-08","斐樂大貨"]
["M2902 Carmen","服装","棉服","棉马甲","冬季","ATHLETICS","GOLF","男","2025-09-23",1,1884,"2025-10-08","斐樂大貨"]
["M2798 Ryan","服装","棉服","棉服","冬季","LIFESTYLE","BLUE","MALE","2025-10-09",1,2331,"2025-10-08","斐樂大貨","回流"]
["M2172 Janet","服装","內搭","针织长袖上衣","冬季","ATHLETICS","FITNESS","MALE","2025-09-04",1,721,"2025-10-08","斐樂大貨","回流"]
["M2798 Ryan","服装","內搭","针织长袖POLO衫","冬季","ATHLETICS","GOLF","MALE","2025-09-04",1,1360,"2025-10-08","斐樂大貨","回流"]
["M2798 Ryan","服装","內搭","针织套头衫","冬季","ATHLETICS",null,"MALE","2025-09-23",1,1047,"2025-10-08","斐樂大貨","回流"]
["M2172 Janet","服装","內搭","针织套头衫","冬季","ATHLETICS",null,"FEMALE","2025-09-23",1,1240,"2025-10-08","斐樂大貨"]
["M2798 Ryan","服装","內搭","针织套头衫","冬季","LIFESTYLE","HERITAGE","MALE","2025-09-04",1,714,"2025-10-08","斐樂大貨"]
["M2172 Janet","服装","內搭","针织长袖衫","冬季","LIFESTYLE","FILA ORIGINALE","MALE","2025-09-23",1,578,"2025-10-08","斐樂大貨","回流"]
["M2172 Janet","服装","內搭","针织长袖衫","冬季","LIFESTYLE","FILA ORIGINALE","MALE","2025-09-23",1,578,"2025-10-08","斐樂大貨","回流"]
["M2798 Ryan","服装","內搭","针织连帽上衣","冬季","LIFESTYLE","FILA ORIGINALE","FEMALE","2025-09-23",1,714,"2025-10-08","斐樂大貨"]
["M1436 Khaki","服装","內搭","针织连帽上衣","冬季","INLINE","URBAN TECH","MALE","2025-09-23",1,880,"2025-10-08","斐樂潮牌"]
["M2902 Carmen","服装","梭織褲","梭织长裤","秋季","ATHLETICS","A.P.","MALE","2025-06-03",1,969,"2025-10-08","斐樂大貨"]
["M2172 Janet","服装","梭織褲","梭织长裤","冬季","ATHLETICS","GOLF","MALE","2025-09-04",1,1376,"2025-10-08","斐樂大貨","回流"]
["M0989 Susanna","服装","梭織上衣","梭织外套","冬季","LIFESTYLE","WHITE","MALE","2025-09-23",1,1479,"2025-10-08","斐樂大貨"]
["M0989 Susanna","服装","梭織上衣","梭织外套","冬季","LIFESTYLE","HERITAGE","MALE","2025-09-04",1,1479,"2025-10-08","斐樂大貨"]
["M2902 Carmen","服装","梭織上衣","梭织外套","冬季","LIFESTYLE","FILA ORIGINALE","MALE","2025-09-23",1,1638,"2025-10-08","斐樂大貨","回流"]
["M2798 Ryan","服装","梭織上衣","梭织外套","冬季","LIFESTYLE","WHITE","FEMALE","2025-09-23",1,1680,"2025-10-08","斐樂大貨"]
["M2172 Janet","服装","羽絨服","冲锋衣两件套","冬季","ATHLETICS","EXPLORE","MALE","2025-10-09",1,3343,"2025-10-08","斐樂大貨","回流"]
["M2798 Ryan","服装","羽絨服","冲锋衣两件套","冬季","ATHLETICS","EXPLORE","MALE","2025-10-09",1,3304,"2025-10-08","斐樂大貨","回流"]
["M2798 Ryan","服装","針織褲","针织长裤","冬季","ATHLETICS","FITNESS","FEMALE","2025-09-04",1,828,"2025-10-08","斐樂大貨","回流"]
["M0989 Susanna","服装","針織褲","针织长裤","冬季","LIFESTYLE","WHITE","MALE","2025-09-23",1,880,"2025-10-08","斐樂大貨"]
["M2798 Ryan","服装","針織褲","针织长裤","冬季","LIFESTYLE","HERITAGE","MALE","2025-09-04",1,714,"2025-10-08","斐樂大貨"]
["M2902 Carmen","服装","針織褲","针织长裤","冬季","LIFESTYLE","HERITAGE","MALE","2025-09-04",1,739,"2025-10-08","斐樂大貨"]
["M2798 Ryan","服装","針織褲","针织长裤","冬季","LIFESTYLE","WHITE","FEMALE","2025-09-23",1,794,"2025-10-08","斐樂大貨","回流"]
["M2798 Ryan","服装","針織褲","针织长裤","冬季","LIFESTYLE","HERITAGE","FEMALE","2025-09-04",1,880,"2025-10-08","斐樂大貨"]
["M2798 Ryan","服装","針織褲","针织长裤","冬季","LIFESTYLE","FILA ORIGINALE","FEMALE","2025-09-23",1,714,"2025-10-08","斐樂大貨"]
["M2172 Janet","服装","針織上衣","针织长袖外套","冬季","LIFESTYLE","FILA ORIGINALE","MALE","2025-09-23",1,1258,"2025-10-08","斐樂大貨","回流"]
["M2902 Carmen","服装","針織上衣","针织长袖外套","秋季","LIFESTYLE","FILA ORIGINALE","FEMALE","2025-08-19",1,934,"2025-10-08","斐樂大貨","回流"]
["M0989 Susanna","服装","針織上衣","针织长袖外套","秋季","LIFESTYLE","FILA ORIGINALE","FEMALE","2025-08-19",1,1003,"2025-10-08","斐樂大貨"]
["M2902 Carmen","服装","針織上衣","针织长袖外套","秋季","LIFESTYLE","FILA ORIGINALE","FEMALE","2025-08-19",1,934,"2025-10-08","斐樂大貨","回流"]
["M2902 Carmen","服装","針織上衣","针织连帽外套","冬季","LIFESTYLE","WHITE","FEMALE","2025-09-23",1,1250,"2025-10-08","斐樂大貨","回流"]
["M1436 Khaki","服装","針織上衣","针织长袖外套","冬季","LIFESTYLE","HERITAGE","FEMALE","2025-09-04",1,1258,"2025-10-08","斐樂大貨"]
["M0989 Susanna","服装","針織上衣","针织长袖外套","冬季","LIFESTYLE","HERITAGE","FEMALE","2025-09-04",1,1302,"2025-10-08","斐樂大貨"]
["M2902 Carmen","服装","針織上衣","针织长袖外套","冬季","LIFESTYLE","FILA ORIGINALE","FEMALE","2025-09-23",1,1480,"2025-10-08","斐樂大貨"]
["M1436 Khaki","配件","包類","挎包","冬季","LIFESTYLE","HERITAGE","MALE","2025-09-04",1,578,"2025-10-08","斐樂大貨"]
["M2798 Ryan","配件","包類","挎包","冬季","LIFESTYLE","HERITAGE","MALE","2025-09-04",1,612,"2025-10-08","斐樂大貨","回流"]
["M1436 Khaki","配件","帽類","棒球帽","冬季","INLINE","FILA FUSION LIFE","UNISEX","2025-09-04",1,289,"2025-10-08","斐樂潮牌"]
["M2172 Janet","配件","襪類","浅口袜","夏季","LIFESTYLE","WHITE","MALE","2025-03-06",2,120,"2025-10-08","斐樂大貨","回流"]
["M2902 Carmen","配件","襪類","浅口袜","夏季","LIFESTYLE","WHITE","MALE","2025-03-06",1,60,"2025-10-08","斐樂大貨"]
["M0989 Susanna","配件","襪類","浅口袜","夏季","LIFESTYLE","WHITE","MALE","2025-03-06",1,60,"2025-10-08","斐樂大貨"]
["M0989 Susanna","配件","襪類","中腰袜","冬季","LIFESTYLE","FILA ORIGINALE","MALE","2025-09-04",1,70,"2025-10-08","斐樂大貨"]
["M2798 Ryan","广宣用品","促销品","FILA宽拉杆拉杆箱（白色）","常青",null,null,"不分","2025-06-12",1,0,"2025-10-08","斐樂大貨","回流"]
["M2902 Carmen","广宣用品","促销品","FILA宽拉杆拉杆箱（白色）","常青",null,null,"不分","2025-06-12",2,0,"2025-10-08","斐樂大貨","回流"]
["M0989 Susanna","其它","其它","PLASTIC BAG","春季",null,null,"UNISEX",null,1,1,"2025-10-08","通用"]
["M2798 Ryan","其它","其它","PLASTIC BAG","春季",null,null,"UNISEX",null,1,1,"2025-10-08","通用"]
["M2798 Ryan","其它","其它","PLASTIC BAG","春季",null,null,"UNISEX",null,1,1,"2025-10-08","通用","回流"]
["M2902 Carmen","其它","其它","PLASTIC BAG","春季",null,null,"UNISEX",null,2,2,"2025-10-08","通用"]
["M0989 Susanna","其它","其它","PLASTIC BAG","春季",null,null,"UNISEX",null,1,1,"2025-10-08","通用"]
["M2172 Janet","其它","其它","PLASTIC BAG","春季",null,null,"UNISEX",null,2,2,"2025-10-08","通用"]
["M2172 Janet","其它","其它","PLASTIC BAG","春季",null,null,"UNISEX",null,1,1,"2025-10-08","通用","回流"]
["M0989 Susanna","其它","其它","PLASTIC BAG","春季",null,null,"UNISEX",null,3,3,"2025-10-08","通用"]
["M2172 Janet","其它","其它","PLASTIC BAG","春季",null,null,"UNISEX",null,1,1,"2025-10-08","通用"]
["M2172 Janet","其它","其它","PLASTIC BAG","春季",null,null,"UNISEX",null,1,1,"2025-10-08","通用","回流"]
["M2902 Carmen","其它","其它","PLASTIC BAG","春季",null,null,"UNISEX",null,2,2,"2025-10-08","通用"]

{"sheet":"個人KPISales receipt(MTD）","index":3,"n_rows":3802,"n_cols":14,"rows_kept":3802}
["營業員","大類","中類","商品名稱","季節","系列","子系列","性別","上市日期","銷售數量","結算金額","銷售日期","注冊時間","回流判斷"]
["M0989 Susanna","广宣用品","內衣類","DOWN JKT","冬季","ATHLETICS","A.P.","FEMALE",{"$nulls":5},"回流"]
["M2172 Janet","其它","內搭","PAD JKT","春季","FASHION","BLUE","MALE",{"$nulls":5},"新注册"]
[null,"服装","羽絨服","PAD VEST","秋季","LIFESTYLE","EXPLORE","UNISEX",{"$nulls":5},"(空白)"]
["M1436 Khaki","配件","針織上衣","SKIRT","夏季","(空白)","FILA MILANO","(空白)"]
["M2798 Ryan","鞋类","針織褲","SWEAT","常青",null,"FILA ORIGINALE"]
["M2801 Fanny","(空白)","梭織上衣","WOVEN JKT","(空白)",null,"FITNESS"]
["M2902 Carmen",null,"梭織褲","WOVEN PANTS",null,null,"GOLF"]
[null,null,"棉服","上衣两件套",null,null,"HERITAGE"]
[null,null,"短T類","中长款羽绒服",null,null,"ICONA"]
[null,null,"滑雪服","长款羽绒服",null,null,"MODERN HERITAGE"]
[null,null,"裙裝","休闲西装",null,null,"MODERNO"]
[null,null,"編織衫","冲锋衣",null,null,"ORIGINALE"]
[null,null,"襯衫","冲锋衣两件套",null,null,"SKI"]
[{"$nulls":3},"羽绒马甲",null,null,"SPORT PERFORMANCE"]
[{"$nulls":3},"羽绒服",null,null,"TENNIS"]
[{"$nulls":3},"羽绒服两件套",null,null,"WHITE"]
[{"$nulls":3},"男装上衣",null,null,"(空白)"]
[{"$nulls":3},"针织马甲"]
[{"$nulls":3},"针织打底裤"]
[{"$nulls":3},"针织长袖POLO衫"]
[{"$nulls":3},"针织长袖上衣"]
[{"$nulls":3},"针织长袖外套"]
[{"$nulls":3},"针织长袖衫"]
[{"$nulls":3},"针织长裤"]
[{"$nulls":3},"针织连帽上衣"]
[{"$nulls":3},"针织连帽外套"]
[{"$nulls":3},"针织背心"]
[{"$nulls":3},"针织套头衫"]
[{"$nulls":3},"针织短袖POLO衫"]
[{"$nulls":3},"针织短袖连帽上衣"]
[{"$nulls":3},"针织短袖衫"]
[{"$nulls":3},"针织裙"]
[{"$nulls":3},"呢子外套"]
[{"$nulls":3},"连衣裙"]
[{"$nulls":3},"轻薄羽绒服"]
[{"$nulls":3},"梭织九分裤"]
[{"$nulls":3},"梭织马甲"]
[{"$nulls":3},"梭织五分裤"]
[{"$nulls":3},"梭织外套"]
[{"$nulls":3},"梭织长袖衬衫"]
[{"$nulls":3},"梭织长裤"]
[{"$nulls":3},"梭织裙"]
[{"$nulls":3},"棉马甲"]
[{"$nulls":3},"棉服"]
[{"$nulls":3},"短裙（含短裤）"]
[{"$nulls":3},"编织外套"]
[{"$nulls":3},"编织连衣裙"]
[{"$nulls":3},"编织衫"]
[{"$nulls":3},"编织衫两件套"]
[{"$nulls":3},"滑雪服"]
{"$rows_empty":44}
["                                            請把要分析的小票複製在以下"]
["營業員","大類","中類","商品名稱","季節","系列","子系列","性別","上市日期","銷售數量","結算金額","銷售日期","品牌","回流判斷"]
["M2798 Ryan","鞋类","運動鞋","摩登运动鞋","秋季","FASHION","MODERNO","MALE","2025-08-05",1,980,"2025-09-29","斐樂大貨"]
["M1436 Khaki","鞋类","運動鞋","复古运动鞋","秋季","FASHION","ORIGINALE","MALE","2025-08-05",1,748,"2025-09-29","斐樂大貨"]
["M1436 Khaki","鞋类","運動鞋","复古运动鞋","冬季","FASHION","ORIGINALE","FEMALE","2025-09-04",1,880,"2025-09-29","斐樂大貨"]
["M0989 Susanna","鞋类","跑步鞋","户外鞋","秋季","ATHLETICS","SPORT PERFORMANCE","MALE","2025-06-03",1,1147,"2025-09-29","斐樂大貨","回流"]
["M2172 Janet","鞋类","跑步鞋","路跑鞋","冬季","ATHLETICS","SPORT PERFORMANCE","MALE","2025-09-04",1,833,"2025-09-29","斐樂大貨","回流"]
["M2172 Janet","鞋类","跑步鞋","路跑鞋","冬季","ATHLETICS","SPORT PERFORMANCE","MALE","2025-09-04",1,833,"2025-09-29","斐樂大貨","回流"]
["M2172 Janet","鞋类","跑步鞋","路跑鞋","冬季","ATHLETICS","SPORT PERFORMANCE","MALE","2025-09-04",1,1012,"2025-09-29","斐樂大貨","回流"]
["M0989 Susanna","鞋类","跑步鞋","路跑鞋","冬季","ATHLETICS","SPORT PERFORMANCE","FEMALE","2025-09-04",1,833,"2025-09-29","斐樂大貨"]
["M0989 Susanna","鞋类","網球鞋","网球生活鞋","冬季","ATHLETICS","SPORT PERFORMANCE","FEMALE","2025-09-04",1,748,"2025-09-29","斐樂大貨"]
["M0989 Susanna","服装","編織衫","编织衫","冬季","ATHLETICS","GOLF","男","2025-09-04",1,1258,"2025-09-29","斐樂大貨"]
["M2172 Janet","服装","短T類","针织短袖POLO衫","秋季","ATHLETICS","GOLF","MALE","2025-07-22",1,1428,"2025-09-29","斐樂大貨"]
["M1436 Khaki","服装","短T類","针织短袖POLO衫","秋季","LIFESTYLE","BLUE","MALE","2025-06-19",1,1026,"2025-09-29","斐樂大貨","回流"]
["M2798 Ryan","服装","短T類","针织短袖POLO衫","冬季","LIFESTYLE","HERITAGE","MALE","2025-09-04",1,740,"2025-09-29","斐樂大貨"]
["M2798 Ryan","服装","內搭","针织长袖上衣","冬季","ATHLETICS","FITNESS","MALE","2025-09-04",1,663,"2025-09-29","斐樂大貨","回流"]
["M2172 Janet","服装","內搭","针织长袖上衣","冬季","ATHLETICS","FITNESS","MALE","2025-09-04",1,663,"2025-09-29","斐樂大貨","回流"]
["M0989 Susanna","服装","內搭","针织长袖上衣","冬季","ATHLETICS","FITNESS","MALE","2025-09-04",1,753,"2025-09-29","斐樂大貨","回流"]
["M1436 Khaki","服装","內搭","针织长袖POLO衫","冬季","ATHLETICS","GOLF","男","2025-09-04",1,1428,"2025-09-29","斐樂大貨","回流"]
["M1436 Khaki","服装","內搭","针织长袖上衣","冬季","ATHLETICS","GOLF","男","2025-09-04",1,1258,"2025-09-29","斐樂大貨"]
["M2172 Janet","服装","梭織上衣","梭织外套","冬季","LIFESTYLE","HERITAGE","MALE","2025-09-04",1,1584,"2025-09-29","斐樂大貨","回流"]
["M2798 Ryan","服装","羽絨服","羽绒服两件套","冬季","LIFESTYLE","WHITE","MALE","2025-11-20",1,2873,"2025-09-29","斐樂大貨","回流"]
["M0989 Susanna","服装","羽絨服","羽绒服","冬季","LIFESTYLE","FILA ORIGINALE","MALE","2025-11-06",1,1926,"2025-09-29","斐樂大貨","回流"]
["M0989 Susanna","服装","羽絨服","羽绒服","冬季","LIFESTYLE","FILA ORIGINALE","MALE","2025-11-06",1,1831,"2025-09-29","斐樂大貨","回流"]
["M2172 Janet","服装","針織褲","针织长裤","冬季","ATHLETICS","FITNESS","MALE","2025-09-04",1,748,"2025-09-29","斐樂大貨"]
["M1436 Khaki","服装","針織褲","针织长裤","冬季","ATHLETICS","FITNESS","MALE","2025-09-04",1,748,"2025-09-29","斐樂大貨","回流"]
["M1436 Khaki","服装","針織褲","针织长裤","冬季","ATHLETICS","GOLF","FEMALE","2025-09-23",1,1332,"2025-09-29","斐樂大貨","回流"]
["M0989 Susanna","服装","針織褲","针织长裤","冬季","LIFESTYLE","WHITE","MALE","2025-09-23",1,753,"2025-09-29","斐樂大貨","回流"]
["M2172 Janet","服装","針織褲","针织长裤","冬季","LIFESTYLE","WHITE","MALE","2025-09-23",1,768,"2025-09-29","斐樂大貨","回流"]
["M2172 Janet","服装","針織褲","针织长裤","冬季","LIFESTYLE","HERITAGE","MALE","2025-09-04",1,748,"2025-09-29","斐樂大貨","回流"]
["M2172 Janet","服装","針織褲","针织长裤","冬季","LIFESTYLE","WHITE","FEMALE","2025-09-23",1,880,"2025-09-29","斐樂大貨"]
["M2172 Janet","服装","針織褲","针织长裤","冬季","LIFESTYLE","WHITE","FEMALE","2025-09-23",1,768,"2025-09-29","斐樂大貨","回流"]
["M0989 Susanna","服装","針織上衣","针织长袖外套","秋季","ATHLETICS","FITNESS","MALE","2025-07-22",1,1267,"2025-09-29","斐樂大貨","回流"]
["M0989 Susanna","服装","針織上衣","针织长袖外套","秋季","ATHLETICS","FITNESS","MALE","2025-07-22",1,1258,"2025-09-29","斐樂大貨"]
["M2798 Ryan","服装","針織上衣","针织长袖外套","冬季","ATHLETICS","FITNESS","MALE","2025-09-04",1,1480,"2025-09-29","斐樂大貨"]
["M0989 Susanna","服装","針織上衣","针织长袖外套","冬季","ATHLETICS","FITNESS","FEMALE","2025-09-04",1,1267,"2025-09-29","斐樂大貨","回流"]
["M2798 Ryan","服装","針織上衣","针织连帽外套","冬季","ATHLETICS","FITNESS","FEMALE","2025-09-04",1,1240,"2025-09-29","斐樂大貨"]
["M1436 Khaki","服装","針織上衣","针织连帽外套","冬季","ATHLETICS","GOLF","FEMALE","2025-09-23",1,1926,"2025-09-29","斐樂大貨","回流"]
["M1436 Khaki","服装","針織上衣","针织长袖外套","秋季","LIFESTYLE","BLUE","MALE","2025-08-05",1,1649,"2025-09-29","斐樂大貨","回流"]
["M2172 Janet","服装","針織上衣","针织连帽外套","冬季","LIFESTYLE","WHITE","FEMALE","2025-09-23",1,1208,"2025-09-29","斐樂大貨","回流"]
["M2172 Janet","配件","包類","背包","秋季","LIFESTYLE","WHITE","MALE","2025-06-19",1,880,"2025-09-29","斐樂大貨"]
["M0989 Susanna","配件","帽類","棒球帽","夏季","ATHLETICS","FITNESS","MALE","2025-03-06",1,323,"2025-09-29","斐樂大貨"]
["M2798 Ryan","配件","襪類","低腰袜","夏季","ATHLETICS","FITNESS","FEMALE","2025-03-06",1,65,"2025-09-29","斐樂大貨"]
["M2798 Ryan","配件","襪類","低腰袜","秋季","ATHLETICS","FITNESS","FEMALE","2025-06-03",1,60,"2025-09-29","斐樂大貨"]
["M0989 Susanna","配件","襪類","低腰袜","春季","LIFESTYLE","WHITE","MALE","2025-01-07",1,51,"2025-09-29","斐樂大貨"]
["M1436 Khaki","配件","襪類","低腰袜","春季","LIFESTYLE","FILA ORIGINALE","MALE","2025-01-07",2,102,"2025-09-29","斐樂大貨","回流"]
["M1436 Khaki","配件","襪類","中腰袜","春季","LIFESTYLE","FILA ORIGINALE","MALE","2024-12-05",1,70,"2025-09-29","斐樂大貨"]
["M0989 Susanna","配件","襪類","中腰袜","夏季","LIFESTYLE","WHITE","MALE","2025-03-06",1,60,"2025-09-29","斐樂大貨"]
["M1436 Khaki","配件","襪類","中腰袜","夏季","LIFESTYLE","WHITE","MALE","2025-03-06",1,70,"2025-09-29","斐樂大貨"]
["M2798 Ryan","配件","襪類","浅口袜","夏季","LIFESTYLE","WHITE","MALE","2025-03-06",1,60,"2025-09-29","斐樂大貨"]
["M0989 Susanna","配件","襪類","低腰袜","秋季","LIFESTYLE","FILA ORIGINALE","MALE","2025-06-03",2,102,"2025-09-29","斐樂大貨","回流"]
["M2798 Ryan","配件","襪類","低腰袜","秋季","LIFESTYLE","FILA ORIGINALE","MALE","2025-06-03",1,51,"2025-09-29","斐樂大貨","回流"]
["M2172 Janet","配件","襪類","低腰袜","冬季","LIFESTYLE","WHITE","MALE","2025-09-04",1,51,"2025-09-29","斐樂大貨"]
["M1436 Khaki","配件","襪類","浅口袜","秋季","LIFESTYLE","FILA ORIGINALE","FEMALE","2025-06-03",1,60,"2025-09-29","斐樂大貨"]
["M2798 Ryan","配件","襪類","低腰袜","冬季","LIFESTYLE","HERITAGE","FEMALE","2025-09-04",1,60,"2025-09-29","斐樂大貨"]
["M2798 Ryan","配件","襪類","低腰袜","冬季","LIFESTYLE","HERITAGE","FEMALE","2025-09-04",1,60,"2025-09-29","斐樂大貨"]
["M2172 Janet","广宣用品","促销品","FILA车载保温杯（白）","常青",null,null,"不分","2025-05-29",1,0,"2025-09-29","斐樂大貨","回流"]
["M2798 Ryan","广宣用品","促销品","FILA车载保温杯（白）","常青",null,null,"不分","2025-05-29",1,0,"2025-09-29","斐樂大貨","回流"]
["M0989 Susanna","广宣用品","促销品","FILA宽拉杆拉杆箱（白色）","常青",null,null,"不分","2025-06-12",1,0,"2025-09-29","斐樂大貨","回流"]
["M2798 Ryan","其它","其它","PLASTIC BAG","春季",null,null,"UNISEX",null,1,1,"2025-09-29","通用","回流"]
["M1436 Khaki","其它","其它","PLASTIC BAG","春季",null,null,"UNISEX",null,1,1,"2025-09-29","通用"]
["M1436 Khaki","其它","其它","PLASTIC BAG","春季",null,null,"UNISEX",null,1,1,"2025-09-29","通用","回流"]
["M2798 Ryan","其它","其它","PLASTIC BAG","春季",null,null,"UNISEX",null,1,1,"2025-09-29","通用"]
["M0989 Susanna","其它","其它","PLASTIC BAG","春季",null,null,"UNISEX",null,2,2,"2025-09-29","通用"]
["M0989 Susanna","其它","其它","PLASTIC BAG","春季",null,null,"UNISEX",null,1,1,"2025-09-29","通用","回流"]
["M1436 Khaki","其它","其它","PLASTIC BAG","春季",null,null,"UNISEX",null,1,1,"2025-09-29","通用"]
["M1436 Khaki","其它","其它","PLASTIC BAG","春季",null,null,"UNISEX",null,1,1,"2025-09-29","通用","回流"]
["M2172 Janet","其它","其它","PLASTIC BAG","春季",null,null,"UNISEX",null,1,1,"2025-09-29","通用"]
["M2172 Janet","其它","其它","PLASTIC BAG","春季",null,null,"UNISEX",null,1,1,"2025-09-29","通用","回流"]
["M2798 Ryan","鞋类","運動鞋","先锋运动鞋","秋季","FASHION","ICONA","MALE","2025-07-03",1,998,"2025-09-30","斐樂大貨","回流"]
["M2798 Ryan","鞋类","運動鞋","摩登运动鞋","冬季","FASHION","MODERNO","MALE","2025-09-04",1,833,"2025-09-30","斐樂大貨"]
["M1436 Khaki","鞋类","運動鞋","复古运动鞋","冬季","FASHION","ORIGINALE","MALE","2025-09-04",1,882,"2025-09-30","斐樂大貨","回流"]
["M2902 Carmen","鞋类","運動鞋","复古运动鞋","冬季","FASHION","ORIGINALE","MALE","2025-09-04",1,792,"2025-09-30","斐樂大貨","回流"]
["M2902 Carmen","鞋类","運動鞋","复古运动鞋","冬季","FASHION","ORIGINALE","MALE","2025-09-04",1,980,"2025-09-30","斐樂大貨"]
["M2798 Ryan","鞋类","運動鞋","复古运动鞋","冬季","FASHION","ORIGINALE","MALE","2025-09-04",1,833,"2025-09-30","斐樂大貨"]
["M1436 Khaki","鞋类","運動鞋","摩登运动鞋","冬季","FASHION","MODERNO","FEMALE","2025-09-04",1,980,"2025-09-30","斐樂大貨"]
["M1436 Khaki","鞋类","運動鞋","复古运动鞋","冬季","FASHION","ORIGINALE","FEMALE","2025-09-04",1,805,"2025-09-30","斐樂大貨","回流"]
["M2902 Carmen","鞋类","跑步鞋","路跑鞋","冬季","ATHLETICS","SPORT PERFORMANCE","MALE","2025-09-04",1,1062,"2025-09-30","斐樂大貨","回流"]
["M2902 Carmen","鞋类","跑步鞋","户外鞋","冬季","ATHLETICS","SPORT PERFORMANCE","FEMALE","2025-09-04",1,1147,"2025-09-30","斐樂大貨","回流"]
["M2902 Carmen","服装","編織衫","编织衫","冬季","ATHLETICS","GOLF","男","2025-09-04",1,1267,"2025-09-30","斐樂大貨","回流"]
["M2902 Carmen","服装","編織衫","编织衫","冬季","ATHLETICS","GOLF","FEMALE","2025-09-04",-1,-1480,"2025-09-30","斐樂大貨","回流"]
["M2172 Janet","服装","編織衫","编织衫","冬季","LIFESTYLE","HERITAGE","FEMALE","2025-09-04",1,833,"2025-09-30","斐樂大貨"]
["M1436 Khaki","服装","短T類","针织短袖POLO衫","秋季","LIFESTYLE","BLUE","MALE","2025-06-19",1,969,"2025-09-30","斐樂大貨","回流"]
["M1436 Khaki","服装","短T類","针织短袖POLO衫","冬季","LIFESTYLE","HERITAGE","MALE","2025-09-04",1,608,"2025-09-30","斐樂大貨","回流"]
["M2172 Janet","服装","內搭","针织长袖上衣","冬季","ATHLETICS","FITNESS","MALE","2025-09-04",1,632,"2025-09-30","斐樂大貨","回流"]
["M1436 Khaki","服装","內搭","针织长袖上衣","冬季","ATHLETICS","FITNESS","MALE","2025-09-04",1,663,"2025-09-30","斐樂大貨","回流"]
["M2902 Carmen","服装","內搭","针织长袖上衣","冬季","ATHLETICS","FITNESS","MALE","2025-09-04",1,668,"2025-09-30","斐樂大貨","回流"]
["M2801 Fanny","服装","內搭","针织长袖POLO衫","冬季","ATHLETICS","GOLF","男","2025-09-04",1,1403,"2025-09-30","斐樂大貨","回流"]
["M2801 Fanny","服装","內搭","针织套头衫","冬季","ATHLETICS",null,"MALE","2025-09-23",1,1035,"2025-09-30","斐樂大貨","回流"]
["M2172 Janet","服装","內搭","针织套头衫","冬季","ATHLETICS",null,"MALE","2025-09-23",1,1002,"2025-09-30","斐樂大貨","回流"]
["M2798 Ryan","服装","內搭","针织套头衫","冬季","LIFESTYLE","WHITE","MALE","2025-09-23",1,708,"2025-09-30","斐樂大貨","回流"]
["M1436 Khaki","服装","內搭","针织套头衫","冬季","LIFESTYLE","HERITAGE","MALE","2025-09-04",1,690,"2025-09-30","斐樂大貨","回流"]
["M2798 Ryan","服装","內搭","针织长袖衫","冬季","LIFESTYLE","FILA ORIGINALE","MALE","2025-09-23",1,547,"2025-09-30","斐樂大貨","回流"]
["M2798 Ryan","服装","內搭","针织长袖POLO衫","冬季","LIFESTYLE","FILA ORIGINALE","MALE","2025-09-23",1,711,"2025-09-30","斐樂大貨","回流"]
["M2172 Janet","服装","內搭","针织套头衫","冬季","LIFESTYLE","FILA ORIGINALE","MALE","2025-09-23",1,632,"2025-09-30","斐樂大貨","回流"]
["M2798 Ryan","服装","內搭","针织套头衫","冬季","LIFESTYLE","FILA ORIGINALE","MALE","2025-09-23",1,630,"2025-09-30","斐樂大貨","回流"]
["M2902 Carmen","服装","梭織褲","梭织长裤","秋季","ATHLETICS","A.P.","MALE","2025-06-03",1,976,"2025-09-30","斐樂大貨","回流"]
["M2801 Fanny","服装","梭織褲","梭织长裤","秋季","ATHLETICS","A.P.","MALE","2025-06-03",1,979,"2025-09-30","斐樂大貨","回流"]
["M2172 Janet","服装","梭織褲","梭织长裤","冬季","ATHLETICS",null,"MALE","2025-09-23",1,620,"2025-09-30","斐樂大貨"]
["M2801 Fanny","服装","梭織褲","梭织长裤","冬季","ATHLETICS",null,"MALE","2025-09-23",1,880,"2025-09-30","斐樂大貨","回流"]
["M1436 Khaki","服装","梭織上衣","梭织外套","冬季","ATHLETICS","GOLF","MALE","2025-09-04",1,2366,"2025-09-30","斐樂大貨","回流"]
["M2172 Janet","服装","梭織上衣","梭织外套","冬季","LIFESTYLE","HERITAGE","MALE","2025-09-04",1,1649,"2025-09-30","斐樂大貨","回流"]
["M2798 Ryan","服装","梭織上衣","梭织外套","冬季","LIFESTYLE","HERITAGE","MALE","2025-09-04",1,1351,"2025-09-30","斐樂大貨","回流"]
["M2902 Carmen","服装","梭織上衣","梭织外套","冬季","LIFESTYLE","WHITE","FEMALE","2025-09-23",1,1680,"2025-09-30","斐樂大貨","回流"]
["M1436 Khaki","服装","羽絨服","羽绒马甲","冬季","ATHLETICS","GOLF","男","2025-09-04",1,1819,"2025-09-30","斐樂大貨","回流"]
["M2902 Carmen","服装","羽絨服","女装外套","冬季","ATHLETICS","FITNESS","FEMALE","2025-09-23",-1,-2480,"2025-09-30","斐樂大貨","回流"]
["M2172 Janet","服装","羽絨服","羽绒服","冬季","LIFESTYLE","WHITE","MALE","2025-11-06",1,1925,"2025-09-30","斐樂大貨","回流"]
["M1436 Khaki","服装","羽絨服","羽绒服","冬季","LIFESTYLE","WHITE","MALE","2025-11-06",1,1955,"2025-09-30","斐樂大貨","回流"]
["M2902 Carmen","服装","羽絨服","羽绒服两件套","冬季","LIFESTYLE","WHITE","FEMALE","2025-11-20",1,3380,"2025-09-30","斐樂大貨","回流"]
["M1436 Khaki","服装","羽絨服","羽绒服两件套","冬季","LIFESTYLE","WHITE","FEMALE","2025-11-20",1,2776,"2025-09-30","斐樂大貨","回流"]
["M2172 Janet","服装","針織褲","针织长裤","冬季","ATHLETICS","FITNESS","MALE","2025-09-04",1,713,"2025-09-30","斐樂大貨","回流"]
["M2798 Ryan","服装","針織褲","针织长裤","冬季","ATHLETICS","FITNESS","MALE","2025-09-04",1,708,"2025-09-30","斐樂大貨","回流"]
["M2902 Carmen","服装","針織褲","针织长裤","冬季","ATHLETICS","FITNESS","MALE","2025-09-04",1,753,"2025-09-30","斐樂大貨","回流"]
["M2801 Fanny","服装","針織褲","针织长裤","冬季","LIFESTYLE","WHITE","MALE","2025-09-23",1,735,"2025-09-30","斐樂大貨","回流"]
["M2798 Ryan","服装","針織褲","针织长裤","冬季","LIFESTYLE","FILA ORIGINALE","MALE","2025-09-23",1,628,"2025-09-30","斐樂大貨","回流"]
["M2172 Janet","服装","針織褲","针织长裤","冬季","LIFESTYLE","WHITE","FEMALE","2025-09-23",1,762,"2025-09-30","斐樂大貨","回流"]
["M2801 Fanny","服装","針織褲","针织长裤","冬季","LIFESTYLE","WHITE","FEMALE","2025-09-23",1,785,"2025-09-30","斐樂大貨","回流"]
["M2172 Janet","服装","針織褲","针织长裤","冬季","LIFESTYLE","HERITAGE","FEMALE","2025-09-04",1,799,"2025-09-30","斐樂大貨"]
["M2902 Carmen","服装","針織上衣","针织长袖外套","秋季","ATHLETICS","FITNESS","MALE","2025-07-22",1,1267,"2025-09-30","斐樂大貨","回流"]
["M2172 Janet","服装","針織上衣","针织长袖外套","秋季","ATHLETICS","FITNESS","MALE","2025-07-22",1,1201,"2025-09-30","斐樂大貨","回流"]
["M2172 Janet","服装","針織上衣","针织长袖外套","冬季","ATHLETICS","FITNESS","MALE","2025-09-04",1,1258,"2025-09-30","斐樂大貨","回流"]
["M2172 Janet","服装","針織上衣","针织马甲","冬季","ATHLETICS",null,"FEMALE","2025-09-23",1,740,"2025-09-30","斐樂大貨"]
["M2798 Ryan","服装","針織上衣","针织长袖外套","秋季","LIFESTYLE","BLUE","MALE","2025-08-05",1,1940,"2025-09-30","斐樂大貨"]
["M2172 Janet","服装","針織上衣","针织连帽外套","冬季","LIFESTYLE","WHITE","FEMALE","2025-09-23",1,1200,"2025-09-30","斐樂大貨","回流"]
["M2801 Fanny","服装","針織上衣","针织连帽外套","冬季","LIFESTYLE","WHITE","FEMALE","2025-09-23",1,1236,"2025-09-30","斐樂大貨","回流"]
["M2801 Fanny","服装","針織上衣","针织长袖外套","冬季","LIFESTYLE","HERITAGE","FEMALE","2025-09-04",1,1480,"2025-09-30","斐樂大貨"]
["M2172 Janet","服装","針織上衣","针织长袖外套","冬季","LIFESTYLE","HERITAGE","FEMALE","2025-09-04",1,1258,"2025-09-30","斐樂大貨"]
["M2172 Janet","配件","包類","背包","冬季","ATHLETICS","EXPLORE","UNISEX","2025-09-23",1,290,"2025-09-30","斐樂大貨"]
["M2172 Janet","配件","包類","挎包","冬季","LIFESTYLE","HERITAGE","MALE","2025-09-04",1,578,"2025-09-30","斐樂大貨","回流"]
["M2798 Ryan","配件","襪類","中腰袜","夏季","LIFESTYLE","WHITE","MALE","2025-03-06",1,70,"2025-09-30","斐樂大貨"]
["M2801 Fanny","配件","襪類","低腰袜","夏季","LIFESTYLE","WHITE","MALE","2025-03-06",1,56,"2025-09-30","斐樂大貨","回流"]
["M2798 Ryan","配件","襪類","中腰袜","秋季","LIFESTYLE","WHITE","MALE","2025-06-03",1,60,"2025-09-30","斐樂大貨"]
["M2798 Ryan","配件","襪類","低腰袜","秋季","LIFESTYLE","FILA ORIGINALE","MALE","2025-06-03",1,60,"2025-09-30","斐樂大貨"]
["M2798 Ryan","配件","襪類","低腰袜","冬季","LIFESTYLE","WHITE","MALE","2025-09-04",1,60,"2025-09-30","斐樂大貨"]
["M2798 Ryan","配件","襪類","中腰袜","冬季","LIFESTYLE","FILA ORIGINALE","MALE","2025-09-04",1,70,"2025-09-30","斐樂大貨"]
["M2798 Ryan","配件","襪類","浅口袜","秋季","LIFESTYLE","FILA ORIGINALE","FEMALE","2025-06-03",1,60,"2025-09-30","斐樂大貨"]
["M2172 Janet","广宣用品","促销品","FILA车载保温杯（白）","常青",null,null,"不分","2025-05-29",3,0,"2025-09-30","斐樂大貨","回流"]
["M2798 Ryan","广宣用品","促销品","FILA车载保温杯（白）","常青",null,null,"不分","2025-05-29",1,0,"2025-09-30","斐樂大貨","回流"]
["M2801 Fanny","广宣用品","促销品","FILA车载保温杯（白）","常青",null,null,"不分","2025-05-29",2,0,"2025-09-30","斐樂大貨","回流"]
["M1436 Khaki","广宣用品","促销品","FILA新款拉杆箱（绿色）","常青",null,null,"不分","2025-06-04",1,0,"2025-09-30","斐樂大貨","回流"]
["M2902 Carmen","广宣用品","促销品","FILA新款拉杆箱（绿色）","常青",null,null,"不分","2025-06-04",1,0,"2025-09-30","斐樂大貨","回流"]
["M1436 Khaki","其它","其它","PLASTIC BAG","春季",null,null,"UNISEX",null,1,1,"2025-09-30","通用"]
["M2172 Janet","其它","其它","PLASTIC BAG","春季",null,null,"UNISEX",null,1,1,"2025-09-30","通用","回流"]
["M2798 Ryan","其它","其它","PLASTIC BAG","春季",null,null,"UNISEX",null,1,1,"2025-09-30","通用","回流"]
["M2902 Carmen","其它","其它","PLASTIC BAG","春季",null,null,"UNISEX",null,1,1,"2025-09-30","通用","回流"]
["M1436 Khaki","其它","其它","PLASTIC BAG","春季",null,null,"UNISEX",null,2,2,"2025-09-30","通用","回流"]
["M2172 Janet","其它","其它","PLASTIC BAG","春季",null,null,"UNISEX",null,1,1,"2025-09-30","通用"]
["M2798 Ryan","其它","其它","PLASTIC BAG","春季",null,null,"UNISEX",null,1,1,"2025-09-30","通用"]
["M2902 Carmen","其它","其它","PLASTIC BAG","春季",null,null,"UNISEX",null,1,1,"2025-09-30","通用"]
["M1436 Khaki","鞋类","運動鞋","摩登运动鞋","秋季","FASHION","MODERNO","MALE","2025-08-05",1,833,"2025-10-01","斐樂大貨"]
["M0989 Susanna","鞋类","運動鞋","摩登运动鞋","冬季","FASHION","MODERNO","MALE","2025-09-04",1,833,"2025-10-01","斐樂大貨","回流"]
["M2798 Ryan","鞋类","運動鞋","复古运动鞋","冬季","FASHION","ORIGINALE","MALE","2025-09-04",1,880,"2025-10-01","斐樂大貨"]
["M2798 Ryan","鞋类","運動鞋","摩登运动鞋","秋季","FASHION","MODERNO","FEMALE","2025-08-05",1,833,"2025-10-01","斐樂大貨"]
["M2798 Ryan","鞋类","運動鞋","摩登运动鞋","秋季","FASHION","MODERNO","FEMALE","2025-08-05",1,980,"2025-10-01","斐樂大貨"]
["M2172 Janet","鞋类","運動鞋","摩登运动鞋","冬季","FASHION","MODERNO","FEMALE","2025-09-04",1,833,"2025-10-01","斐樂大貨","回流"]
["M1436 Khaki","鞋类","運動鞋","摩登运动鞋","冬季","FASHION","MODERNO","FEMALE","2025-09-04",1,980,"2025-10-01","斐樂大貨"]
["M2798 Ryan","鞋类","運動鞋","复古运动鞋","冬季","FASHION","ORIGINALE","FEMALE","2025-09-04",1,833,"2025-10-01","斐樂大貨"]
["M0989 Susanna","鞋类","板鞋","复古板鞋","冬季","FASHION","ORIGINALE","MALE","2025-09-04",1,748,"2025-10-01","斐樂大貨"]
["M2798 Ryan","鞋类","跑步鞋","路跑鞋","冬季","ATHLETICS","SPORT PERFORMANCE","MALE","2025-09-04",1,980,"2025-10-01","斐樂大貨"]
["M2172 Janet","鞋类","跑步鞋","路跑鞋","冬季","ATHLETICS","SPORT PERFORMANCE","MALE","2025-09-04",1,1054,"2025-10-01","斐樂大貨","回流"]
["M2902 Carmen","鞋类","跑步鞋","路跑鞋","冬季","ATHLETICS","SPORT PERFORMANCE","MALE","2025-09-04",1,1054,"2025-10-01","斐樂大貨"]
["M2172 Janet","鞋类","跑步鞋","户外鞋","秋季","ATHLETICS","SPORT PERFORMANCE","FEMALE","2025-06-03",1,969,"2025-10-01","斐樂大貨","回流"]
["M2798 Ryan","鞋类","跑步鞋","路跑鞋","冬季","ATHLETICS","SPORT PERFORMANCE","FEMALE","2025-09-04",1,833,"2025-10-01","斐樂大貨"]
["M2902 Carmen","鞋类","網球鞋","网球生活鞋","冬季","ATHLETICS","SPORT PERFORMANCE","MALE","2025-09-04",1,880,"2025-10-01","斐樂大貨"]
["M2902 Carmen","鞋类","網球鞋","网球生活鞋","冬季","ATHLETICS","SPORT PERFORMANCE","FEMALE","2025-09-04",1,748,"2025-10-01","斐樂大貨"]
["M1436 Khaki","鞋类","網球鞋","网球生活鞋","冬季","ATHLETICS","SPORT PERFORMANCE","FEMALE","2025-09-04",1,880,"2025-10-01","斐樂大貨"]
["M2902 Carmen","鞋类","網球鞋","网球生活鞋","冬季","ATHLETICS","SPORT PERFORMANCE","FEMALE","2025-09-04",1,880,"2025-10-01","斐樂大貨"]
["M0989 Susanna","鞋类","網球鞋","网球生活鞋","冬季","ATHLETICS","SPORT PERFORMANCE","FEMALE","2025-09-04",2,1496,"2025-10-01","斐樂大貨"]
["M0989 Susanna","服装","編織衫","编织外套","冬季","ATHLETICS","GOLF","女","2025-09-04",1,1649,"2025-10-01","斐樂大貨","回流"]
["M0989 Susanna","服装","編織衫","编织外套","冬季","LIFESTYLE","WHITE","FEMALE","2025-09-23",1,1054,"2025-10-01","斐樂大貨","回流"]
["M2902 Carmen","服装","短T類","针织短袖衫","秋季","ATHLETICS","FITNESS","MALE","2025-07-22",1,580,"2025-10-01","斐樂大貨"]
["M2902 Carmen","服装","短T類","针织短袖衫","秋季","LIFESTYLE","FILA ORIGINALE","MALE","2025-08-19",1,544,"2025-10-01","斐樂大貨"]
["M0989 Susanna","服装","內搭","针织长袖POLO衫","冬季","ATHLETICS","GOLF","MALE","2025-09-04",1,1428,"2025-10-01","斐樂大貨","回流"]
["M2902 Carmen","服装","內搭","针织长袖POLO衫","冬季","ATHLETICS","GOLF","MALE","2025-09-04",1,1428,"2025-10-01","斐樂大貨"]
["M2902 Carmen","服装","內搭","针织长袖上衣","冬季","ATHLETICS","GOLF","男","2025-09-04",1,1258,"2025-10-01","斐樂大貨"]
["M2172 Janet","服装","內搭","针织长袖衫","冬季","LIFESTYLE","WHITE","MALE","2025-09-23",1,840,"2025-10-01","斐樂大貨"]
["M2902 Carmen","服装","內搭","针织长袖衫","冬季","LIFESTYLE","WHITE","MALE","2025-09-23",1,714,"2025-10-01","斐樂大貨"]
["M2172 Janet","服装","內搭","针织长袖衫","冬季","LIFESTYLE","WHITE","MALE","2025-09-23",1,714,"2025-10-01","斐樂大貨","回流"]
["M0989 Susanna","服装","內搭","针织套头衫","冬季","LIFESTYLE","FILA ORIGINALE","MALE","2025-09-23",1,663,"2025-10-01","斐樂大貨","回流"]
["M2172 Janet","服装","內搭","针织套头衫","冬季","LIFESTYLE","FILA ORIGINALE","MALE","2025-09-23",1,780,"2025-10-01","斐樂大貨"]
["M0989 Susanna","服装","裙裝","梭织裙","冬季","ATHLETICS","GOLF","FEMALE","2025-09-04",1,1428,"2025-10-01","斐樂大貨","回流"]
["M2798 Ryan","服装","梭織褲","梭织五分裤","秋季","ATHLETICS","FITNESS","MALE","2025-07-22",1,780,"2025-10-01","斐樂大貨"]
["M0989 Susanna","服装","梭織褲","梭织长裤","冬季","ATHLETICS","GOLF","MALE","2025-09-04",1,1680,"2025-10-01","斐樂大貨"]
["M2798 Ryan","服装","梭織上衣","梭织外套","冬季","ATHLETICS","FITNESS","男","2025-09-04",1,1828,"2025-10-01","斐樂大貨","回流"]
["M2798 Ryan","服装","梭織上衣","梭织外套","冬季","ATHLETICS",null,"MALE","2025-09-23",1,2117,"2025-10-01","斐樂大貨","回流"]
["M0989 Susanna","服装","梭織上衣","梭织外套","秋季","LIFESTYLE","BLUE","MALE","2025-06-19",1,2023,"2025-10-01","斐樂大貨","回流"]
["M0989 Susanna","服装","梭織上衣","梭织外套","冬季","LIFESTYLE","HERITAGE","MALE","2025-09-04",1,1940,"2025-10-01","斐樂大貨"]
["M2798 Ryan","服装","梭織上衣","梭织外套","冬季","LIFESTYLE","HERITAGE","MALE","2025-09-04",1,1680,"2025-10-01","斐樂大貨"]
["M0989 Susanna","服装","梭織上衣","梭织外套","冬季","LIFESTYLE","FILA ORIGINALE","MALE","2025-09-23",1,1940,"2025-10-01","斐樂大貨"]
["M1436 Khaki","服装","梭織上衣","梭织外套","冬季","LIFESTYLE","FILA ORIGINALE","FEMALE","2025-09-23",1,1680,"2025-10-01","斐樂大貨"]
["M0989 Susanna","服装","羽絨服","羽绒马甲","冬季","ATHLETICS","FITNESS","FEMALE","2025-10-09",1,1258,"2025-10-01","斐樂大貨","回流"]
["M0989 Susanna","服装","羽絨服","羽绒马甲","冬季","ATHLETICS","GOLF","女","2025-09-04",1,2448,"2025-10-01","斐樂大貨","回流"]
["M1436 Khaki","服装","羽絨服","羽绒马甲","冬季","LIFESTYLE","WHITE","MALE","2025-10-09",1,1649,"2025-10-01","斐樂大貨"]
["M2902 Carmen","服装","羽絨服","羽绒服","冬季","LIFESTYLE","WHITE","FEMALE","2025-11-20",1,2592,"2025-10-01","斐樂大貨","回流"]
["M1436 Khaki","服装","針織褲","针织长裤","冬季","ATHLETICS","FITNESS","MALE","2025-09-04",1,748,"2025-10-01","斐樂大貨"]
["M2902 Carmen","服装","針織褲","针织长裤","冬季","ATHLETICS","FITNESS","FEMALE","2025-09-04",1,833,"2025-10-01","斐樂大貨","回流"]
["M2172 Janet","服装","針織褲","针织长裤","冬季","ATHLETICS","FITNESS","FEMALE","2025-09-04",1,780,"2025-10-01","斐樂大貨"]
["M2172 Janet","服装","針織褲","针织长裤","冬季","ATHLETICS","FITNESS","FEMALE","2025-09-04",1,780,"2025-10-01","斐樂大貨"]
["M1436 Khaki","服装","針織褲","针织长裤","秋季","LIFESTYLE","FILA ORIGINALE","MALE","2025-07-03",1,780,"2025-10-01","斐樂大貨"]
["M0989 Susanna","服装","針織褲","针织长裤","冬季","LIFESTYLE","WHITE","MALE","2025-09-23",1,799,"2025-10-01","斐樂大貨","回流"]
["M2798 Ryan","服装","針織褲","针织长裤","冬季","LIFESTYLE","HERITAGE","MALE","2025-09-04",1,752,"2025-10-01","斐樂大貨","回流"]
["M0989 Susanna","服装","針織褲","针织长裤","冬季","LIFESTYLE","HERITAGE","MALE","2025-09-04",1,748,"2025-10-01","斐樂大貨","回流"]
["M2172 Janet","服装","針織褲","针织长裤","冬季","LIFESTYLE","FILA ORIGINALE","MALE","2025-09-23",1,666,"2025-10-01","斐樂大貨","回流"]
["M1436 Khaki","服装","針織褲","针织长裤","冬季","LIFESTYLE","WHITE","FEMALE","2025-09-23",1,799,"2025-10-01","斐樂大貨"]
["M0989 Susanna","服装","針織褲","针织长裤","冬季","LIFESTYLE","WHITE","FEMALE","2025-09-23",1,799,"2025-10-01","斐樂大貨","回流"]
["M2172 Janet","服装","針織褲","针织长裤","冬季","LIFESTYLE","WHITE","FEMALE","2025-09-23",1,799,"2025-10-01","斐樂大貨","回流"]
["M2798 Ryan","服装","針織上衣","针织长袖外套","冬季","ATHLETICS",null,"MALE","2025-09-23",1,1435,"2025-10-01","斐樂大貨","回流"]
["M2902 Carmen","服装","針織上衣","针织长袖外套","冬季","ATHLETICS","FITNESS","FEMALE","2025-09-04",1,1258,"2025-10-01","斐樂大貨","回流"]
["M2172 Janet","服装","針織上衣","针织长袖外套","秋季","LIFESTYLE","BLUE","MALE","2025-08-05",1,1649,"2025-10-01","斐樂大貨","回流"]
["M1436 Khaki","服装","針織上衣","针织连帽外套","冬季","LIFESTYLE","WHITE","FEMALE","2025-09-23",1,1258,"2025-10-01","斐樂大貨"]
["M2172 Janet","服装","針織上衣","针织连帽外套","冬季","LIFESTYLE","WHITE","FEMALE","2025-09-23",1,1258,"2025-10-01","斐樂大貨","回流"]
["M1436 Khaki","配件","包類","背包","冬季","ATHLETICS","FITNESS","MALE","2025-09-04",1,663,"2025-10-01","斐樂大貨"]
["M2798 Ryan","配件","包類","背包","秋季","LIFESTYLE","WHITE","MALE","2025-06-19",1,880,"2025-10-01","斐樂大貨"]
["M2172 Janet","配件","包類","背包","冬季","LIFESTYLE","FILA ORIGINALE","FEMALE","2025-09-04",1,780,"2025-10-01","斐樂大貨"]
["M0989 Susanna","配件","襪類","低腰袜","夏季","ATHLETICS","FITNESS","FEMALE","2025-03-06",1,65,"2025-10-01","斐樂大貨"]
["M2798 Ryan","配件","襪類","低腰袜","春季","LIFESTYLE","FILA ORIGINALE","MALE","2025-01-07",1,51,"2025-10-01","斐樂大貨","回流"]
["M2798 Ryan","配件","襪類","中腰袜","春季","LIFESTYLE","FILA ORIGINALE","MALE","2024-12-05",1,60,"2025-10-01","斐樂大貨","回流"]
["M2798 Ryan","配件","襪類","中腰袜","夏季","LIFESTYLE","WHITE","MALE","2025-03-06",1,60,"2025-10-01","斐樂大貨","回流"]
["M0989 Susanna","配件","襪類","低腰袜","夏季","LIFESTYLE","WHITE","MALE","2025-03-06",1,65,"2025-10-01","斐樂大貨"]
["M2798 Ryan","配件","襪類","低腰袜","秋季","LIFESTYLE","FILA ORIGINALE","MALE","2025-06-03",1,51,"2025-10-01","斐樂大貨","回流"]
["M0989 Susanna","配件","襪類","低腰袜","春季","LIFESTYLE","HERITAGE","FEMALE","2025-01-07",1,50,"2025-10-01","斐樂大貨"]
["M2902 Carmen","配件","襪類","中腰袜套装","冬季","LIFESTYLE","FILA ORIGINALE","FEMALE","2024-09-05",1,108,"2025-10-01","斐樂大貨","回流"]
["M2902 Carmen","配件","襪類","低腰袜","秋季","LIFESTYLE","FILA ORIGINALE","FEMALE","2025-06-03",1,60,"2025-10-01","斐樂大貨"]
["M1436 Khaki","广宣用品","促销品","FILA车载保温杯（白）","常青",null,null,"不分","2025-05-29",1,0,"2025-10-01","斐樂大貨"]
["M2798 Ryan","广宣用品","促销品","FILA车载保温杯（白）","常青",null,null,"不分","2025-05-29",1,0,"2025-10-01","斐樂大貨"]
["M2902 Carmen","广宣用品","促销品","FILA车载保温杯（白）","常青",null,null,"不分","2025-05-29",1,0,"2025-10-01","斐樂大貨"]
["M0989 Susanna","广宣用品","促销品","FILA新款拉杆箱（绿色）","常青",null,null,"不分","2025-06-04",2,0,"2025-10-01","斐樂大貨","回流"]
["M2798 Ryan","广宣用品","促销品","FILA新款拉杆箱（绿色）","常青",null,null,"不分","2025-06-04",1,0,"2025-10-01","斐樂大貨","回流"]
["M0989 Susanna","其它","其它","PLASTIC BAG","春季",null,null,"UNISEX",null,2,2,"2025-10-01","通用"]
["M1436 Khaki","其它","其它","PLASTIC BAG","春季",null,null,"UNISEX",null,1,1,"2025-10-01","通用"]
["M2902 Carmen","其它","其它","PLASTIC BAG","春季",null,null,"UNISEX",null,1,1,"2025-10-01","通用"]
["M0989 Susanna","其它","其它","PLASTIC BAG","春季",null,null,"UNISEX",null,1,1,"2025-10-01","通用"]
["M1436 Khaki","其它","其它","PLASTIC BAG","春季",null,null,"UNISEX",null,1,1,"2025-10-01","通用"]
["M0989 Susanna","其它","其它","PLASTIC BAG","春季",null,null,"UNISEX",null,1,1,"2025-10-01","通用"]
["M0989 Susanna","其它","其它","PLASTIC BAG","春季",null,null,"UNISEX",null,1,1,"2025-10-01","通用","回流"]
["M1436 Khaki","其它","其它","PLASTIC BAG","春季",null,null,"UNISEX",null,3,3,"2025-10-01","通用"]
["M2172 Janet","其它","其它","PLASTIC BAG","春季",null,null,"UNISEX",null,1,1,"2025-10-01","通用"]
["M2798 Ryan","其它","其它","PLASTIC BAG","春季",null,null,"UNISEX",null,5,5,"2025-10-01","通用"]
["M2902 Carmen","其它","其它","PLASTIC BAG","春季",null,null,"UNISEX",null,2,2,"2025-10-01","通用"]
["M2902 Carmen","其它","其它","PLASTIC BAG","春季",null,null,"UNISEX",null,1,1,"2025-10-01","通用","回流"]
["M2801 Fanny","鞋类","運動鞋","摩登运动鞋","冬季","FASHION","MODERNO","MALE","2025-09-04",1,980,"2025-10-02","斐樂大貨"]
["M2801 Fanny","鞋类","運動鞋","摩登运动鞋","冬季","FASHION","MODERNO","MALE","2025-09-04",1,830,"2025-10-02","斐樂大貨","回流"]
["M0989 Susanna","鞋类","運動鞋","复古运动鞋","冬季","FASHION","ORIGINALE","MALE","2025-09-04",1,833,"2025-10-02","斐樂大貨"]
["M2801 Fanny","鞋类","運動鞋","复古运动鞋","冬季","FASHION","ORIGINALE","MALE","2025-09-04",1,775,"2025-10-02","斐樂大貨"]
["M0989 Susanna","鞋类","運動鞋","摩登运动鞋","秋季","FASHION","MODERNO","FEMALE","2025-07-03",1,980,"2025-10-02","斐樂大貨"]
["M2798 Ryan","鞋类","運動鞋","摩登运动鞋","冬季","FASHION","MODERNO","FEMALE","2025-09-04",1,980,"2025-10-02","斐樂大貨"]
["M1436 Khaki","鞋类","運動鞋","摩登运动鞋","冬季","FASHION","MODERNO","FEMALE","2025-09-04",1,817,"2025-10-02","斐樂大貨","回流"]
["M1436 Khaki","鞋类","運動鞋","摩登运动鞋","冬季","FASHION","MODERNO","FEMALE","2025-09-04",1,980,"2025-10-02","斐樂大貨"]
["M2801 Fanny","鞋类","運動鞋","摩登运动鞋","冬季","FASHION","MODERNO","FEMALE","2025-09-04",2,1666,"2025-10-02","斐樂大貨","回流"]
["M0989 Susanna","鞋类","運動鞋","复古运动鞋","冬季","FASHION","ORIGINALE","FEMALE","2025-09-04",1,787,"2025-10-02","斐樂大貨","回流"]
["M0989 Susanna","鞋类","運動鞋","复古运动鞋","冬季","FASHION","ORIGINALE","FEMALE","2025-09-04",1,833,"2025-10-02","斐樂大貨","回流"]
["M0989 Susanna","鞋类","運動鞋","复古运动鞋","冬季","FASHION","ORIGINALE","FEMALE","2025-09-04",1,833,"2025-10-02","斐樂大貨"]
["M1436 Khaki","鞋类","運動鞋","复古运动鞋","冬季","FASHION","ORIGINALE","FEMALE","2025-09-04",1,733,"2025-10-02","斐樂大貨","回流"]
["M2801 Fanny","鞋类","運動鞋","复古运动鞋","冬季","FASHION","ORIGINALE","FEMALE","2025-09-04",1,774,"2025-10-02","斐樂大貨"]
["M2801 Fanny","鞋类","運動鞋","复古运动鞋","冬季","FASHION","ORIGINALE","FEMALE","2025-09-04",2,1496,"2025-10-02","斐樂大貨","回流"]
["M0989 Susanna","鞋类","跑步鞋","户外鞋","秋季","ATHLETICS","SPORT PERFORMANCE","MALE","2025-06-03",1,1139,"2025-10-02","斐樂大貨"]
["M0989 Susanna","鞋类","跑步鞋","路跑鞋","冬季","ATHLETICS","SPORT PERFORMANCE","MALE","2025-09-04",1,1240,"2025-10-02","斐樂大貨"]
["M2798 Ryan","鞋类","跑步鞋","路跑鞋","冬季","ATHLETICS","SPORT PERFORMANCE","MALE","2025-09-04",1,1054,"2025-10-02","斐樂大貨","回流"]
["M2172 Janet","鞋类","跑步鞋","户外鞋","冬季","ATHLETICS","SPORT PERFORMANCE","FEMALE","2025-09-04",1,1139,"2025-10-02","斐樂大貨"]
["M2798 Ryan","鞋类","跑步鞋","户外鞋","冬季","ATHLETICS","SPORT PERFORMANCE","FEMALE","2025-09-04",1,1139,"2025-10-02","斐樂大貨","回流"]
["M0989 Susanna","鞋类","網球鞋","网球生活鞋","冬季","ATHLETICS","SPORT PERFORMANCE","MALE","2025-09-04",1,748,"2025-10-02","斐樂大貨","回流"]
["M0989 Susanna","服装","編織衫","编织外套","冬季","ATHLETICS","GOLF","女","2025-09-04",1,1558,"2025-10-02","斐樂大貨","回流"]
["M2172 Janet","服装","編織衫","编织衫","冬季","LIFESTYLE","HERITAGE","FEMALE","2025-09-04",1,833,"2025-10-02","斐樂大貨"]
["M2798 Ryan","服装","編織衫","编织衫","冬季","LIFESTYLE","HERITAGE","FEMALE","2025-09-04",1,833,"2025-10-02","斐樂大貨","回流"]
["M2172 Janet","服装","短T類","针织短袖POLO衫","秋季","ATHLETICS","GOLF","MALE","2025-07-22",1,1054,"2025-10-02","斐樂大貨","回流"]
["M2172 Janet","服装","短T類","针织短袖POLO衫","秋季","LIFESTYLE","BLUE","MALE","2025-06-19",1,969,"2025-10-02","斐樂大貨","回流"]
["M1436 Khaki","服装","短T類","针织短袖衫","秋季","LIFESTYLE","WHITE","MALE","2025-08-05",1,582,"2025-10-02","斐樂大貨","回流"]
["M1436 Khaki","服装","短T類","针织短袖衫","秋季","LIFESTYLE","WHITE","MALE","2025-06-19",1,548,"2025-10-02","斐樂大貨","回流"]
["M1436 Khaki","服装","短T類","针织短袖衫","秋季","LIFESTYLE","FILA ORIGINALE","男","2025-08-19",1,533,"2025-10-02","斐樂大貨","回流"]
["M1436 Khaki","服装","短T類","针织短袖POLO衫","冬季","LIFESTYLE","HERITAGE","MALE","2025-09-04",1,629,"2025-10-02","斐樂大貨"]
["M2172 Janet","服装","短T類","针织短袖衫","秋季","LIFESTYLE","WHITE","FEMALE","2025-08-05",1,748,"2025-10-02","斐樂大貨"]
["M2801 Fanny","服装","內搭","针织长袖上衣","冬季","ATHLETICS","FITNESS","MALE","2025-09-04",1,661,"2025-10-02","斐樂大貨","回流"]
["M0989 Susanna","服装","內搭","针织长袖衫","冬季","LIFESTYLE","HERITAGE","MALE","2025-09-04",1,578,"2025-10-02","斐樂大貨"]
["M2801 Fanny","服装","內搭","针织套头衫","冬季","LIFESTYLE","HERITAGE","MALE","2025-09-04",1,711,"2025-10-02","斐樂大貨","回流"]
["M0989 Susanna","服装","內搭","针织套头衫","冬季","LIFESTYLE","FILA ORIGINALE","MALE","2025-09-23",1,663,"2025-10-02","斐樂大貨"]
["M2798 Ryan","服装","梭織褲","梭织五分裤","秋季","ATHLETICS","FITNESS","MALE","2025-07-22",1,663,"2025-10-02","斐樂大貨","回流"]
["M2172 Janet","服装","梭織褲","梭织长裤","秋季","LIFESTYLE","FILA ORIGINALE","MALE","2025-07-03",1,748,"2025-10-02","斐樂大貨"]
["M2801 Fanny","服装","梭織上衣","梭织外套","冬季","ATHLETICS",null,"FEMALE","2025-09-23",1,3480,"2025-10-02","斐樂大貨"]
["M2172 Janet","服装","梭織上衣","梭织外套","秋季","LIFESTYLE","WHITE","MALE","2025-08-05",1,1258,"2025-10-02","斐樂大貨","回流"]
["M2172 Janet","服装","梭織上衣","梭织外套","冬季","LIFESTYLE","BLUE","MALE","2025-10-09",1,2880,"2025-10-02","斐樂大貨","回流"]
["M2801 Fanny","服装","梭織上衣","梭织外套","冬季","LIFESTYLE","BLUE","MALE","2025-10-09",1,2439,"2025-10-02","斐樂大貨","回流"]
["M1436 Khaki","服装","梭織上衣","梭织外套","冬季","LIFESTYLE","WHITE","MALE","2025-09-23",1,1267,"2025-10-02","斐樂大貨","回流"]
["M2798 Ryan","服装","梭織上衣","梭织外套","冬季","LIFESTYLE","HERITAGE","MALE","2025-09-04",1,1940,"2025-10-02","斐樂大貨"]
["M2172 Janet","服装","梭織上衣","梭织外套","冬季","LIFESTYLE","WHITE","FEMALE","2025-09-23",1,1428,"2025-10-02","斐樂大貨","回流"]
["M0989 Susanna","服装","羽絨服","羽绒马甲","冬季","ATHLETICS","GOLF","MALE","2025-09-04",1,1819,"2025-10-02","斐樂大貨","回流"]
["M2801 Fanny","服装","羽絨服","羽绒服","冬季","LIFESTYLE","WHITE","MALE","2025-11-20",1,2439,"2025-10-02","斐樂大貨","回流"]
["M2172 Janet","服装","羽絨服","羽绒马甲","冬季","LIFESTYLE","FILA ORIGINALE","MALE","2025-11-06",1,1258,"2025-10-02","斐樂大貨"]
["M2801 Fanny","服装","羽絨服","羽绒服","冬季","LIFESTYLE","WHITE","FEMALE","2025-11-20",1,2439,"2025-10-02","斐樂大貨","回流"]
["M1436 Khaki","服装","羽絨服","羽绒服两件套","冬季","LIFESTYLE","WHITE","FEMALE","2025-11-20",1,2896,"2025-10-02","斐樂大貨","回流"]
["M2801 Fanny","服装","針織褲","针织长裤","冬季","ATHLETICS","FITNESS","MALE","2025-09-04",1,745,"2025-10-02","斐樂大貨","回流"]
["M2172 Janet","服装","針織褲","针织长裤","秋季","ATHLETICS","FITNESS","FEMALE","2025-06-03",1,748,"2025-10-02","斐樂大貨"]
["M2798 Ryan","服装","針織褲","针织长裤","冬季","ATHLETICS","FITNESS","FEMALE","2025-09-04",1,748,"2025-10-02","斐樂大貨","回流"]
["M1436 Khaki","服装","針織褲","针织长裤","冬季","ATHLETICS","GOLF","FEMALE","2025-09-23",1,1234,"2025-10-02","斐樂大貨","回流"]
["M0989 Susanna","服装","針織褲","针织长裤","冬季","ATHLETICS","GOLF","FEMALE","2025-09-23",2,2378,"2025-10-02","斐樂大貨","回流"]
["M1436 Khaki","服装","針織褲","针织长裤","秋季","LIFESTYLE","BLUE","MALE","2025-06-19",1,817,"2025-10-02","斐樂大貨","回流"]
["M2172 Janet","服装","針織褲","针织长裤","秋季","LIFESTYLE","HERITAGE","MALE","2025-07-22",1,748,"2025-10-02","斐樂大貨"]
["M0989 Susanna","服装","針織褲","针织长裤","秋季","LIFESTYLE","FILA ORIGINALE","MALE","2025-07-03",1,780,"2025-10-02","斐樂大貨"]
["M1436 Khaki","服装","針織褲","针织长裤","冬季","LIFESTYLE","WHITE","MALE","2025-09-23",1,754,"2025-10-02","斐樂大貨","回流"]
["M0989 Susanna","服装","針織褲","针织长裤","冬季","LIFESTYLE","WHITE","MALE","2025-09-23",1,799,"2025-10-02","斐樂大貨"]
["M2801 Fanny","服装","針織褲","针织长裤","冬季","LIFESTYLE","HERITAGE","MALE","2025-09-04",1,745,"2025-10-02","斐樂大貨","回流"]
["M1436 Khaki","服装","針織褲","针织长裤","冬季","LIFESTYLE","HERITAGE","MALE","2025-09-04",1,748,"2025-10-02","斐樂大貨"]
["M1436 Khaki","服装","針織褲","针织长裤","冬季","LIFESTYLE","HERITAGE","MALE","2025-09-04",1,719,"2025-10-02","斐樂大貨","回流"]
["M2172 Janet","服装","針織褲","针织长裤","冬季","LIFESTYLE","FILA ORIGINALE","MALE","2025-09-23",1,663,"2025-10-02","斐樂大貨"]
["M2798 Ryan","服装","針織褲","针织长裤","秋季","LIFESTYLE","HERITAGE","FEMALE","2025-07-22",1,714,"2025-10-02","斐樂大貨","回流"]
["M2798 Ryan","服装","針織褲","针织长裤","冬季","LIFESTYLE","WHITE","FEMALE","2025-09-23",1,748,"2025-10-02","斐樂大貨","回流"]
["M1436 Khaki","服装","針織褲","针织长裤","冬季","LIFESTYLE","HERITAGE","FEMALE","2025-09-04",1,733,"2025-10-02","斐樂大貨","回流"]
["M2801 Fanny","服装","針織上衣","针织长袖外套","秋季","ATHLETICS","FITNESS","MALE","2025-07-22",1,1480,"2025-10-02","斐樂大貨"]
["M2798 Ryan","服装","針織上衣","针织长袖外套","冬季","ATHLETICS","FITNESS","MALE","2025-09-04",1,1258,"2025-10-02","斐樂大貨","回流"]
["M2172 Janet","服装","針織上衣","针织长袖外套","冬季","ATHLETICS","GOLF","MALE","2025-09-04",1,2480,"2025-10-02","斐樂大貨"]
["M2798 Ryan","服装","針織上衣","针织长袖外套","冬季","ATHLETICS","FITNESS","FEMALE","2025-09-04",1,1258,"2025-10-02","斐樂大貨","回流"]
["M1436 Khaki","服装","針織上衣","针织连帽外套","冬季","ATHLETICS","FITNESS","FEMALE","2025-09-04",1,1033,"2025-10-02","斐樂大貨","回流"]
["M0989 Susanna","服装","針織上衣","针织长袖外套","冬季","ATHLETICS","GOLF","FEMALE","2025-09-04",1,1719,"2025-10-02","斐樂大貨","回流"]
["M0989 Susanna","服装","針織上衣","针织连帽外套","冬季","ATHLETICS","GOLF","FEMALE","2025-09-23",1,1718,"2025-10-02","斐樂大貨","回流"]
["M0989 Susanna","服装","針織上衣","针织长袖外套","冬季","LIFESTYLE","HERITAGE","MALE","2025-09-04",1,1480,"2025-10-02","斐樂大貨"]
["M1436 Khaki","服装","針織上衣","针织长袖外套","冬季","LIFESTYLE","HERITAGE","MALE","2025-09-04",1,1258,"2025-10-02","斐樂大貨"]
["M1436 Khaki","配件","包類","背包","冬季","ATHLETICS","FITNESS","MALE","2025-09-04",1,780,"2025-10-02","斐樂大貨"]
["M0989 Susanna","配件","包類","背包","秋季","LIFESTYLE","WHITE","MALE","2025-06-19",1,880,"2025-10-02","斐樂大貨"]
["M0989 Susanna","配件","帽類","棒球帽","冬季","LIFESTYLE","FILA ORIGINALE","FEMALE","2025-09-04",1,289,"2025-10-02","斐樂大貨","回流"]
["M2172 Janet","配件","帽類","棒球帽","冬季","LIFESTYLE","FILA ORIGINALE","FEMALE","2025-09-04",1,289,"2025-10-02","斐樂大貨"]
["M1436 Khaki","配件","襪類","低腰袜","秋季","ATHLETICS","FITNESS","FEMALE","2025-06-03",2,102,"2025-10-02","斐樂大貨","回流"]
["M1436 Khaki","配件","襪類","中腰袜","秋季","ATHLETICS","FITNESS","FEMALE","2025-06-03",1,60,"2025-10-02","斐樂大貨","回流"]
["M2172 Janet","配件","襪類","中腰袜","秋季","ATHLETICS","FITNESS","FEMALE","2025-06-03",1,70,"2025-10-02","斐樂大貨","回流"]
["M2172 Janet","配件","襪類","低腰袜","春季","LIFESTYLE","WHITE","MALE","2025-01-07",1,60,"2025-10-02","斐樂大貨"]
["M2798 Ryan","配件","襪類","低腰袜","春季","LIFESTYLE","FILA ORIGINALE","MALE","2025-01-07",5,300,"2025-10-02","斐樂大貨"]
["M2172 Janet","配件","襪類","中腰袜","春季","LIFESTYLE","FILA ORIGINALE","MALE","2024-12-05",1,70,"2025-10-02","斐樂大貨"]
["M2801 Fanny","配件","襪類","低腰袜","夏季","LIFESTYLE","WHITE","MALE","2025-03-06",1,65,"2025-10-02","斐樂大貨"]
["M2801 Fanny","配件","襪類","浅口袜","夏季","LIFESTYLE","WHITE","MALE","2025-03-06",1,60,"2025-10-02","斐樂大貨"]
["M2801 Fanny","配件","襪類","浅口袜","夏季","LIFESTYLE","WHITE","MALE","2025-03-06",1,51,"2025-10-02","斐樂大貨","回流"]
["M1436 Khaki","配件","襪類","低腰袜","秋季","LIFESTYLE","WHITE","MALE","2025-06-03",1,50,"2025-10-02","斐樂大貨","回流"]
["M1436 Khaki","配件","襪類","中腰袜","秋季","LIFESTYLE","WHITE","MALE","2025-06-03",1,60,"2025-10-02","斐樂大貨","回流"]
["M1436 Khaki","配件","襪類","低腰袜","冬季","LIFESTYLE","WHITE","MALE","2025-09-04",1,51,"2025-10-02","斐樂大貨","回流"]
["M1436 Khaki","配件","襪類","低腰袜","冬季","LIFESTYLE","WHITE","MALE","2025-09-04",1,50,"2025-10-02","斐樂大貨","回流"]
["M1436 Khaki","配件","襪類","中腰袜","冬季","LIFESTYLE","FILA ORIGINALE","MALE","2025-09-04",1,60,"2025-10-02","斐樂大貨","回流"]
["M2798 Ryan","配件","襪類","低腰袜","秋季","LIFESTYLE","FILA ORIGINALE","FEMALE","2025-06-03",1,60,"2025-10-02","斐樂大貨"]
["M2798 Ryan","配件","襪類","低腰袜","秋季","LIFESTYLE","FILA ORIGINALE","FEMALE","2025-06-03",3,180,"2025-10-02","斐樂大貨"]
["M1436 Khaki","配件","襪類","浅口袜","秋季","LIFESTYLE","FILA ORIGINALE","FEMALE","2025-06-03",1,51,"2025-10-02","斐樂大貨","回流"]
["M2801 Fanny","配件","襪類","低腰袜","冬季","LIFESTYLE","HERITAGE","FEMALE","2025-09-04",1,60,"2025-10-02","斐樂大貨"]
["M2172 Janet","配件","襪類","中腰袜","冬季","LIFESTYLE","FILA ORIGINALE","FEMALE","2025-09-04",1,70,"2025-10-02","斐樂大貨","回流"]
["M0989 Susanna","广宣用品","促销品","FILA车载保温杯（白）","常青",null,null,"不分","2025-05-29",1,0,"2025-10-02","斐樂大貨","回流"]
["M2172 Janet","广宣用品","促销品","FILA车载保温杯（白）","常青",null,null,"不分","2025-05-29",2,0,"2025-10-02","斐樂大貨","回流"]
["M2798 Ryan","广宣用品","促销品","FILA车载保温杯（白）","常青",null,null,"不分","2025-05-29",1,0,"2025-10-02","斐樂大貨","回流"]
["M2801 Fanny","广宣用品","促销品","FILA车载保温杯（白）","常青",null,null,"不分","2025-05-29",1,0,"2025-10-02","斐樂大貨"]
["M2801 Fanny","广宣用品","促销品","FILA车载保温杯（白）","常青",null,null,"不分","2025-05-29",2,0,"2025-10-02","斐樂大貨","回流"]
["M0989 Susanna","广宣用品","促销品","FILA新款拉杆箱（绿色）","常青",null,null,"不分","2025-06-04",1,0,"2025-10-02","斐樂大貨","回流"]
["M1436 Khaki","广宣用品","促销品","FILA宽拉杆拉杆箱（白色）","常青",null,null,"不分","2025-06-12",2,0,"2025-10-02","斐樂大貨","回流"]
["M2801 Fanny","广宣用品","促销品","FILA宽拉杆拉杆箱（白色）","常青",null,null,"不分","2025-06-12",1,0,"2025-10-02","斐樂大貨","回流"]
["M0989 Susanna","其它","其它","PLASTIC BAG","春季",null,null,"UNISEX",null,1,1,"2025-10-02","通用"]
["M0989 Susanna","其它","其它","PLASTIC BAG","春季",null,null,"UNISEX",null,2,2,"2025-10-02","通用","回流"]
["M2172 Janet","其它","其它","PLASTIC BAG","春季",null,null,"UNISEX",null,3,3,"2025-10-02","通用"]
["M2798 Ryan","其它","其它","PLASTIC BAG","春季",null,null,"UNISEX",null,1,1,"2025-10-02","通用"]
["M2798 Ryan","其它","其它","PLASTIC BAG","春季",null,null,"UNISEX",null,1,1,"2025-10-02","通用","回流"]
["M2801 Fanny","其它","其它","PLASTIC BAG","春季",null,null,"UNISEX",null,2,2,"2025-10-02","通用"]
["M0989 Susanna","其它","其它","PLASTIC BAG","春季",null,null,"UNISEX",null,3,3,"2025-10-02","通用"]
["M2801 Fanny","其它","其它","PLASTIC BAG","春季",null,null,"UNISEX",null,1,1,"2025-10-02","通用","回流"]
["M0989 Susanna","其它","其它","PLASTIC BAG","春季",null,null,"UNISEX",null,2,2,"2025-10-02","通用"]
["M0989 Susanna","其它","其它","PLASTIC BAG","春季",null,null,"UNISEX",null,1,1,"2025-10-02","通用","回流"]
["M1436 Khaki","其它","其它","PLASTIC BAG","春季",null,null,"UNISEX",null,3,3,"2025-10-02","通用"]
["M2798 Ryan","其它","其它","PLASTIC BAG","春季",null,null,"UNISEX",null,1,1,"2025-10-02","通用","回流"]
["M2801 Fanny","其它","其它","PLASTIC BAG","春季",null,null,"UNISEX",null,1,1,"2025-10-02","通用"]
["M2801 Fanny","其它","其它","PLASTIC BAG","春季",null,null,"UNISEX",null,1,1,"2025-10-02","通用","回流"]
["M2172 Janet","鞋类","運動鞋","摩登运动鞋","秋季","FASHION","MODERNO","MALE","2025-08-05",1,784,"2025-10-03","斐樂大貨","回流"]
["M2801 Fanny","鞋类","運動鞋","摩登运动鞋","秋季","FASHION","MODERNO","MALE","2025-08-05",1,833,"2025-10-03","斐樂大貨","回流"]
["M1436 Khaki","鞋类","運動鞋","复古运动鞋","冬季","FASHION","ORIGINALE","MALE","2025-09-04",1,863,"2025-10-03","斐樂大貨"]
["M2902 Carmen","鞋类","運動鞋","复古运动鞋","冬季","FASHION","ORIGINALE","MALE","2025-09-04",1,739,"2025-10-03","斐樂大貨","回流"]
["M1436 Khaki","鞋类","運動鞋","复古运动鞋","冬季","FASHION","ORIGINALE","MALE","2025-09-04",1,774,"2025-10-03","斐樂大貨"]
["M2172 Janet","鞋类","運動鞋","摩登运动鞋","秋季","FASHION","MODERNO","FEMALE","2025-07-03",1,825,"2025-10-03","斐樂大貨","回流"]
["M2902 Carmen","鞋类","運動鞋","摩登运动鞋","秋季","FASHION","MODERNO","FEMALE","2025-07-03",1,833,"2025-10-03","斐樂大貨"]
["M2172 Janet","鞋类","運動鞋","摩登运动鞋","秋季","FASHION","MODERNO","FEMALE","2025-07-03",1,980,"2025-10-03","斐樂大貨"]
["M1436 Khaki","鞋类","運動鞋","摩登运动鞋","秋季","FASHION","MODERNO","FEMALE","2025-08-05",1,980,"2025-10-03","斐樂大貨"]
["M1436 Khaki","鞋类","運動鞋","先锋运动鞋","秋季","FASHION","ICONA","FEMALE","2025-07-03",1,1240,"2025-10-03","斐樂大貨"]
["M2172 Janet","鞋类","運動鞋","先锋运动鞋","秋季","FASHION","ICONA","FEMALE","2025-07-03",1,1092,"2025-10-03","斐樂大貨"]
["M1436 Khaki","鞋类","運動鞋","摩登运动鞋","冬季","FASHION","MODERNO","FEMALE","2025-09-04",1,980,"2025-10-03","斐樂大貨"]
["M2172 Janet","鞋类","運動鞋","摩登运动鞋","冬季","FASHION","MODERNO","FEMALE","2025-09-04",1,825,"2025-10-03","斐樂大貨","回流"]
["M2902 Carmen","鞋类","運動鞋","摩登运动鞋","冬季","FASHION","MODERNO","FEMALE","2025-09-04",1,833,"2025-10-03","斐樂大貨"]
["M2902 Carmen","鞋类","運動鞋","摩登运动鞋","冬季","FASHION","MODERNO","FEMALE","2025-09-04",1,833,"2025-10-03","斐樂大貨"]
["M1436 Khaki","鞋类","運動鞋","复古运动鞋","冬季","FASHION","ORIGINALE","FEMALE","2025-09-04",1,863,"2025-10-03","斐樂大貨"]
["M2801 Fanny","鞋类","運動鞋","复古运动鞋","冬季","FASHION","ORIGINALE","FEMALE","2025-09-04",1,980,"2025-10-03","斐樂大貨"]
["M2902 Carmen","鞋类","運動鞋","复古运动鞋","冬季","FASHION","ORIGINALE","FEMALE","2025-09-04",1,880,"2025-10-03","斐樂大貨"]
["M2902 Carmen","鞋类","運動鞋","复古运动鞋","冬季","FASHION","ORIGINALE","FEMALE","2025-09-04",1,739,"2025-10-03","斐樂大貨","回流"]
["M1436 Khaki","鞋类","運動鞋","复古运动鞋","冬季","FASHION","ORIGINALE","FEMALE","2025-09-04",1,774,"2025-10-03","斐樂大貨"]
["M2172 Janet","鞋类","跑步鞋","路跑鞋","冬季","ATHLETICS","SPORT PERFORMANCE","FEMALE","2025-09-04",1,825,"2025-10-03","斐樂大貨","回流"]
["M2172 Janet","鞋类","網球鞋","网球生活鞋","冬季","ATHLETICS","SPORT PERFORMANCE","MALE","2025-09-04",1,774,"2025-10-03","斐樂大貨"]
["M2172 Janet","鞋类","網球鞋","网球生活鞋","冬季","ATHLETICS","SPORT PERFORMANCE","MALE","2025-09-04",1,775,"2025-10-03","斐樂大貨"]
["M2172 Janet","鞋类","網球鞋","网球生活鞋","冬季","ATHLETICS","SPORT PERFORMANCE","FEMALE","2025-09-04",1,774,"2025-10-03","斐樂大貨"]
["M1436 Khaki","服装","編織衫","编织外套","冬季","LIFESTYLE","WHITE","FEMALE","2025-09-23",1,1092,"2025-10-03","斐樂大貨"]
["M1436 Khaki","服装","編織衫","编织外套","冬季","LIFESTYLE","WHITE","FEMALE","2025-09-23",1,1091,"2025-10-03","斐樂大貨"]
["M2902 Carmen","服装","編織衫","编织衫","冬季","LIFESTYLE","WHITE","FEMALE","2025-09-23",1,980,"2025-10-03","斐樂大貨"]
["M0989 Susanna","服装","編織衫","编织衫","冬季","LIFESTYLE","WHITE","FEMALE","2025-09-23",1,980,"2025-10-03","斐樂大貨"]
["M2902 Carmen","服装","短T類","针织短袖衫","秋季","ATHLETICS","FITNESS","MALE","2025-07-22",1,571,"2025-10-03","斐樂大貨","回流"]
["M2801 Fanny","服装","短T類","针织短袖POLO衫","秋季","ATHLETICS","GOLF","MALE","2025-07-22",1,1092,"2025-10-03","斐樂大貨"]
["M0989 Susanna","服装","短T類","针织短袖POLO衫","秋季","ATHLETICS","GOLF","MALE","2025-07-22",1,1240,"2025-10-03","斐樂大貨"]
["M2801 Fanny","服装","短T類","针织短袖POLO衫","秋季","LIFESTYLE","BLUE","MALE","2025-06-19",1,1003,"2025-10-03","斐樂大貨"]
["M0989 Susanna","服装","短T類","针织短袖衫","秋季","LIFESTYLE","WHITE","MALE","2025-08-05",1,598,"2025-10-03","斐樂大貨"]
["M2172 Janet","服装","短T類","针织短袖衫","秋季","LIFESTYLE","WHITE","MALE","2025-08-05",1,680,"2025-10-03","斐樂大貨"]
["M0989 Susanna","服装","短T類","针织短袖衫","秋季","LIFESTYLE","FILA ORIGINALE","MALE","2025-08-19",1,544,"2025-10-03","斐樂大貨","回流"]
["M2172 Janet","服装","短T類","针织短袖衫","冬季","LIFESTYLE","HERITAGE","MALE","2025-09-04",1,580,"2025-10-03","斐樂大貨"]
["M2801 Fanny","服装","短T類","针织短袖POLO衫","冬季","LIFESTYLE","HERITAGE","MALE","2025-09-04",1,593,"2025-10-03","斐樂大貨","回流"]
["M2801 Fanny","服装","棉服","棉马甲","冬季","ATHLETICS","GOLF","MALE","2025-09-23",1,1715,"2025-10-03","斐樂大貨","回流"]
["M0989 Susanna","服装","內搭","针织长袖上衣","冬季","ATHLETICS","FITNESS","MALE","2025-09-04",1,663,"2025-10-03","斐樂大貨","回流"]
["M2801 Fanny","服装","內搭","针织长袖上衣","冬季","ATHLETICS","FITNESS","MALE","2025-09-04",1,663,"2025-10-03","斐樂大貨","回流"]
["M2172 Janet","服装","內搭","针织长袖上衣","冬季","ATHLETICS","FITNESS","MALE","2025-09-04",1,748,"2025-10-03","斐樂大貨"]
["M2172 Janet","服装","內搭","针织长袖上衣","冬季","ATHLETICS","FITNESS","MALE","2025-09-04",1,748,"2025-10-03","斐樂大貨"]
["M2801 Fanny","服装","內搭","针织长袖POLO衫","冬季","ATHLETICS","GOLF","男","2025-09-04",1,1346,"2025-10-03","斐樂大貨","回流"]
["M0989 Susanna","服装","內搭","针织长袖上衣","冬季","ATHLETICS","GOLF","男","2025-09-04",1,1258,"2025-10-03","斐樂大貨","回流"]
["M2902 Carmen","服装","內搭","针织套头衫","冬季","LIFESTYLE","WHITE","MALE","2025-09-23",1,880,"2025-10-03","斐樂大貨"]
["M2172 Janet","服装","內搭","针织长袖衫","冬季","LIFESTYLE","HERITAGE","MALE","2025-09-04",1,572,"2025-10-03","斐樂大貨","回流"]
["M0989 Susanna","服装","內搭","针织套头衫","冬季","LIFESTYLE","FILA ORIGINALE","MALE","2025-09-23",1,702,"2025-10-03","斐樂大貨","回流"]
["M1436 Khaki","服装","內搭","针织连帽上衣","冬季","LIFESTYLE","HERITAGE","FEMALE","2025-09-04",1,748,"2025-10-03","斐樂大貨","回流"]
["M0989 Susanna","服装","內搭","针织连帽上衣","冬季","LIFESTYLE","FILA ORIGINALE","FEMALE","2025-09-23",1,714,"2025-10-03","斐樂大貨","回流"]
["M2902 Carmen","服装","內搭","针织连帽上衣","冬季","LIFESTYLE","FILA ORIGINALE","FEMALE","2025-09-23",1,705,"2025-10-03","斐樂大貨","回流"]
["M2902 Carmen","服装","內搭","针织长袖上衣","冬季","LIFESTYLE","FILA ORIGINALE","FEMALE","2025-09-23",1,774,"2025-10-03","斐樂大貨"]
["M2902 Carmen","服装","梭織褲","梭织长裤","冬季","ATHLETICS",null,"MALE","2025-09-23",1,1242,"2025-10-03","斐樂大貨","回流"]
["M2801 Fanny","服装","梭織上衣","梭织外套","冬季","ATHLETICS","FITNESS","男","2025-09-04",1,1819,"2025-10-03","斐樂大貨","回流"]
["M0989 Susanna","服装","梭織上衣","梭织外套","秋季","LIFESTYLE","BLUE","MALE","2025-06-19",1,2095,"2025-10-03","斐樂大貨"]
["M1436 Khaki","服装","梭織上衣","梭织外套","冬季","LIFESTYLE","FILA ORIGINALE","MALE","2025-09-23",1,1940,"2025-10-03","斐樂大貨"]
["M0989 Susanna","服装","梭織上衣","梭织外套","冬季","LIFESTYLE","WHITE","FEMALE","2025-09-23",1,1512,"2025-10-03","斐樂大貨","回流"]
["M2172 Janet","服装","梭織上衣","梭织外套","冬季","LIFESTYLE","HERITAGE","FEMALE","2025-09-04",1,1184,"2025-10-03","斐樂大貨","回流"]
["M2801 Fanny","服装","梭織上衣","梭织外套","冬季","LIFESTYLE","HERITAGE","FEMALE","2025-09-04",1,1186,"2025-10-03","斐樂大貨","回流"]
["M2172 Janet","服装","羽絨服","羽绒马甲","冬季","ATHLETICS","GOLF","女","2025-09-04",1,1884,"2025-10-03","斐樂大貨","回流"]
["M2172 Janet","服装","羽絨服","羽绒服两件套","冬季","LIFESTYLE","WHITE","FEMALE","2025-09-23",1,2087,"2025-10-03","斐樂大貨","回流"]
["M2902 Carmen","服装","羽絨服","羽绒马甲","冬季","LIFESTYLE","FILA ORIGINALE","FEMALE","2025-11-06",1,1303,"2025-10-03","斐樂大貨"]
["M1436 Khaki","服装","羽絨服","羽绒马甲","冬季","LIFESTYLE","FILA ORIGINALE","FEMALE","2025-11-06",1,1258,"2025-10-03","斐樂大貨","回流"]
["M2172 Janet","服装","針織褲","针织长裤","冬季","ATHLETICS","GOLF","男","2025-09-04",1,1428,"2025-10-03","斐樂大貨"]
["M2902 Carmen","服装","針織褲","针织长裤","秋季","ATHLETICS","FITNESS","FEMALE","2025-07-22",1,775,"2025-10-03","斐樂大貨"]
["M1436 Khaki","服装","針織褲","针织长裤","冬季","ATHLETICS","FITNESS","FEMALE","2025-09-04",1,833,"2025-10-03","斐樂大貨","回流"]
["M2902 Carmen","服装","針織褲","针织长裤","秋季","LIFESTYLE","HERITAGE","FEMALE","2025-07-22",1,739,"2025-10-03","斐樂大貨"]
["M2801 Fanny","服装","針織褲","针织长裤","冬季","LIFESTYLE","WHITE","FEMALE","2025-09-23",1,827,"2025-10-03","斐樂大貨"]
["M0989 Susanna","服装","針織褲","针织长裤","冬季","LIFESTYLE","FILA ORIGINALE","FEMALE","2025-09-23",1,714,"2025-10-03","斐樂大貨","回流"]
["M1436 Khaki","服装","針織上衣","针织长袖外套","冬季","ATHLETICS","FITNESS","FEMALE","2025-09-04",1,1258,"2025-10-03","斐樂大貨","回流"]
["M1436 Khaki","服装","針織上衣","针织长袖外套","冬季","ATHLETICS","FITNESS","FEMALE","2025-09-04",1,1258,"2025-10-03","斐樂大貨","回流"]
["M2902 Carmen","服装","針織上衣","针织连帽外套","冬季","ATHLETICS","FITNESS","FEMALE","2025-09-04",1,1041,"2025-10-03","斐樂大貨","回流"]
["M0989 Susanna","服装","針織上衣","针织连帽外套","冬季","ATHLETICS","FITNESS","FEMALE","2025-09-04",1,1240,"2025-10-03","斐樂大貨"]
["M1436 Khaki","服装","針織上衣","针织连帽外套","冬季","ATHLETICS","FITNESS","FEMALE","2025-09-04",2,2108,"2025-10-03","斐樂大貨","回流"]
["M2172 Janet","服装","針織上衣","针织长袖外套","冬季","ATHLETICS","GOLF","FEMALE","2025-09-04",1,1883,"2025-10-03","斐樂大貨","回流"]
["M2902 Carmen","服装","針織上衣","针织马甲","冬季","ATHLETICS",null,"FEMALE","2025-09-23",1,1243,"2025-10-03","斐樂大貨","回流"]
["M2172 Janet","服装","針織上衣","针织长袖外套","秋季","LIFESTYLE","BLUE","MALE","2025-08-05",1,1554,"2025-10-03","斐樂大貨","回流"]
["M2172 Janet","服装","針織上衣","针织长袖外套","冬季","LIFESTYLE","HERITAGE","MALE","2025-09-04",1,1246,"2025-10-03","斐樂大貨","回流"]
["M2801 Fanny","服装","針織上衣","针织连帽外套","冬季","LIFESTYLE","WHITE","FEMALE","2025-09-23",1,1303,"2025-10-03","斐樂大貨"]
["M2172 Janet","服装","針織上衣","针织长袖外套","冬季","LIFESTYLE","HERITAGE","FEMALE","2025-09-04",1,1184,"2025-10-03","斐樂大貨","回流"]
["M0989 Susanna","配件","包類","挎包","冬季","LIFESTYLE","HERITAGE","FEMALE","2025-09-04",1,578,"2025-10-03","斐樂大貨","回流"]
["M1436 Khaki","配件","帽類","棒球帽","冬季","LIFESTYLE","FILA ORIGINALE","FEMALE","2025-09-04",1,289,"2025-10-03","斐樂大貨","回流"]
["M2172 Janet","配件","襪類","中腰袜","冬季","ATHLETICS","FITNESS","FEMALE","2025-09-04",1,70,"2025-10-03","斐樂大貨"]
["M0989 Susanna","配件","襪類","低腰袜","春季","LIFESTYLE","WHITE","MALE","2025-01-07",1,54,"2025-10-03","斐樂大貨","回流"]
["M0989 Susanna","配件","襪類","低腰袜","春季","LIFESTYLE","WHITE","MALE","2025-01-07",1,54,"2025-10-03","斐樂大貨","回流"]
["M0989 Susanna","配件","襪類","浅口袜","夏季","LIFESTYLE","WHITE","MALE","2025-03-06",1,60,"2025-10-03","斐樂大貨"]
["M2172 Janet","配件","襪類","中腰袜","夏季","LIFESTYLE","FILA ORIGINALE","FEMALE","2025-03-06",1,70,"2025-10-03","斐樂大貨"]
["M2172 Janet","配件","襪類","中腰袜","夏季","LIFESTYLE","FILA ORIGINALE","FEMALE","2025-03-06",1,56,"2025-10-03","斐樂大貨","回流"]
["M2172 Janet","配件","襪類","低腰袜","秋季","LIFESTYLE","FILA ORIGINALE","FEMALE","2025-06-03",1,48,"2025-10-03","斐樂大貨","回流"]
["M2172 Janet","配件","襪類","低腰袜","秋季","LIFESTYLE","FILA ORIGINALE","FEMALE","2025-06-03",1,60,"2025-10-03","斐樂大貨"]
["M0989 Susanna","配件","襪類","低腰袜","冬季","LIFESTYLE","HERITAGE","FEMALE","2025-09-04",2,108,"2025-10-03","斐樂大貨","回流"]
["M0989 Susanna","配件","襪類","中腰袜","冬季","LIFESTYLE","FILA ORIGINALE","FEMALE","2025-09-04",2,126,"2025-10-03","斐樂大貨","回流"]
["M2172 Janet","配件","襪類","中腰袜","冬季","LIFESTYLE","FILA ORIGINALE","FEMALE","2025-09-04",1,70,"2025-10-03","斐樂大貨"]
["M0989 Susanna","广宣用品","促销品","FILA车载保温杯（白）","常青",null,null,"不分","2025-05-29",1,0,"2025-10-03","斐樂大貨","回流"]
["M1436 Khaki","广宣用品","促销品","FILA车载保温杯（白）","常青",null,null,"不分","2025-05-29",2,0,"2025-10-03","斐樂大貨","回流"]
["M2172 Janet","广宣用品","促销品","FILA车载保温杯（白）","常青",null,null,"不分","2025-05-29",2,0,"2025-10-03","斐樂大貨","回流"]
["M2801 Fanny","广宣用品","促销品","FILA车载保温杯（白）","常青",null,null,"不分","2025-05-29",2,0,"2025-10-03","斐樂大貨","回流"]
["M2172 Janet","广宣用品","促销品","FILA宽拉杆拉杆箱（白色）","常青",null,null,"不分","2025-06-12",1,0,"2025-10-03","斐樂大貨","回流"]
["M2902 Carmen","广宣用品","促销品","FILA宽拉杆拉杆箱（白色）","常青",null,null,"不分","2025-06-12",1,0,"2025-10-03","斐樂大貨","回流"]
["M0989 Susanna","其它","其它","PLASTIC BAG","春季",null,null,"UNISEX",null,2,2,"2025-10-03","通用"]
["M1436 Khaki","其它","其它","PLASTIC BAG","春季",null,null,"UNISEX",null,2,2,"2025-10-03","通用"]
["M1436 Khaki","其它","其它","PLASTIC BAG","春季",null,null,"UNISEX",null,1,1,"2025-10-03","通用","回流"]
["M2172 Janet","其它","其它","PLASTIC BAG","春季",null,null,"UNISEX",null,1,1,"2025-10-03","通用"]
["M2172 Janet","其它","其它","PLASTIC BAG","春季",null,null,"UNISEX",null,3,3,"2025-10-03","通用","回流"]
["M2902 Carmen","其它","其它","PLASTIC BAG","春季",null,null,"UNISEX",null,2,2,"2025-10-03","通用"]
["M0989 Susanna","其它","其它","PLASTIC BAG","春季",null,null,"UNISEX",null,1,1,"2025-10-03","通用","回流"]
["M1436 Khaki","其它","其它","PLASTIC BAG","春季",null,null,"UNISEX",null,2,2,"2025-10-03","通用"]
["M2172 Janet","其它","其它","PLASTIC BAG","春季",null,null,"UNISEX",null,1,1,"2025-10-03","通用"]
["M2172 Janet","其它","其它","PLASTIC BAG","春季",null,null,"UNISEX",null,1,1,"2025-10-03","通用","回流"]
["M2801 Fanny","其它","其它","PLASTIC BAG","春季",null,null,"UNISEX",null,1,1,"2025-10-03","通用","回流"]
["M2902 Carmen","其它","其它","PLASTIC BAG","春季",null,null,"UNISEX",null,2,2,"2025-10-03","通用"]
["M0989 Susanna","其它","其它","PLASTIC BAG","春季",null,null,"UNISEX",null,2,2,"2025-10-03","通用"]
["M0989 Susanna","其它","其它","PLASTIC BAG","春季",null,null,"UNISEX",null,2,2,"2025-10-03","通用","回流"]
["M1436 Khaki","其它","其它","PLASTIC BAG","春季",null,null,"UNISEX",null,2,2,"2025-10-03","通用"]
["M1436 Khaki","其它","其它","PLASTIC BAG","春季",null,null,"UNISEX",null,1,1,"2025-10-03","通用","回流"]
["M2172 Janet","其它","其它","PLASTIC BAG","春季",null,null,"UNISEX",null,3,3,"2025-10-03","通用"]
["M2801 Fanny","其它","其它","PLASTIC BAG","春季",null,null,"UNISEX",null,2,2,"2025-10-03","通用"]
["M2801 Fanny","其它","其它","PLASTIC BAG","春季",null,null,"UNISEX",null,1,1,"2025-10-03","通用","回流"]
["M2902 Carmen","其它","其它","PLASTIC BAG","春季",null,null,"UNISEX",null,1,1,"2025-10-03","通用"]
["M2801 Fanny","鞋类","運動鞋","摩登运动鞋","秋季","FASHION","MODERNO","MALE","2025-08-05",1,824,"2025-10-04","斐樂大貨","回流"]
["M2798 Ryan","鞋类","運動鞋","复古运动鞋","秋季","FASHION","ORIGINALE","MALE","2025-06-03",1,880,"2025-10-04","斐樂大貨"]
["M2798 Ryan","鞋类","運動鞋","摩登运动鞋","冬季","FASHION","MODERNO","MALE","2025-09-04",1,863,"2025-10-04","斐樂大貨"]
["M1436 Khaki","鞋类","運動鞋","复古运动鞋","冬季","FASHION","ORIGINALE","MALE","2025-09-04",0,0,"2025-10-04","斐樂大貨"]
["M2798 Ryan","鞋类","運動鞋","摩登运动鞋","秋季","FASHION","MODERNO","FEMALE","2025-07-03",1,833,"2025-10-04","斐樂大貨"]
["M1436 Khaki","鞋类","運動鞋","摩登运动鞋","冬季","FASHION","MODERNO","FEMALE","2025-09-04",0,0,"2025-10-04","斐樂大貨"]
["M2801 Fanny","鞋类","運動鞋","摩登运动鞋","冬季","FASHION","MODERNO","FEMALE","2025-09-04",1,833,"2025-10-04","斐樂大貨"]
["M2798 Ryan","鞋类","運動鞋","摩登运动鞋","冬季","FASHION","MODERNO","FEMALE","2025-09-04",1,833,"2025-10-04","斐樂大貨"]
["M1436 Khaki","鞋类","運動鞋","摩登运动鞋","冬季","FASHION","MODERNO","FEMALE","2025-09-04",1,833,"2025-10-04","斐樂大貨"]
["M2798 Ryan","鞋类","運動鞋","复古运动鞋","冬季","FASHION","ORIGINALE","FEMALE","2025-09-04",1,833,"2025-10-04","斐樂大貨"]
["M1436 Khaki","鞋类","運動鞋","复古运动鞋","冬季","FASHION","ORIGINALE","FEMALE","2025-09-04",1,863,"2025-10-04","斐樂大貨"]
["M2798 Ryan","鞋类","運動鞋","复古运动鞋","冬季","FASHION","ORIGINALE","FEMALE","2025-09-04",1,748,"2025-10-04","斐樂大貨"]
["M1436 Khaki","鞋类","運動鞋","复古运动鞋","冬季","FASHION","ORIGINALE","FEMALE","2025-09-04",1,774,"2025-10-04","斐樂大貨"]
["M2798 Ryan","鞋类","運動鞋","复古运动鞋","冬季","FASHION","ORIGINALE","FEMALE","2025-09-04",1,734,"2025-10-04","斐樂大貨","回流"]
["M2798 Ryan","鞋类","運動鞋","复古运动鞋","冬季","FASHION","ORIGINALE","FEMALE","2025-09-04",1,774,"2025-10-04","斐樂大貨"]
["M1436 Khaki","鞋类","板鞋","复古板鞋","冬季","FASHION","ORIGINALE","MALE","2025-09-04",1,880,"2025-10-04","斐樂大貨"]
["M2801 Fanny","鞋类","板鞋","复古板鞋","冬季","FASHION","ORIGINALE","FEMALE","2025-09-04",1,880,"2025-10-04","斐樂大貨"]
["M1436 Khaki","鞋类","跑步鞋","路跑鞋","冬季","ATHLETICS","SPORT PERFORMANCE","MALE","2025-09-04",1,833,"2025-10-04","斐樂大貨"]
["M1436 Khaki","鞋类","跑步鞋","路跑鞋","冬季","ATHLETICS","SPORT PERFORMANCE","FEMALE","2025-09-04",1,833,"2025-10-04","斐樂大貨"]
["M1436 Khaki","鞋类","高爾夫球鞋","软钉高球鞋","夏季","ATHLETICS","SPORT PERFORMANCE","MALE","2025-04-03",1,2380,"2025-10-04","斐樂大貨","回流"]
["M0989 Susanna","鞋类","高爾夫球鞋","软钉高球鞋","夏季","ATHLETICS","SPORT PERFORMANCE","MALE","2025-04-03",1,2380,"2025-10-04","斐樂大貨"]
["M2902 Carmen","服装","編織衫","编织外套","冬季","ATHLETICS","GOLF","女","2025-09-04",1,1630,"2025-10-04","斐樂大貨","回流"]
["M2902 Carmen","服装","編織衫","编织外套","冬季","LIFESTYLE","WHITE","FEMALE","2025-09-23",0,0,"2025-10-04","斐樂大貨"]
["M2902 Carmen","服装","編織衫","编织外套","冬季","LIFESTYLE","WHITE","FEMALE","2025-09-23",1,1041,"2025-10-04","斐樂大貨","回流"]
["M2801 Fanny","服装","短T類","针织短袖衫","秋季","LIFESTYLE","WHITE","MALE","2025-08-05",1,578,"2025-10-04","斐樂大貨"]
["M2801 Fanny","服装","短T類","针织短袖POLO衫","秋季","LIFESTYLE","WHITE","MALE","2025-08-05",1,624,"2025-10-04","斐樂大貨","回流"]
["M2801 Fanny","服装","短T類","针织短袖衫","冬季","LIFESTYLE","HERITAGE","MALE","2025-09-04",1,493,"2025-10-04","斐樂大貨"]
["M0989 Susanna","服装","棉服","棉马甲","冬季","ATHLETICS","GOLF","MALE","2025-09-23",1,1819,"2025-10-04","斐樂大貨","回流"]
["M2798 Ryan","服装","棉服","棉马甲","冬季","ATHLETICS","GOLF","MALE","2025-09-23",1,1785,"2025-10-04","斐樂大貨","回流"]
["M2902 Carmen","服装","棉服","棉马甲","冬季","ATHLETICS","GOLF","MALE","2025-09-23",1,1797,"2025-10-04","斐樂大貨","回流"]
["M2798 Ryan","服装","內搭","针织长袖上衣","冬季","ATHLETICS","FITNESS","MALE","2025-09-04",1,734,"2025-10-04","斐樂大貨","回流"]
["M2801 Fanny","服装","內搭","针织长袖POLO衫","冬季","ATHLETICS","GOLF","MALE","2025-09-04",1,1344,"2025-10-04","斐樂大貨","回流"]
["M2902 Carmen","服装","內搭","针织长袖POLO衫","冬季","ATHLETICS","GOLF","男","2025-09-04",2,2476,"2025-10-04","斐樂大貨","回流"]
["M2902 Carmen","服装","內搭","针织长袖POLO衫","冬季","ATHLETICS","GOLF","男","2025-09-04",2,2290,"2025-10-04","斐樂大貨","回流"]
["M2801 Fanny","服装","內搭","针织长袖上衣","冬季","ATHLETICS","FITNESS","FEMALE","2025-09-04",1,663,"2025-10-04","斐樂大貨"]
["M2801 Fanny","服装","內搭","针织套头衫","冬季","LIFESTYLE","HERITAGE","MALE","2025-09-04",1,714,"2025-10-04","斐樂大貨","回流"]
["M0989 Susanna","服装","內搭","针织套头衫","冬季","LIFESTYLE","HERITAGE","MALE","2025-09-04",1,714,"2025-10-04","斐樂大貨","回流"]
["M0989 Susanna","服装","內搭","针织套头衫","冬季","LIFESTYLE","HERITAGE","MALE","2025-09-04",0,0,"2025-10-04","斐樂大貨"]
["M2902 Carmen","服装","內搭","针织套头衫","冬季","LIFESTYLE","HERITAGE","MALE","2025-09-04",1,597,"2025-10-04","斐樂大貨","回流"]
["M2902 Carmen","服装","內搭","针织套头衫","冬季","LIFESTYLE","HERITAGE","MALE","2025-09-04",2,1404,"2025-10-04","斐樂大貨","回流"]
["M2798 Ryan","服装","內搭","针织套头衫","冬季","LIFESTYLE","FILA ORIGINALE","MALE","2025-09-23",1,780,"2025-10-04","斐樂大貨"]
["M2902 Carmen","服装","內搭","针织套头衫","冬季","LIFESTYLE","FILA ORIGINALE","MALE","2025-09-23",1,702,"2025-10-04","斐樂大貨","回流"]
["M2801 Fanny","服装","內搭","针织套头衫","冬季","LIFESTYLE","FILA ORIGINALE","MALE","2025-09-23",1,663,"2025-10-04","斐樂大貨"]
["M2798 Ryan","服装","內搭","针织长袖衫","冬季","LIFESTYLE","HERITAGE","FEMALE","2025-09-04",1,578,"2025-10-04","斐樂大貨"]
["M2801 Fanny","服装","內搭","针织连帽上衣","冬季","LIFESTYLE","HERITAGE","FEMALE","2025-09-04",1,748,"2025-10-04","斐樂大貨"]
["M2801 Fanny","服装","內搭","针织连帽上衣","冬季","LIFESTYLE","HERITAGE","FEMALE","2025-09-04",1,704,"2025-10-04","斐樂大貨","回流"]
["M2801 Fanny","服装","內搭","针织连帽上衣","冬季","LIFESTYLE","FILA ORIGINALE","FEMALE","2025-09-23",1,714,"2025-10-04","斐樂大貨"]
["M2798 Ryan","服装","梭織褲","梭织长裤","秋季","ATHLETICS","A.P.","MALE","2025-06-03",1,951,"2025-10-04","斐樂大貨","回流"]
["M2902 Carmen","服装","梭織上衣","梭织外套","冬季","ATHLETICS","FITNESS","男","2025-09-04",1,1797,"2025-10-04","斐樂大貨","回流"]
["M2798 Ryan","服装","梭織上衣","梭织外套","秋季","ATHLETICS","FITNESS","FEMALE","2025-07-22",1,1484,"2025-10-04","斐樂大貨","回流"]
["M2801 Fanny","服装","梭織上衣","梭织外套","秋季","LIFESTYLE","BLUE","MALE","2025-08-05",1,2788,"2025-10-04","斐樂大貨","回流"]
["M2798 Ryan","服装","梭織上衣","梭织外套","秋季","LIFESTYLE","WHITE","MALE","2025-08-05",1,1234,"2025-10-04","斐樂大貨","回流"]
["M2902 Carmen","服装","梭織上衣","梭织外套","秋季","LIFESTYLE","WHITE","MALE","2025-08-05",1,1410,"2025-10-04","斐樂大貨","回流"]
["M2902 Carmen","服装","梭織上衣","梭织外套","冬季","LIFESTYLE","BLUE","MALE","2025-10-09",1,2408,"2025-10-04","斐樂大貨","回流"]
["M0989 Susanna","服装","梭織上衣","梭织外套","冬季","LIFESTYLE","HERITAGE","MALE","2025-09-04",1,1428,"2025-10-04","斐樂大貨","回流"]
["M2801 Fanny","服装","梭織上衣","梭织外套","冬季","LIFESTYLE","HERITAGE","MALE","2025-09-04",1,1413,"2025-10-04","斐樂大貨","回流"]
["M2902 Carmen","服装","梭織上衣","梭织外套","秋季","LIFESTYLE","HERITAGE","FEMALE","2025-07-22",1,1630,"2025-10-04","斐樂大貨","回流"]
["M2801 Fanny","服装","梭織上衣","梭织外套","冬季","LIFESTYLE","HERITAGE","FEMALE","2025-09-04",2,2560,"2025-10-04","斐樂大貨","回流"]
["M2902 Carmen","服装","梭織上衣","梭织外套","冬季","LIFESTYLE","HERITAGE","FEMALE","2025-09-04",1,1480,"2025-10-04","斐樂大貨"]
["M1436 Khaki","服装","梭織上衣","梭织外套","冬季","LIFESTYLE","FILA ORIGINALE","FEMALE","2025-09-23",2,3360,"2025-10-04","斐樂大貨"]
["M2801 Fanny","服装","羽絨服","羽绒马甲","冬季","ATHLETICS","FITNESS","MALE","2025-10-09",1,1184,"2025-10-04","斐樂大貨","回流"]
["M2902 Carmen","服装","羽絨服","羽绒马甲","冬季","ATHLETICS","GOLF","女","2025-09-04",1,1884,"2025-10-04","斐樂大貨"]
["M1436 Khaki","服装","羽絨服","羽绒马甲","冬季","LIFESTYLE","WHITE","MALE","2025-10-09",1,1480,"2025-10-04","斐樂大貨","回流"]
["M2801 Fanny","服装","羽絨服","羽绒服两件套","冬季","LIFESTYLE","WHITE","FEMALE","2025-09-23",2,4270,"2025-10-04","斐樂大貨","回流"]
["M2801 Fanny","服装","羽絨服","羽绒马甲","冬季","LIFESTYLE","WHITE","FEMALE","2025-10-09",1,1552,"2025-10-04","斐樂大貨","回流"]
["M1436 Khaki","服装","羽絨服","羽绒服两件套","冬季","LIFESTYLE","WHITE","FEMALE","2025-11-20",1,3380,"2025-10-04","斐樂大貨"]
["M2801 Fanny","服装","針織褲","针织长裤","冬季","ATHLETICS","FITNESS","MALE","2025-09-04",1,704,"2025-10-04","斐樂大貨","回流"]
["M2798 Ryan","服装","針織褲","针织长裤","冬季","ATHLETICS","FITNESS","FEMALE","2025-09-04",1,704,"2025-10-04","斐樂大貨","回流"]
["M2798 Ryan","服装","針織褲","针织长裤","冬季","ATHLETICS","GOLF","FEMALE","2025-09-23",1,1303,"2025-10-04","斐樂大貨"]
["M2801 Fanny","服装","針織褲","针织长裤","冬季","ATHLETICS","GOLF","FEMALE","2025-09-23",1,1184,"2025-10-04","斐樂大貨","回流"]
["M2798 Ryan","服装","針織褲","针织长裤","冬季","ATHLETICS","GOLF","FEMALE","2025-09-23",1,1234,"2025-10-04","斐樂大貨","回流"]
["M1436 Khaki","服装","針織褲","针织长裤","秋季","LIFESTYLE","HERITAGE","MALE","2025-07-22",1,748,"2025-10-04","斐樂大貨","回流"]
["M0989 Susanna","服装","針織褲","针织长裤","冬季","LIFESTYLE","WHITE","MALE","2025-09-23",1,748,"2025-10-04","斐樂大貨","回流"]
["M2798 Ryan","服装","針織褲","针织长裤","冬季","LIFESTYLE","WHITE","MALE","2025-09-23",1,752,"2025-10-04","斐樂大貨","回流"]
["M2801 Fanny","服装","針織褲","针织长裤","冬季","LIFESTYLE","WHITE","MALE","2025-09-23",1,791,"2025-10-04","斐樂大貨","回流"]
["M2902 Carmen","服装","針織褲","针织长裤","冬季","LIFESTYLE","WHITE","MALE","2025-09-23",1,789,"2025-10-04","斐樂大貨","回流"]
["M0989 Susanna","服装","針織褲","针织长裤","冬季","LIFESTYLE","HERITAGE","MALE","2025-09-04",0,0,"2025-10-04","斐樂大貨"]
["M2798 Ryan","服装","針織褲","针织长裤","冬季","LIFESTYLE","HERITAGE","FEMALE","2025-09-04",1,774,"2025-10-04","斐樂大貨"]
["M2801 Fanny","服装","針織褲","针织长裤","冬季","LIFESTYLE","HERITAGE","FEMALE","2025-09-04",1,704,"2025-10-04","斐樂大貨","回流"]
["M2801 Fanny","服装","針織上衣","针织长袖外套","冬季","ATHLETICS","FITNESS","MALE","2025-09-04",1,1258,"2025-10-04","斐樂大貨"]
["M2902 Carmen","服装","針織上衣","针织长袖外套","冬季","ATHLETICS","FITNESS","FEMALE","2025-09-04",1,1303,"2025-10-04","斐樂大貨"]
["M2801 Fanny","服装","針織上衣","针织长袖外套","冬季","ATHLETICS","FITNESS","FEMALE","2025-09-04",1,1245,"2025-10-04","斐樂大貨","回流"]
["M2902 Carmen","服装","針織上衣","针织长袖外套","冬季","ATHLETICS","FITNESS","FEMALE","2025-09-04",0,0,"2025-10-04","斐樂大貨"]
["M2902 Carmen","服装","針織上衣","针织长袖外套","冬季","ATHLETICS","FITNESS","FEMALE","2025-09-04",1,1243,"2025-10-04","斐樂大貨","回流"]
["M0989 Susanna","服装","針織上衣","针织连帽外套","冬季","ATHLETICS","FITNESS","FEMALE","2025-09-04",1,1054,"2025-10-04","斐樂大貨","回流"]
["M2902 Carmen","服装","針織上衣","针织连帽外套","冬季","ATHLETICS","FITNESS","FEMALE","2025-09-04",1,1037,"2025-10-04","斐樂大貨","回流"]
["M2902 Carmen","服装","針織上衣","针织连帽外套","冬季","ATHLETICS","FITNESS","FEMALE","2025-09-04",1,1091,"2025-10-04","斐樂大貨"]
["M2798 Ryan","服装","針織上衣","针织长袖外套","冬季","ATHLETICS","GOLF","FEMALE","2025-09-04",1,1784,"2025-10-04","斐樂大貨","回流"]
["M2902 Carmen","服装","針織上衣","针织长袖外套","冬季","LIFESTYLE","HERITAGE","MALE","2025-09-04",1,1243,"2025-10-04","斐樂大貨","回流"]
["M0989 Susanna","服装","針織上衣","针织长袖外套","冬季","LIFESTYLE","HERITAGE","MALE","2025-09-04",1,1258,"2025-10-04","斐樂大貨","回流"]
["M2798 Ryan","服装","針織上衣","针织长袖外套","冬季","LIFESTYLE","HERITAGE","FEMALE","2025-09-04",1,1258,"2025-10-04","斐樂大貨"]
["M2798 Ryan","配件","包類","背包","秋季","LIFESTYLE","FILA ORIGINALE","UNISEX","2025-07-03",1,780,"2025-10-04","斐樂大貨"]
["M2798 Ryan","配件","包類","背包","冬季","LIFESTYLE","FILA ORIGINALE","FEMALE","2025-09-04",1,780,"2025-10-04","斐樂大貨"]
["M0989 Susanna","配件","帽類","棒球帽","秋季","ATHLETICS","FITNESS","MALE","2025-06-03",1,380,"2025-10-04","斐樂大貨"]
["M0989 Susanna","配件","帽類","圆帽","冬季","ATHLETICS","EXPLORE","MALE","2025-09-04",1,380,"2025-10-04","斐樂大貨"]
["M2902 Carmen","配件","帽類","空顶帽","秋季","ATHLETICS","GOLF","FEMALE","2025-06-19",1,334,"2025-10-04","斐樂大貨"]
["M1436 Khaki","配件","帽類","棒球帽","冬季","LIFESTYLE","FILA ORIGINALE","MALE","2025-09-04",1,289,"2025-10-04","斐樂大貨"]
["M1436 Khaki","配件","襪類","及膝袜","春季","ATHLETICS","GOLF","FEMALE","2024-12-05",1,180,"2025-10-04","斐樂大貨"]
["M2801 Fanny","配件","襪類","低腰袜","秋季","ATHLETICS","FITNESS","FEMALE","2025-06-03",1,60,"2025-10-04","斐樂大貨","回流"]
["M1436 Khaki","配件","襪類","及膝袜","秋季","ATHLETICS","GOLF","FEMALE","2025-06-03",1,180,"2025-10-04","斐樂大貨"]
["M2798 Ryan","配件","襪類","低腰袜","冬季","ATHLETICS","FITNESS","FEMALE","2025-09-04",1,50,"2025-10-04","斐樂大貨","回流"]
["M1436 Khaki","配件","襪類","低腰袜","冬季","ATHLETICS","FITNESS","FEMALE","2025-09-04",1,60,"2025-10-04","斐樂大貨"]
["M2801 Fanny","配件","襪類","低腰袜","冬季","ATHLETICS","FITNESS","FEMALE","2025-09-04",1,60,"2025-10-04","斐樂大貨","回流"]
["M1436 Khaki","配件","襪類","低腰袜","春季","LIFESTYLE","WHITE","MALE","2025-01-07",1,60,"2025-10-04","斐樂大貨"]
["M2801 Fanny","配件","襪類","低腰袜","春季","LIFESTYLE","FILA ORIGINALE","MALE","2025-01-07",1,60,"2025-10-04","斐樂大貨","回流"]
["M1436 Khaki","配件","襪類","中腰袜","春季","LIFESTYLE","FILA ORIGINALE","MALE","2024-12-05",1,70,"2025-10-04","斐樂大貨","回流"]
["M1436 Khaki","配件","襪類","低腰袜","夏季","LIFESTYLE","WHITE","MALE","2025-03-06",1,65,"2025-10-04","斐樂大貨"]
["M2798 Ryan","配件","襪類","低腰袜","秋季","LIFESTYLE","WHITE","MALE","2025-06-03",2,120,"2025-10-04","斐樂大貨"]
["M1436 Khaki","配件","襪類","中腰袜","秋季","LIFESTYLE","WHITE","MALE","2025-06-03",1,70,"2025-10-04","斐樂大貨","回流"]
["M2798 Ryan","配件","襪類","低腰袜","秋季","LIFESTYLE","FILA ORIGINALE","MALE","2025-06-03",1,50,"2025-10-04","斐樂大貨","回流"]
["M2801 Fanny","配件","襪類","低腰袜","冬季","LIFESTYLE","WHITE","MALE","2025-09-04",1,60,"2025-10-04","斐樂大貨","回流"]
["M1436 Khaki","配件","襪類","低腰袜","春季","LIFESTYLE","HERITAGE","FEMALE","2025-01-07",1,60,"2025-10-04","斐樂大貨"]
["M2801 Fanny","配件","襪類","低腰袜","秋季","LIFESTYLE","FILA ORIGINALE","FEMALE","2025-06-03",2,120,"2025-10-04","斐樂大貨"]
["M2801 Fanny","配件","襪類","低腰袜","冬季","LIFESTYLE","HERITAGE","FEMALE","2025-09-04",1,60,"2025-10-04","斐樂大貨","回流"]
["M0989 Susanna","广宣用品","促销品","FILA车载保温杯（白）","常青",null,null,"不分","2025-05-29",2,0,"2025-10-04","斐樂大貨","回流"]
["M1436 Khaki","广宣用品","促销品","FILA车载保温杯（白）","常青",null,null,"不分","2025-05-29",1,0,"2025-10-04","斐樂大貨","回流"]
["M2798 Ryan","广宣用品","促销品","FILA车载保温杯（白）","常青",null,null,"不分","2025-05-29",0,0,"2025-10-04","斐樂大貨","回流"]
["M2801 Fanny","广宣用品","促销品","FILA车载保温杯（白）","常青",null,null,"不分","2025-05-29",2,0,"2025-10-04","斐樂大貨","回流"]
["M2902 Carmen","广宣用品","促销品","FILA车载保温杯（白）","常青",null,null,"不分","2025-05-29",1,0,"2025-10-04","斐樂大貨","回流"]
["M1436 Khaki","广宣用品","促销品","FILA新款拉杆箱（绿色）","常青",null,null,"不分","2025-06-04",1,0,"2025-10-04","斐樂大貨"]
["M2801 Fanny","广宣用品","促销品","FILA新款拉杆箱（绿色）","常青",null,null,"不分","2025-06-04",1,0,"2025-10-04","斐樂大貨","回流"]
["M2902 Carmen","广宣用品","促销品","FILA新款拉杆箱（绿色）","常青",null,null,"不分","2025-06-04",2,0,"2025-10-04","斐樂大貨","回流"]
["M2798 Ryan","广宣用品","促销品","FILA宽拉杆拉杆箱（白色）","常青",null,null,"不分","2025-06-12",1,0,"2025-10-04","斐樂大貨","回流"]
["M2801 Fanny","广宣用品","促销品","FILA宽拉杆拉杆箱（白色）","常青",null,null,"不分","2025-06-12",1,0,"2025-10-04","斐樂大貨","回流"]
["M2902 Carmen","广宣用品","促销品","FILA宽拉杆拉杆箱（白色）","常青",null,null,"不分","2025-06-12",1,0,"2025-10-04","斐樂大貨","回流"]
["M0989 Susanna","其它","其它","PLASTIC BAG","春季",null,null,"UNISEX",null,1,1,"2025-10-04","通用"]
["M0989 Susanna","其它","其它","PLASTIC BAG","春季",null,null,"UNISEX",null,1,1,"2025-10-04","通用","回流"]
["M1436 Khaki","其它","其它","PLASTIC BAG","春季",null,null,"UNISEX",null,2,2,"2025-10-04","通用"]
["M2798 Ryan","其它","其它","PLASTIC BAG","春季",null,null,"UNISEX",null,4,4,"2025-10-04","通用"]
["M2798 Ryan","其它","其它","PLASTIC BAG","春季",null,null,"UNISEX",null,0,0,"2025-10-04","通用","回流"]
["M2801 Fanny","其它","其它","PLASTIC BAG","春季",null,null,"UNISEX",null,1,1,"2025-10-04","通用"]
["M2801 Fanny","其它","其它","PLASTIC BAG","春季",null,null,"UNISEX",null,1,1,"2025-10-04","通用","回流"]
["M2902 Carmen","其它","其它","PLASTIC BAG","春季",null,null,"UNISEX",null,2,2,"2025-10-04","通用"]
["M2902 Carmen","其它","其它","PLASTIC BAG","春季",null,null,"UNISEX",null,1,1,"2025-10-04","通用","回流"]
["M1436 Khaki","其它","其它","PLASTIC BAG","春季",null,null,"UNISEX",null,1,1,"2025-10-04","通用"]
["M2798 Ryan","其它","其它","PLASTIC BAG","春季",null,null,"UNISEX",null,2,2,"2025-10-04","通用"]
["M2798 Ryan","其它","其它","PLASTIC BAG","春季",null,null,"UNISEX",null,1,1,"2025-10-04","通用","回流"]
["M2801 Fanny","其它","其它","PLASTIC BAG","春季",null,null,"UNISEX",null,3,3,"2025-10-04","通用"]
["M2801 Fanny","其它","其它","PLASTIC BAG","春季",null,null,"UNISEX",null,1,1,"2025-10-04","通用","回流"]
["M2902 Carmen","其它","其它","PLASTIC BAG","春季",null,null,"UNISEX",null,1,1,"2025-10-04","通用"]
["M2902 Carmen","其它","其它","PLASTIC BAG","春季",null,null,"UNISEX",null,1,1,"2025-10-04","通用","回流"]
["M0989 Susanna","其它","其它","PLASTIC BAG","春季",null,null,"UNISEX",null,1,1,"2025-10-04","通用"]
["M0989 Susanna","其它","其它","PLASTIC BAG","春季",null,null,"UNISEX",null,1,1,"2025-10-04","通用","回流"]
["M1436 Khaki","其它","其它","PLASTIC BAG","春季",null,null,"UNISEX",null,1,1,"2025-10-04","通用","回流"]
["M2798 Ryan","其它","其它","PLASTIC BAG","春季",null,null,"UNISEX",null,2,2,"2025-10-04","通用"]
["M2902 Carmen","其它","其它","PLASTIC BAG","春季",null,null,"UNISEX",null,0,0,"2025-10-04","通用"]
["M2902 Carmen","鞋类","運動鞋","摩登运动鞋","秋季","FASHION","MODERNO","MALE","2025-08-05",1,980,"2025-10-05","斐樂大貨"]
["M2798 Ryan","鞋类","運動鞋","摩登运动鞋","秋季","FASHION","MODERNO","MALE","2025-08-05",1,980,"2025-10-05","斐樂大貨"]
["M2798 Ryan","鞋类","運動鞋","复古运动鞋","冬季","FASHION","ORIGINALE","MALE","2025-09-04",1,810,"2025-10-05","斐樂大貨","回流"]
["M2798 Ryan","鞋类","運動鞋","复古运动鞋","冬季","FASHION","ORIGINALE","MALE","2025-09-04",1,880,"2025-10-05","斐樂大貨"]
["M2172 Janet","鞋类","運動鞋","摩登运动鞋","秋季","FASHION","MODERNO","FEMALE","2025-07-03",1,798,"2025-10-05","斐樂大貨","回流"]
["M2172 Janet","鞋类","運動鞋","先锋运动鞋","秋季","FASHION","ICONA","FEMALE","2025-07-03",1,1054,"2025-10-05","斐樂大貨","回流"]
["M2172 Janet","鞋类","運動鞋","摩登运动鞋","冬季","FASHION","MODERNO","FEMALE","2025-09-04",1,862,"2025-10-05","斐樂大貨"]
["M2801 Fanny","鞋类","運動鞋","摩登运动鞋","冬季","FASHION","MODERNO","FEMALE","2025-09-04",1,833,"2025-10-05","斐樂大貨","回流"]
["M2798 Ryan","鞋类","運動鞋","摩登运动鞋","冬季","FASHION","MODERNO","FEMALE","2025-09-04",1,785,"2025-10-05","斐樂大貨","回流"]
["M2798 Ryan","鞋类","運動鞋","摩登运动鞋","冬季","FASHION","MODERNO","FEMALE","2025-09-04",1,785,"2025-10-05","斐樂大貨","回流"]
["M2172 Janet","鞋类","運動鞋","摩登运动鞋","冬季","FASHION","MODERNO","FEMALE","2025-09-04",1,980,"2025-10-05","斐樂大貨"]
["M2902 Carmen","鞋类","運動鞋","复古运动鞋","冬季","FASHION","ORIGINALE","FEMALE","2025-09-04",1,818,"2025-10-05","斐樂大貨","回流"]
["M2801 Fanny","鞋类","運動鞋","复古运动鞋","冬季","FASHION","ORIGINALE","FEMALE","2025-09-04",1,980,"2025-10-05","斐樂大貨"]
["M2798 Ryan","鞋类","運動鞋","复古运动鞋","冬季","FASHION","ORIGINALE","FEMALE","2025-09-04",1,810,"2025-10-05","斐樂大貨","回流"]
["M2172 Janet","鞋类","運動鞋","复古运动鞋","冬季","FASHION","ORIGINALE","FEMALE","2025-09-04",1,716,"2025-10-05","斐樂大貨","回流"]
["M2172 Janet","鞋类","運動鞋","复古运动鞋","冬季","FASHION","ORIGINALE","FEMALE","2025-09-04",1,711,"2025-10-05","斐樂大貨","回流"]
["M2172 Janet","鞋类","運動鞋","复古运动鞋","冬季","FASHION","ORIGINALE","FEMALE","2025-09-04",1,716,"2025-10-05","斐樂大貨","回流"]
["M2798 Ryan","鞋类","板鞋","复古板鞋","冬季","FASHION","ORIGINALE","MALE","2025-09-04",1,880,"2025-10-05","斐樂大貨"]
["M2172 Janet","鞋类","跑步鞋","路跑鞋","冬季","ATHLETICS","SPORT PERFORMANCE","MALE","2025-09-04",1,1240,"2025-10-05","斐樂大貨","回流"]
["M2172 Janet","鞋类","跑步鞋","户外鞋","冬季","ATHLETICS","SPORT PERFORMANCE","男","2025-09-04",1,1082,"2025-10-05","斐樂大貨","回流"]
["M2801 Fanny","鞋类","跑步鞋","户外鞋","冬季","ATHLETICS","SPORT PERFORMANCE","男","2025-09-04",1,1083,"2025-10-05","斐樂大貨","回流"]
["M2172 Janet","鞋类","跑步鞋","户外鞋","冬季","ATHLETICS","SPORT PERFORMANCE","男","2025-09-04",1,1082,"2025-10-05","斐樂大貨","回流"]
["M2801 Fanny","鞋类","跑步鞋","户外鞋","冬季","ATHLETICS","SPORT PERFORMANCE","MALE","2025-09-04",1,1083,"2025-10-05","斐樂大貨","回流"]
["M2798 Ryan","鞋类","跑步鞋","户外鞋","冬季","ATHLETICS","SPORT PERFORMANCE","MALE","2025-09-04",1,937,"2025-10-05","斐樂大貨","回流"]
["M2172 Janet","鞋类","跑步鞋","户外鞋","冬季","ATHLETICS","SPORT PERFORMANCE","FEMALE","2025-09-04",1,1083,"2025-10-05","斐樂大貨","回流"]
["M2172 Janet","鞋类","跑步鞋","户外鞋","冬季","ATHLETICS","SPORT PERFORMANCE","FEMALE","2025-09-04",1,1082,"2025-10-05","斐樂大貨","回流"]
["M2798 Ryan","鞋类","網球鞋","网球生活鞋","冬季","ATHLETICS","SPORT PERFORMANCE","MALE","2025-09-04",1,748,"2025-10-05","斐樂大貨","回流"]
["M2798 Ryan","鞋类","網球鞋","网球生活鞋","冬季","ATHLETICS","SPORT PERFORMANCE","FEMALE","2025-09-04",1,748,"2025-10-05","斐樂大貨","回流"]
["M0989 Susanna","服装","編織衫","编织外套","冬季","ATHLETICS","GOLF","女","2025-09-04",1,1940,"2025-10-05","斐樂大貨"]
["M2798 Ryan","服装","編織衫","编织衫","秋季","LIFESTYLE","WHITE","FEMALE","2025-08-05",1,1003,"2025-10-05","斐樂大貨"]
["M2172 Janet","服装","編織衫","编织外套","冬季","LIFESTYLE","WHITE","FEMALE","2025-09-23",1,1092,"2025-10-05","斐樂大貨"]
["M0989 Susanna","服装","編織衫","编织外套","冬季","LIFESTYLE","WHITE","FEMALE","2025-09-23",1,1043,"2025-10-05","斐樂大貨","回流"]
["M0989 Susanna","服装","編織衫","编织衫","冬季","LIFESTYLE","WHITE","FEMALE","2025-09-23",1,822,"2025-10-05","斐樂大貨","回流"]
["M2801 Fanny","服装","編織衫","编织衫","冬季","LIFESTYLE","WHITE","FEMALE","2025-09-23",1,862,"2025-10-05","斐樂大貨","回流"]
["M2801 Fanny","服装","短T類","针织短袖POLO衫","秋季","ATHLETICS","GOLF","MALE","2025-07-22",1,1240,"2025-10-05","斐樂大貨"]
["M2801 Fanny","服装","短T類","针织短袖POLO衫","秋季","LIFESTYLE","BLUE","MALE","2025-06-19",1,969,"2025-10-05","斐樂大貨","回流"]
["M2798 Ryan","服装","短T類","针织短袖衫","秋季","LIFESTYLE","BLUE","MALE","2025-06-19",1,806,"2025-10-05","斐樂大貨","回流"]
["M2902 Carmen","服装","短T類","针织短袖衫","秋季","LIFESTYLE","WHITE","MALE","2025-08-05",1,567,"2025-10-05","斐樂大貨","回流"]
["M2172 Janet","服装","短T類","针织短袖衫","冬季","LIFESTYLE","HERITAGE","MALE","2025-09-04",1,493,"2025-10-05","斐樂大貨"]
["M2172 Janet","服装","短T類","针织短袖衫","冬季","LIFESTYLE","HERITAGE","MALE","2025-09-04",1,493,"2025-10-05","斐樂大貨"]
["M2801 Fanny","服装","短T類","针织短袖POLO衫","冬季","LIFESTYLE","HERITAGE","MALE","2025-09-04",1,629,"2025-10-05","斐樂大貨","回流"]
["M2798 Ryan","服装","棉服","棉马甲","冬季","ATHLETICS","GOLF","男","2025-09-23",1,1768,"2025-10-05","斐樂大貨","回流"]
["M2798 Ryan","服装","棉服","棉马甲","冬季","ATHLETICS","GOLF","MALE","2025-09-23",1,1759,"2025-10-05","斐樂大貨","回流"]
["M2172 Janet","服装","棉服","棉马甲","冬季","ATHLETICS","GOLF","MALE","2025-09-23",1,2140,"2025-10-05","斐樂大貨","回流"]
["M0989 Susanna","服装","棉服","棉服两件套-K","冬季","ATHLETICS",null,"FEMALE","2025-09-23",1,2833,"2025-10-05","斐樂大貨","回流"]
["M2902 Carmen","服装","內搭","针织长袖POLO衫","冬季","ATHLETICS","GOLF","MALE","2025-09-04",1,1406,"2025-10-05","斐樂大貨","回流"]
["M2798 Ryan","服装","內搭","针织长袖POLO衫","冬季","ATHLETICS","GOLF","MALE","2025-09-04",1,1388,"2025-10-05","斐樂大貨","回流"]
["M2801 Fanny","服装","內搭","针织长袖POLO衫","冬季","ATHLETICS","GOLF","MALE","2025-09-04",1,1405,"2025-10-05","斐樂大貨","回流"]
["M2798 Ryan","服装","內搭","针织长袖POLO衫","冬季","ATHLETICS","GOLF","男","2025-09-04",1,1479,"2025-10-05","斐樂大貨"]
["M2801 Fanny","服装","內搭","针织长袖POLO衫","冬季","ATHLETICS","GOLF","男","2025-09-04",1,1358,"2025-10-05","斐樂大貨","回流"]
["M2172 Janet","服装","內搭","针织长袖POLO衫","冬季","ATHLETICS","GOLF","男","2025-09-04",1,1680,"2025-10-05","斐樂大貨","回流"]
["M2801 Fanny","服装","內搭","针织长袖POLO衫","秋季","LIFESTYLE","BLUE","MALE","2025-08-05",1,969,"2025-10-05","斐樂大貨","回流"]
["M2172 Janet","服装","內搭","针织套头衫","冬季","LIFESTYLE","WHITE","MALE","2025-09-23",1,880,"2025-10-05","斐樂大貨"]
["M2902 Carmen","服装","內搭","针织长袖衫","冬季","LIFESTYLE","WHITE","MALE","2025-09-23",1,703,"2025-10-05","斐樂大貨","回流"]
["M2172 Janet","服装","內搭","针织长袖衫","冬季","LIFESTYLE","HERITAGE","MALE","2025-09-04",1,578,"2025-10-05","斐樂大貨","回流"]
["M2801 Fanny","服装","內搭","针织套头衫","冬季","LIFESTYLE","HERITAGE","MALE","2025-09-04",1,679,"2025-10-05","斐樂大貨","回流"]
["M2798 Ryan","服装","內搭","针织套头衫","冬季","LIFESTYLE","FILA ORIGINALE","MALE","2025-09-23",1,644,"2025-10-05","斐樂大貨","回流"]
["M2798 Ryan","服装","內搭","针织套头衫","冬季","LIFESTYLE","FILA ORIGINALE","MALE","2025-09-23",1,644,"2025-10-05","斐樂大貨","回流"]
["M2902 Carmen","服装","內搭","针织长袖衫","冬季","LIFESTYLE","HERITAGE","FEMALE","2025-09-04",1,680,"2025-10-05","斐樂大貨"]
["M2798 Ryan","服装","內搭","针织长袖衫","冬季","LIFESTYLE","HERITAGE","FEMALE","2025-09-04",1,545,"2025-10-05","斐樂大貨","回流"]
["M2798 Ryan","服装","內搭","针织连帽上衣","冬季","LIFESTYLE","HERITAGE","FEMALE","2025-09-04",1,705,"2025-10-05","斐樂大貨","回流"]
["M0989 Susanna","服装","內搭","针织连帽上衣","冬季","LIFESTYLE","HERITAGE","FEMALE","2025-09-04",1,774,"2025-10-05","斐樂大貨"]
["M2902 Carmen","服装","內搭","针织套头衫","冬季","LIFESTYLE","FILA ORIGINALE","FEMALE","2025-09-23",1,663,"2025-10-05","斐樂大貨","回流"]
["M0989 Susanna","服装","內搭","针织长袖上衣","冬季","LIFESTYLE","FILA ORIGINALE","FEMALE","2025-09-23",1,738,"2025-10-05","斐樂大貨","回流"]
["M2798 Ryan","服装","裙裝","梭织裙","冬季","ATHLETICS","GOLF","FEMALE","2025-09-04",1,1346,"2025-10-05","斐樂大貨","回流"]
["M2902 Carmen","服装","梭織褲","梭织长裤","秋季","ATHLETICS","A.P.","MALE","2025-06-03",1,951,"2025-10-05","斐樂大貨","回流"]
["M2801 Fanny","服装","梭織褲","梭织长裤","冬季","ATHLETICS","GOLF","MALE","2025-09-04",1,1405,"2025-10-05","斐樂大貨","回流"]
["M2172 Janet","服装","梭織褲","梭织长裤","冬季","ATHLETICS",null,"FEMALE","2025-09-23",1,1116,"2025-10-05","斐樂大貨","回流"]
["M0989 Susanna","服装","梭織褲","梭织长裤","冬季","ATHLETICS",null,"FEMALE","2025-09-23",1,1039,"2025-10-05","斐樂大貨","回流"]
["M0989 Susanna","服装","梭織褲","梭织长裤","冬季","LIFESTYLE","FILA ORIGINALE","FEMALE","2025-09-23",1,788,"2025-10-05","斐樂大貨","回流"]
["M2801 Fanny","服装","梭織褲","梭织长裤","冬季","LIFESTYLE","FILA ORIGINALE","FEMALE","2025-09-23",1,774,"2025-10-05","斐樂大貨"]
["M2798 Ryan","服装","梭織上衣","梭织外套","秋季","ATHLETICS","GOLF","MALE","2025-06-03",1,1759,"2025-10-05","斐樂大貨","回流"]
["M2801 Fanny","服装","梭織上衣","梭织外套","冬季","ATHLETICS",null,"MALE","2025-09-23",1,2183,"2025-10-05","斐樂大貨","回流"]
["M2798 Ryan","服装","梭織上衣","梭织外套","冬季","ATHLETICS",null,"FEMALE","2025-09-23",1,2048,"2025-10-05","斐樂大貨","回流"]
["M2801 Fanny","服装","梭織上衣","梭织外套","冬季","LIFESTYLE","BLUE","MALE","2025-10-09",1,2325,"2025-10-05","斐樂大貨","回流"]
["M2798 Ryan","服装","梭織上衣","梭织外套","冬季","LIFESTYLE","WHITE","MALE","2025-09-23",1,1388,"2025-10-05","斐樂大貨","回流"]
["M2798 Ryan","服装","梭織上衣","梭织外套","冬季","LIFESTYLE","HERITAGE","MALE","2025-09-04",1,1680,"2025-10-05","斐樂大貨"]
["M2801 Fanny","服装","梭織上衣","梭织外套","秋季","LIFESTYLE","HERITAGE","FEMALE","2025-07-22",1,1649,"2025-10-05","斐樂大貨","回流"]
["M2801 Fanny","服装","梭織上衣","梭织外套","冬季","LIFESTYLE","WHITE","FEMALE","2025-09-23",2,2776,"2025-10-05","斐樂大貨","回流"]
["M0989 Susanna","服装","梭織上衣","梭织外套","冬季","LIFESTYLE","WHITE","FEMALE","2025-09-23",1,1413,"2025-10-05","斐樂大貨","回流"]
["M2801 Fanny","服装","梭織上衣","梭织外套","冬季","LIFESTYLE","WHITE","FEMALE","2025-09-23",2,2694,"2025-10-05","斐樂大貨","回流"]
["M2801 Fanny","服装","梭織上衣","梭织外套","冬季","LIFESTYLE","WHITE","FEMALE","2025-09-23",1,1347,"2025-10-05","斐樂大貨","回流"]
["M2801 Fanny","服装","梭織上衣","梭织外套","冬季","LIFESTYLE","FILA ORIGINALE","FEMALE","2025-09-23",1,1479,"2025-10-05","斐樂大貨"]
["M2172 Janet","服装","羽絨服","羽绒马甲","冬季","ATHLETICS","FITNESS","MALE","2025-10-09",1,1303,"2025-10-05","斐樂大貨"]
["M2902 Carmen","服装","羽絨服","羽绒马甲","冬季","ATHLETICS","FITNESS","MALE","2025-10-09",1,1239,"2025-10-05","斐樂大貨","回流"]
["M2172 Janet","服装","羽絨服","羽绒马甲","冬季","ATHLETICS","GOLF","MALE","2025-09-04",1,1741,"2025-10-05","斐樂大貨","回流"]
["M2172 Janet","服装","羽絨服","羽绒马甲","冬季","ATHLETICS","GOLF","女","2025-09-04",1,1819,"2025-10-05","斐樂大貨","回流"]
["M2801 Fanny","服装","羽絨服","羽绒服两件套","冬季","LIFESTYLE","WHITE","FEMALE","2025-09-23",1,2073,"2025-10-05","斐樂大貨","回流"]
["M2172 Janet","服装","羽絨服","羽绒服两件套","冬季","LIFESTYLE","WHITE","FEMALE","2025-11-20",1,2751,"2025-10-05","斐樂大貨","回流"]
["M0989 Susanna","服装","羽絨服","羽绒服两件套","冬季","LIFESTYLE","WHITE","FEMALE","2025-11-20",1,2841,"2025-10-05","斐樂大貨","回流"]
["M2902 Carmen","服装","羽絨服","羽绒服两件套","冬季","LIFESTYLE","WHITE","FEMALE","2025-11-20",1,3042,"2025-10-05","斐樂大貨","回流"]
["M2902 Carmen","服装","針織褲","针织长裤","冬季","ATHLETICS","FITNESS","MALE","2025-09-04",1,737,"2025-10-05","斐樂大貨","回流"]
["M2801 Fanny","服装","針織褲","针织长裤","冬季","ATHLETICS","FITNESS","MALE","2025-09-04",1,711,"2025-10-05","斐樂大貨","回流"]
["M2172 Janet","服装","針織褲","针织长裤","冬季","ATHLETICS","FITNESS","FEMALE","2025-09-04",1,686,"2025-10-05","斐樂大貨"]
["M2172 Janet","服装","針織褲","针织长裤","冬季","ATHLETICS","FITNESS","FEMALE","2025-09-04",1,663,"2025-10-05","斐樂大貨","回流"]
["M2801 Fanny","服装","針織褲","针织长裤","冬季","ATHLETICS","FITNESS","FEMALE","2025-09-04",1,626,"2025-10-05","斐樂大貨","回流"]
["M2801 Fanny","服装","針織褲","针织长裤","冬季","ATHLETICS","FITNESS","FEMALE","2025-09-04",1,626,"2025-10-05","斐樂大貨","回流"]
["M2798 Ryan","服装","針織褲","针织长裤","冬季","ATHLETICS","GOLF","FEMALE","2025-09-23",1,1185,"2025-10-05","斐樂大貨","回流"]
["M2801 Fanny","服装","針織褲","针织长裤","冬季","ATHLETICS","GOLF","FEMALE","2025-09-23",1,1237,"2025-10-05","斐樂大貨","回流"]
["M2902 Carmen","服装","針織褲","针织长裤","冬季","ATHLETICS","GOLF","FEMALE","2025-09-23",1,1235,"2025-10-05","斐樂大貨","回流"]
["M2801 Fanny","服装","針織褲","针织长裤","秋季","LIFESTYLE","WHITE","MALE","2025-06-19",1,711,"2025-10-05","斐樂大貨","回流"]
["M2172 Janet","服装","針織褲","针织长裤","冬季","LIFESTYLE","WHITE","MALE","2025-09-23",1,774,"2025-10-05","斐樂大貨"]
["M2902 Carmen","服装","針織褲","针织长裤","秋季","LIFESTYLE","FILA ORIGINALE","FEMALE","2025-08-19",1,651,"2025-10-05","斐樂大貨","回流"]
["M2798 Ryan","服装","針織褲","针织长裤","冬季","LIFESTYLE","HERITAGE","FEMALE","2025-09-04",1,827,"2025-10-05","斐樂大貨"]
["M2798 Ryan","服装","針織褲","针织长裤","冬季","LIFESTYLE","HERITAGE","FEMALE","2025-09-04",1,753,"2025-10-05","斐樂大貨","回流"]
["M2902 Carmen","服装","針織褲","针织长裤","冬季","LIFESTYLE","HERITAGE","FEMALE","2025-09-04",1,784,"2025-10-05","斐樂大貨","回流"]
["M2798 Ryan","服装","針織褲","针织长裤","冬季","LIFESTYLE","HERITAGE","FEMALE","2025-09-04",1,748,"2025-10-05","斐樂大貨","回流"]
["M2798 Ryan","服装","針織褲","针织长裤","冬季","LIFESTYLE","HERITAGE","FEMALE","2025-09-04",2,1453,"2025-10-05","斐樂大貨","回流"]
["M2902 Carmen","服装","針織上衣","针织长袖外套","冬季","ATHLETICS","GOLF","MALE","2025-09-04",1,2075,"2025-10-05","斐樂大貨","回流"]
["M2172 Janet","服装","針織上衣","针织长袖外套","冬季","ATHLETICS","GOLF","MALE","2025-09-04",1,2018,"2025-10-05","斐樂大貨","回流"]
["M2172 Janet","服装","針織上衣","针织连帽外套","冬季","ATHLETICS","FITNESS","FEMALE","2025-09-04",1,1092,"2025-10-05","斐樂大貨"]
["M2172 Janet","服装","針織上衣","针织连帽外套","冬季","ATHLETICS","FITNESS","FEMALE","2025-09-04",1,1240,"2025-10-05","斐樂大貨"]
["M2172 Janet","服装","針織上衣","针织连帽外套","冬季","ATHLETICS","FITNESS","FEMALE","2025-09-04",1,1054,"2025-10-05","斐樂大貨","回流"]
["M0989 Susanna","服装","針織上衣","针织连帽外套","冬季","ATHLETICS","FITNESS","FEMALE","2025-09-04",1,1092,"2025-10-05","斐樂大貨"]
["M0989 Susanna","服装","針織上衣","针织连帽外套","冬季","ATHLETICS","FITNESS","FEMALE","2025-09-04",1,1043,"2025-10-05","斐樂大貨","回流"]
["M2798 Ryan","服装","針織上衣","针织连帽外套","冬季","ATHLETICS","FITNESS","FEMALE","2025-09-04",2,2108,"2025-10-05","斐樂大貨","回流"]
["M2801 Fanny","服装","針織上衣","针织连帽外套","冬季","ATHLETICS","FITNESS","FEMALE","2025-09-04",1,994,"2025-10-05","斐樂大貨","回流"]
["M2902 Carmen","服装","針織上衣","针织连帽外套","冬季","ATHLETICS","FITNESS","FEMALE","2025-09-04",1,1034,"2025-10-05","斐樂大貨","回流"]
["M2798 Ryan","服装","針織上衣","针织长袖外套","冬季","LIFESTYLE","HERITAGE","FEMALE","2025-09-04",1,1303,"2025-10-05","斐樂大貨"]
["M2798 Ryan","服装","針織上衣","针织长袖外套","冬季","LIFESTYLE","HERITAGE","FEMALE","2025-09-04",1,1185,"2025-10-05","斐樂大貨","回流"]
["M2172 Janet","服装","針織上衣","针织长袖外套","冬季","LIFESTYLE","FILA ORIGINALE","FEMALE","2025-09-23",1,1303,"2025-10-05","斐樂大貨"]
["M2801 Fanny","配件","包類","背包","冬季","ATHLETICS","EXPLORE","UNISEX","2025-09-23",1,465,"2025-10-05","斐樂大貨","回流"]
["M2172 Janet","配件","包類","背包","秋季","LIFESTYLE","FILA ORIGINALE","UNISEX","2025-07-03",1,833,"2025-10-05","斐樂大貨"]
["M2172 Janet","配件","包類","挎包","冬季","LIFESTYLE","WHITE","FEMALE","2025-09-04",1,598,"2025-10-05","斐樂大貨"]
["M2172 Janet","配件","帽類","棒球帽","冬季","ATHLETICS","GOLF","MALE","2025-09-04",1,480,"2025-10-05","斐樂大貨"]
["M2801 Fanny","配件","帽類","棒球帽","冬季","ATHLETICS","GOLF","FEMALE","2025-09-04",1,480,"2025-10-05","斐樂大貨"]
["M2798 Ryan","配件","帽類","棒球帽","冬季","LIFESTYLE","FILA ORIGINALE","MALE","2025-09-04",1,279,"2025-10-05","斐樂大貨","回流"]
["M2801 Fanny","配件","襪類","低腰袜","夏季","ATHLETICS","FITNESS","MALE","2025-03-06",1,65,"2025-10-05","斐樂大貨"]
["M2801 Fanny","配件","襪類","低腰袜","秋季","ATHLETICS","FITNESS","MALE","2025-06-03",3,180,"2025-10-05","斐樂大貨"]
["M2801 Fanny","配件","襪類","低腰袜","秋季","ATHLETICS","FITNESS","MALE","2025-06-03",1,60,"2025-10-05","斐樂大貨"]
["M2801 Fanny","配件","襪類","中腰袜","冬季","ATHLETICS","FITNESS","MALE","2025-09-04",1,70,"2025-10-05","斐樂大貨"]
["M2902 Carmen","配件","襪類","低腰袜","冬季","ATHLETICS","FITNESS","MALE","2025-09-04",2,120,"2025-10-05","斐樂大貨"]
["M2798 Ryan","配件","襪類","低腰袜","秋季","ATHLETICS","FITNESS","FEMALE","2025-06-03",2,120,"2025-10-05","斐樂大貨"]
["M2172 Janet","配件","襪類","低腰袜","春季","LIFESTYLE","WHITE","MALE","2025-01-07",1,60,"2025-10-05","斐樂大貨","回流"]
["M2172 Janet","配件","襪類","低腰袜","春季","LIFESTYLE","FILA ORIGINALE","MALE","2025-01-07",1,60,"2025-10-05","斐樂大貨","回流"]
["M2172 Janet","配件","襪類","低腰袜","春季","LIFESTYLE","FILA ORIGINALE","MALE","2025-01-07",1,60,"2025-10-05","斐樂大貨"]
["M2801 Fanny","配件","襪類","低腰袜","春季","LIFESTYLE","FILA ORIGINALE","MALE","2025-01-07",5,245,"2025-10-05","斐樂大貨","回流"]
["M2801 Fanny","配件","襪類","中腰袜","春季","LIFESTYLE","FILA ORIGINALE","MALE","2024-12-05",5,350,"2025-10-05","斐樂大貨"]
["M2798 Ryan","配件","襪類","中腰袜","夏季","LIFESTYLE","WHITE","MALE","2025-03-06",1,56,"2025-10-05","斐樂大貨","回流"]
["M2801 Fanny","配件","襪類","中腰袜","夏季","LIFESTYLE","WHITE","MALE","2025-03-06",3,210,"2025-10-05","斐樂大貨"]
["M2801 Fanny","配件","襪類","低腰袜","夏季","LIFESTYLE","WHITE","MALE","2025-03-06",2,130,"2025-10-05","斐樂大貨"]
["M2902 Carmen","配件","襪類","浅口袜","夏季","LIFESTYLE","WHITE","MALE","2025-03-06",1,60,"2025-10-05","斐樂大貨"]
["M2172 Janet","配件","襪類","浅口袜","夏季","LIFESTYLE","WHITE","MALE","2025-03-06",2,120,"2025-10-05","斐樂大貨"]
["M2902 Carmen","配件","襪類","浅口袜","夏季","LIFESTYLE","WHITE","MALE","2025-03-06",1,60,"2025-10-05","斐樂大貨"]
["M2801 Fanny","配件","襪類","低腰袜","秋季","LIFESTYLE","FILA ORIGINALE","MALE","2025-06-03",5,245,"2025-10-05","斐樂大貨","回流"]
["M2172 Janet","配件","襪類","低腰袜","冬季","LIFESTYLE","WHITE","MALE","2025-09-04",1,60,"2025-10-05","斐樂大貨"]
["M2801 Fanny","配件","襪類","低腰袜","冬季","LIFESTYLE","WHITE","MALE","2025-09-04",1,60,"2025-10-05","斐樂大貨"]
["M2801 Fanny","配件","襪類","中腰袜套装","冬季","LIFESTYLE","FILA ORIGINALE","FEMALE","2024-09-05",1,120,"2025-10-05","斐樂大貨"]
["M2798 Ryan","配件","襪類","低腰袜","春季","LIFESTYLE","HERITAGE","FEMALE","2025-01-07",1,60,"2025-10-05","斐樂大貨"]
["M2801 Fanny","配件","襪類","低腰袜","春季","LIFESTYLE","HERITAGE","FEMALE","2025-01-07",2,120,"2025-10-05","斐樂大貨"]
["M2172 Janet","广宣用品","促销品","FILA车载保温杯（白）","常青",null,null,"不分","2025-05-29",3,0,"2025-10-05","斐樂大貨","回流"]
["M2798 Ryan","广宣用品","促销品","FILA车载保温杯（白）","常青",null,null,"不分","2025-05-29",2,0,"2025-10-05","斐樂大貨","回流"]
["M2801 Fanny","广宣用品","促销品","FILA车载保温杯（白）","常青",null,null,"不分","2025-05-29",2,0,"2025-10-05","斐樂大貨","回流"]
["M2902 Carmen","广宣用品","促销品","FILA车载保温杯（白）","常青",null,null,"不分","2025-05-29",1,0,"2025-10-05","斐樂大貨","回流"]
["M2801 Fanny","广宣用品","促销品","FILA新款拉杆箱（绿色）","常青",null,null,"不分","2025-06-04",1,0,"2025-10-05","斐樂大貨","回流"]
["M0989 Susanna","广宣用品","促销品","FILA宽拉杆拉杆箱（白色）","常青",null,null,"不分","2025-06-12",2,0,"2025-10-05","斐樂大貨","回流"]
["M2172 Janet","广宣用品","促销品","FILA宽拉杆拉杆箱（白色）","常青",null,null,"不分","2025-06-12",1,0,"2025-10-05","斐樂大貨","回流"]
["M2798 Ryan","广宣用品","促销品","FILA宽拉杆拉杆箱（白色）","常青",null,null,"不分","2025-06-12",2,0,"2025-10-05","斐樂大貨","回流"]
["M2801 Fanny","广宣用品","促销品","FILA宽拉杆拉杆箱（白色）","常青",null,null,"不分","2025-06-12",2,0,"2025-10-05","斐樂大貨","回流"]
["M2902 Carmen","广宣用品","促销品","FILA宽拉杆拉杆箱（白色）","常青",null,null,"不分","2025-06-12",2,0,"2025-10-05","斐樂大貨","回流"]
["M2172 Janet","其它","其它","PLASTIC BAG","春季",null,null,"UNISEX",null,3,3,"2025-10-05","通用"]
["M2798 Ryan","其它","其它","PLASTIC BAG","春季",null,null,"UNISEX",null,1,1,"2025-10-05","通用","回流"]
["M2801 Fanny","其它","其它","PLASTIC BAG","春季",null,null,"UNISEX",null,2,2,"2025-10-05","通用"]
["M2801 Fanny","其它","其它","PLASTIC BAG","春季",null,null,"UNISEX",null,1,1,"2025-10-05","通用","回流"]
["M2902 Carmen","其它","其它","PLASTIC BAG","春季",null,null,"UNISEX",null,1,1,"2025-10-05","通用","回流"]
["M2172 Janet","其它","其它","PLASTIC BAG","春季",null,null,"UNISEX",null,1,1,"2025-10-05","通用"]
["M2798 Ryan","其它","其它","PLASTIC BAG","春季",null,null,"UNISEX",null,1,1,"2025-10-05","通用"]
["M2801 Fanny","其它","其它","PLASTIC BAG","春季",null,null,"UNISEX",null,2,2,"2025-10-05","通用"]
["M2801 Fanny","其它","其它","PLASTIC BAG","春季",null,null,"UNISEX",null,1,1,"2025-10-05","通用","回流"]
["M2902 Carmen","其它","其它","PLASTIC BAG","春季",null,null,"UNISEX",null,1,1,"2025-10-05","通用"]
["M2902 Carmen","其它","其它","PLASTIC BAG","春季",null,null,"UNISEX",null,2,2,"2025-10-05","通用","回流"]
["M0989 Susanna","其它","其它","PLASTIC BAG","春季",null,null,"UNISEX",null,1,1,"2025-10-05","通用"]
["M2172 Janet","其它","其它","PLASTIC BAG","春季",null,null,"UNISEX",null,1,1,"2025-10-05","通用"]
["M2798 Ryan","其它","其它","PLASTIC BAG","春季",null,null,"UNISEX",null,2,2,"2025-10-05","通用"]
["M2798 Ryan","其它","其它","PLASTIC BAG","春季",null,null,"UNISEX",null,1,1,"2025-10-05","通用","回流"]
{"$rows_empty":2907}
["M2801 Fanny","其它","其它","PLASTIC BAG","春季",null,null,"UNISEX",null,3,3,"2025-08-31","通用"]